Body name,Body,Service Area Categorisation,Cost Centre Description,Detailed Expenses Type,Expense Code,Date,Transaction Number,Amount,Supplier Name,Supplier ID
Solihull MBC,http://statistics.data.gov.uk/id/local-authority/00CT,Central Services to the Public,142 Lode Lane,Cleaning Contracts,B40001,07/09/2010,2762949,423.13,Connaught Environmental Ltd,244613
Solihull MBC,http://statistics.data.gov.uk/id/local-authority/00CT,Central Services to the Public,142 Lode Lane,Cleaning Contracts,B40001,13/09/2010,2769695,423.13,Connaught Environmental Ltd,244613
Solihull MBC,http://statistics.data.gov.uk/id/local-authority/00CT,Central Services to the Public,142 Lode Lane,Internal Building Maintenance,H20908,20/09/2010,2773892,65.84,Dodd Group (Midlands) Ltd,60305
Solihull MBC,http://statistics.data.gov.uk/id/local-authority/00CT,Central Services to the Public,142 Lode Lane,Repair & Maintn Of Buildings,B31000,20/09/2010,2773892,658.44,Dodd Group (Midlands) Ltd,60305
Solihull MBC,http://statistics.data.gov.uk/id/local-authority/00CT,Central Services to the Public,142 Lode Lane,Cleaning / Janitrl Materials,B40002,14/09/2010,2770707,1071.72,Initial Washroom Solutions,132527
Solihull MBC,http://statistics.data.gov.uk/id/local-authority/00CT,Children & Education Services,16 + (S24) 18+ Not In Educ,Client Leaving Care Grant,D62020,03/09/2010,2761395,55,Appliance World,249913
Solihull MBC,http://statistics.data.gov.uk/id/local-authority/00CT,Children & Education Services,16 + (S24) 18+ Not In Educ,Client Leaving Care Grant,D62020,03/09/2010,2761395,553.19,Appliance World,249913
Solihull MBC,http://statistics.data.gov.uk/id/local-authority/00CT,Children & Education Services,16 + (S24) 18+ Not In Educ,Client Leaving Care Grant,D62020,06/09/2010,2762164,748.09,L J  Burgundy,228307
Solihull MBC,http://statistics.data.gov.uk/id/local-authority/00CT,Children & Education Services,16 + (S24) 18+ Not In Educ,Client Leaving Care Grant,D62020,25/08/2010,PC64292,442.89,Argos Retail Group,Purchase Card Supplier
Solihull MBC,http://statistics.data.gov.uk/id/local-authority/00CT,Children & Education Services,16+ (S24) 16-18 Years,Clients Expenses,D62000,24/09/2010,2779963,207.4,Out-Reach Plus Support,202800
Solihull MBC,http://statistics.data.gov.uk/id/local-authority/00CT,Children & Education Services,16+ (S24) 16-18 Years,Clients Expenses,D62000,24/09/2010,2779959,207.4,Out-Reach Plus Support,202800
Solihull MBC,http://statistics.data.gov.uk/id/local-authority/00CT,Children & Education Services,16+ (S24) 16-18 Years,Clients Expenses,D62000,02/09/2010,2760500,207.4,Out-Reach Plus Support,202800
Solihull MBC,http://statistics.data.gov.uk/id/local-authority/00CT,Children & Education Services,16+ (S24) 16-18 Years,Clients Expenses,D62000,29/09/2010,2782013,207.4,Out-Reach Plus Support,202800
Solihull MBC,http://statistics.data.gov.uk/id/local-authority/00CT,Children & Education Services,16+ (S24) 16-18 Years,Rents For Premises,B22000,02/09/2010,2760500,520,Out-Reach Plus Support,202800
Solihull MBC,http://statistics.data.gov.uk/id/local-authority/00CT,Children & Education Services,16+ (S24) 16-18 Years,Rents For Premises,B22000,29/09/2010,2782013,1520,Out-Reach Plus Support,202800
Solihull MBC,http://statistics.data.gov.uk/id/local-authority/00CT,Children & Education Services,16+ (S24) 16-18 Years,Rents For Premises,B22000,02/09/2010,2760500,1520,Out-Reach Plus Support,202800
Solihull MBC,http://statistics.data.gov.uk/id/local-authority/00CT,Children & Education Services,16+ (S24) 16-18 Years,Rents For Premises,B22000,24/09/2010,2779959,1520,Out-Reach Plus Support,202800
Solihull MBC,http://statistics.data.gov.uk/id/local-authority/00CT,Children & Education Services,16+ (S24) 16-18 Years,Rents For Premises,B22000,24/09/2010,2779963,520,Out-Reach Plus Support,202800
Solihull MBC,http://statistics.data.gov.uk/id/local-authority/00CT,Children & Education Services,16+ (S24) 16-18 Years,Rents For Premises,B22000,24/09/2010,2779963,1520,Out-Reach Plus Support,202800
Solihull MBC,http://statistics.data.gov.uk/id/local-authority/00CT,Children & Education Services,16+ (S24) 16-18 Years,Rents For Premises,B22000,29/09/2010,2782013,520,Out-Reach Plus Support,202800
Solihull MBC,http://statistics.data.gov.uk/id/local-authority/00CT,Children & Education Services,16+ (S24) 16-18 Years,Rents For Premises,B22000,24/09/2010,2779959,520,Out-Reach Plus Support,202800
Solihull MBC,http://statistics.data.gov.uk/id/local-authority/00CT,Children & Education Services,16+ (S24) 16-18 Years,Clients Expenses,D62000,29/09/2010,2782016,207.4,Keystone Care Ltd,213082
Solihull MBC,http://statistics.data.gov.uk/id/local-authority/00CT,Children & Education Services,16+ (S24) 16-18 Years,Clients Expenses,D62000,08/09/2010,2763901,259.25,Keystone Care Ltd,213082
Solihull MBC,http://statistics.data.gov.uk/id/local-authority/00CT,Children & Education Services,16+ (S24) 16-18 Years,Clients Expenses,D62000,29/09/2010,2782005,183.7,Keystone Care Ltd,213082
Solihull MBC,http://statistics.data.gov.uk/id/local-authority/00CT,Children & Education Services,16+ (S24) 16-18 Years,Rents For Premises,B22000,29/09/2010,2782016,1740,Keystone Care Ltd,213082
Solihull MBC,http://statistics.data.gov.uk/id/local-authority/00CT,Children & Education Services,16+ (S24) 16-18 Years,Rents For Premises,B22000,08/09/2010,2763901,1674,Keystone Care Ltd,213082
Solihull MBC,http://statistics.data.gov.uk/id/local-authority/00CT,Children & Education Services,16+ (S24) 16-18 Years,Rents For Premises,B22000,29/09/2010,2782005,1620,Keystone Care Ltd,213082
Solihull MBC,http://statistics.data.gov.uk/id/local-authority/00CT,Children & Education Services,16+ (S24) 16-18 Years,Rents For Premises,B22000,23/09/2010,2779396,740.34,Bromford Corinthia Housing Association Ltd T/A Bromford Housing Group Ltd,60417
Solihull MBC,http://statistics.data.gov.uk/id/local-authority/00CT,Children & Education Services,16+ (S24) 16-18 Years,Rents For Premises,B22000,01/09/2010,2758779,7417.87,Care & Management Services Ltd,273213
Solihull MBC,http://statistics.data.gov.uk/id/local-authority/00CT,Children & Education Services,16+ (S24) 16-18 Years,Rents For Premises,B22000,01/09/2010,2758778,7417.87,Care & Management Services Ltd,273213
Solihull MBC,http://statistics.data.gov.uk/id/local-authority/00CT,Children & Education Services,16+ (S24) 16-18 Years,Rents For Premises,B22000,29/09/2010,2782033,7178.58,Care & Management Services Ltd,273213
Solihull MBC,http://statistics.data.gov.uk/id/local-authority/00CT,Children & Education Services,16+ (S24) 16-18 Years,Rents For Premises,B22000,29/09/2010,2782036,7178.57,Care & Management Services Ltd,273213
Solihull MBC,http://statistics.data.gov.uk/id/local-authority/00CT,Children & Education Services,16+ Childrens Placements,Clients Expenses,D62000,27/09/2010,2780990,207.4,Out-Reach Plus Support,202800
Solihull MBC,http://statistics.data.gov.uk/id/local-authority/00CT,Children & Education Services,16+ Childrens Placements,Clients Expenses,D62000,08/09/2010,2763927,207.4,Out-Reach Plus Support,202800
Solihull MBC,http://statistics.data.gov.uk/id/local-authority/00CT,Children & Education Services,16+ Childrens Placements,Clients Expenses,D62000,23/09/2010,2779337,51.85,Out-Reach Plus Support,202800
Solihull MBC,http://statistics.data.gov.uk/id/local-authority/00CT,Children & Education Services,16+ Childrens Placements,Rents For Premises,B22000,08/09/2010,2763927,3920,Out-Reach Plus Support,202800
Solihull MBC,http://statistics.data.gov.uk/id/local-authority/00CT,Children & Education Services,16+ Childrens Placements,Rents For Premises,B22000,27/09/2010,2780990,3920,Out-Reach Plus Support,202800
Solihull MBC,http://statistics.data.gov.uk/id/local-authority/00CT,Children & Education Services,16+ Childrens Placements,Rents For Premises,B22000,23/09/2010,2779337,1120,Out-Reach Plus Support,202800
Solihull MBC,http://statistics.data.gov.uk/id/local-authority/00CT,Children & Education Services,16+ Childrens Placements,Ext Fostering Long Stay,D50101,01/09/2010,2758782,3519.43,Fostering Solutions,107905
Solihull MBC,http://statistics.data.gov.uk/id/local-authority/00CT,Children & Education Services,16+ Childrens Placements,Ext Fostering Long Stay,D50101,29/09/2010,2782032,3405.9,Fostering Solutions,107905
Solihull MBC,http://statistics.data.gov.uk/id/local-authority/00CT,Children & Education Services,16+ Childrens Placements,Ext Fostering Long Stay,D50101,08/09/2010,2764031,3310.8,Compass Childrens Services Ltd,87908
Solihull MBC,http://statistics.data.gov.uk/id/local-authority/00CT,Children & Education Services,16+ Childrens Placements,Ext Fostering Long Stay,D50101,08/09/2010,2763880,961.2,Compass Childrens Services Ltd,87908
Solihull MBC,http://statistics.data.gov.uk/id/local-authority/00CT,Children & Education Services,16+ Childrens Placements,Rents For Premises,B22000,01/09/2010,2758764,1550,Keystone Care Ltd,213082
Solihull MBC,http://statistics.data.gov.uk/id/local-authority/00CT,Children & Education Services,16+ Childrens Placements,Rents For Premises,B22000,01/09/2010,2758776,1000,Keystone Care Ltd,213082
Solihull MBC,http://statistics.data.gov.uk/id/local-authority/00CT,Children & Education Services,16+ Childrens Placements,Ext Fostering Long Stay,D50101,23/09/2010,2779385,854,Swiis,60635
Solihull MBC,http://statistics.data.gov.uk/id/local-authority/00CT,Children & Education Services,16+ Childrens Placements,Ext Fostering Long Stay,D50101,27/09/2010,2780989,854,Swiis,60635
Solihull MBC,http://statistics.data.gov.uk/id/local-authority/00CT,Children & Education Services,16+ Childrens Placements,Ext Fostering Long Stay,D50101,23/09/2010,2779383,854,Swiis,60635
Solihull MBC,http://statistics.data.gov.uk/id/local-authority/00CT,Children & Education Services,16+ Childrens Placements,Ext Fostering Long Stay,D50101,09/09/2010,2767934,854,Swiis,60635
Solihull MBC,http://statistics.data.gov.uk/id/local-authority/00CT,Children & Education Services,16+ Childrens Placements,Ext Fostering Long Stay,D50101,01/09/2010,2758762,854,Swiis,60635
Solihull MBC,http://statistics.data.gov.uk/id/local-authority/00CT,Children & Education Services,16+ Childrens Placements,Ext Fostering Long Stay,D50101,08/09/2010,2764093,854,Swiis,60635
Solihull MBC,http://statistics.data.gov.uk/id/local-authority/00CT,Children & Education Services,16+ Childrens Placements,Foster Parents,D50000,20/09/2010,2774120,598.94,REDACTED PERSONAL DATA,64563
Solihull MBC,http://statistics.data.gov.uk/id/local-authority/00CT,Children & Education Services,16+ Childrens Placements,Other Contracted Services,E29000,10/09/2010,2768768,13800,Marlowe Child & Family Services Ltd,182902
Solihull MBC,http://statistics.data.gov.uk/id/local-authority/00CT,Children & Education Services,16+ Childrens Placements,Other Contracted Services,E29000,08/09/2010,2764090,13800,Marlowe Child & Family Services Ltd,182902
Solihull MBC,http://statistics.data.gov.uk/id/local-authority/00CT,Children & Education Services,16+ Childrens Placements,Other Contracted Services,E29000,08/09/2010,2764085,-23164.3,Marlowe Child & Family Services Ltd,182902
Solihull MBC,http://statistics.data.gov.uk/id/local-authority/00CT,Children & Education Services,16+ Southwark Cases,Clients Expenses,D62000,08/09/2010,2763902,207.4,Out-Reach Plus Support,202800
Solihull MBC,http://statistics.data.gov.uk/id/local-authority/00CT,Children & Education Services,16+ Southwark Cases,Clients Expenses,D62000,09/09/2010,2767871,207.4,Out-Reach Plus Support,202800
Solihull MBC,http://statistics.data.gov.uk/id/local-authority/00CT,Children & Education Services,16+ Southwark Cases,Clients Expenses,D62000,24/09/2010,2779955,207.4,Out-Reach Plus Support,202800
Solihull MBC,http://statistics.data.gov.uk/id/local-authority/00CT,Children & Education Services,16+ Southwark Cases,Clients Expenses,D62000,06/09/2010,2761753,207.4,Out-Reach Plus Support,202800
Solihull MBC,http://statistics.data.gov.uk/id/local-authority/00CT,Children & Education Services,16+ Southwark Cases,Clients Expenses,D62000,09/09/2010,2767938,207.4,Out-Reach Plus Support,202800
Solihull MBC,http://statistics.data.gov.uk/id/local-authority/00CT,Children & Education Services,16+ Southwark Cases,Clients Expenses,D62000,23/09/2010,2779358,103.7,Out-Reach Plus Support,202800
Solihull MBC,http://statistics.data.gov.uk/id/local-authority/00CT,Children & Education Services,16+ Southwark Cases,Clients Expenses,D62000,27/09/2010,2780984,155.55,Out-Reach Plus Support,202800
Solihull MBC,http://statistics.data.gov.uk/id/local-authority/00CT,Children & Education Services,16+ Southwark Cases,Clients Expenses,D62000,24/09/2010,2779964,51.85,Out-Reach Plus Support,202800
Solihull MBC,http://statistics.data.gov.uk/id/local-authority/00CT,Children & Education Services,16+ Southwark Cases,Rents For Premises,B22000,08/09/2010,2763902,3920,Out-Reach Plus Support,202800
Solihull MBC,http://statistics.data.gov.uk/id/local-authority/00CT,Children & Education Services,16+ Southwark Cases,Rents For Premises,B22000,09/09/2010,2767871,840,Out-Reach Plus Support,202800
Solihull MBC,http://statistics.data.gov.uk/id/local-authority/00CT,Children & Education Services,16+ Southwark Cases,Rents For Premises,B22000,09/09/2010,2767871,3080,Out-Reach Plus Support,202800
Solihull MBC,http://statistics.data.gov.uk/id/local-authority/00CT,Children & Education Services,16+ Southwark Cases,Rents For Premises,B22000,24/09/2010,2779955,2380,Out-Reach Plus Support,202800
Solihull MBC,http://statistics.data.gov.uk/id/local-authority/00CT,Children & Education Services,16+ Southwark Cases,Rents For Premises,B22000,24/09/2010,2779955,597.08,Out-Reach Plus Support,202800
Solihull MBC,http://statistics.data.gov.uk/id/local-authority/00CT,Children & Education Services,16+ Southwark Cases,Rents For Premises,B22000,24/09/2010,2779955,130,Out-Reach Plus Support,202800
Solihull MBC,http://statistics.data.gov.uk/id/local-authority/00CT,Children & Education Services,16+ Southwark Cases,Rents For Premises,B22000,06/09/2010,2761753,1520,Out-Reach Plus Support,202800
Solihull MBC,http://statistics.data.gov.uk/id/local-authority/00CT,Children & Education Services,16+ Southwark Cases,Rents For Premises,B22000,06/09/2010,2761753,520,Out-Reach Plus Support,202800
Solihull MBC,http://statistics.data.gov.uk/id/local-authority/00CT,Children & Education Services,16+ Southwark Cases,Rents For Premises,B22000,09/09/2010,2767938,1520,Out-Reach Plus Support,202800
Solihull MBC,http://statistics.data.gov.uk/id/local-authority/00CT,Children & Education Services,16+ Southwark Cases,Rents For Premises,B22000,09/09/2010,2767938,520,Out-Reach Plus Support,202800
Solihull MBC,http://statistics.data.gov.uk/id/local-authority/00CT,Children & Education Services,16+ Southwark Cases,Rents For Premises,B22000,24/09/2010,2779961,1520,Out-Reach Plus Support,202800
Solihull MBC,http://statistics.data.gov.uk/id/local-authority/00CT,Children & Education Services,16+ Southwark Cases,Rents For Premises,B22000,06/09/2010,2761971,1520,Out-Reach Plus Support,202800
Solihull MBC,http://statistics.data.gov.uk/id/local-authority/00CT,Children & Education Services,16+ Southwark Cases,Rents For Premises,B22000,06/09/2010,2761971,520,Out-Reach Plus Support,202800
Solihull MBC,http://statistics.data.gov.uk/id/local-authority/00CT,Children & Education Services,16+ Southwark Cases,Rents For Premises,B22000,24/09/2010,2779961,520,Out-Reach Plus Support,202800
Solihull MBC,http://statistics.data.gov.uk/id/local-authority/00CT,Children & Education Services,16+ Southwark Cases,Rents For Premises,B22000,02/09/2010,2760499,520,Out-Reach Plus Support,202800
Solihull MBC,http://statistics.data.gov.uk/id/local-authority/00CT,Children & Education Services,16+ Southwark Cases,Rents For Premises,B22000,02/09/2010,2760499,1520,Out-Reach Plus Support,202800
Solihull MBC,http://statistics.data.gov.uk/id/local-authority/00CT,Children & Education Services,16+ Southwark Cases,Rents For Premises,B22000,23/09/2010,2779358,312,Out-Reach Plus Support,202800
Solihull MBC,http://statistics.data.gov.uk/id/local-authority/00CT,Children & Education Services,16+ Southwark Cases,Rents For Premises,B22000,23/09/2010,2779358,1520,Out-Reach Plus Support,202800
Solihull MBC,http://statistics.data.gov.uk/id/local-authority/00CT,Children & Education Services,16+ Southwark Cases,Rents For Premises,B22000,27/09/2010,2780984,977.04,Out-Reach Plus Support,202800
Solihull MBC,http://statistics.data.gov.uk/id/local-authority/00CT,Children & Education Services,16+ Southwark Cases,Rents For Premises,B22000,27/09/2010,2780984,364,Out-Reach Plus Support,202800
Solihull MBC,http://statistics.data.gov.uk/id/local-authority/00CT,Children & Education Services,16+ Southwark Cases,Rents For Premises,B22000,24/09/2010,2779987,364,Out-Reach Plus Support,202800
Solihull MBC,http://statistics.data.gov.uk/id/local-authority/00CT,Children & Education Services,16+ Southwark Cases,Rents For Premises,B22000,24/09/2010,2779987,597.08,Out-Reach Plus Support,202800
Solihull MBC,http://statistics.data.gov.uk/id/local-authority/00CT,Children & Education Services,16+ Southwark Cases,Rents For Premises,B22000,24/09/2010,2779964,234,Out-Reach Plus Support,202800
Solihull MBC,http://statistics.data.gov.uk/id/local-authority/00CT,Children & Education Services,16+ Southwark Cases,Rents For Premises,B22000,24/09/2010,2779964,217.12,Out-Reach Plus Support,202800
Solihull MBC,http://statistics.data.gov.uk/id/local-authority/00CT,Children & Education Services,16+ Southwark Cases,Rents For Premises,B22000,02/09/2010,2760498,1550,Keystone Care Ltd,213082
Solihull MBC,http://statistics.data.gov.uk/id/local-authority/00CT,Children & Education Services,16+ Southwark Cases,Rents For Premises,B22000,29/09/2010,2782007,1500,Keystone Care Ltd,213082
Solihull MBC,http://statistics.data.gov.uk/id/local-authority/00CT,Children & Education Services,16+ Southwark Cases,Rents For Premises,B22000,09/09/2010,2767935,800,Keystone Care Ltd,213082
Solihull MBC,http://statistics.data.gov.uk/id/local-authority/00CT,Children & Education Services,16+ Southwark Cases,Client Leaving Care Grant,D62020,24/09/2010,2780139,476.59,Appliance World,249913
Solihull MBC,http://statistics.data.gov.uk/id/local-authority/00CT,Children & Education Services,16+ Southwark Cases,Client Leaving Care Grant,D62020,24/09/2010,2780139,10.01,Appliance World,249913
Solihull MBC,http://statistics.data.gov.uk/id/local-authority/00CT,Children & Education Services,16+ Southwark Cases,Rents For Premises,B22000,09/09/2010,2767773,1864.29,Care & Management Services Ltd,273213
Solihull MBC,http://statistics.data.gov.uk/id/local-authority/00CT,Central Services to the Public,21 Poplar Rd,Cleaning Contracts,B40001,13/09/2010,2769695,846.27,Connaught Environmental Ltd,244613
Solihull MBC,http://statistics.data.gov.uk/id/local-authority/00CT,Central Services to the Public,21 Poplar Rd,Cleaning Contracts,B40001,07/09/2010,2762949,846.27,Connaught Environmental Ltd,244613
Solihull MBC,http://statistics.data.gov.uk/id/local-authority/00CT,Central Services to the Public,21 Poplar Rd,Business Rates,B20000,14/09/2010,2770145,545,Solihull MBC,80026
Solihull MBC,http://statistics.data.gov.uk/id/local-authority/00CT,Children & Education Services,2Yr Old Free E Learn/Care,Agency Staff,A35000,06/09/2010,2762264,842.92,Reed Specialist Recruitment Ltd,255596
Solihull MBC,http://statistics.data.gov.uk/id/local-authority/00CT,Children & Education Services,2Yr Old Free E Learn/Care,Agency Staff,A35000,27/09/2010,2781274,842.92,Reed Specialist Recruitment Ltd,255596
Solihull MBC,http://statistics.data.gov.uk/id/local-authority/00CT,Children & Education Services,2Yr Old Free E Learn/Care,Agency Staff,A35000,21/09/2010,2775125,842.92,Reed Specialist Recruitment Ltd,255596
Solihull MBC,http://statistics.data.gov.uk/id/local-authority/00CT,Children & Education Services,2Yr Old Free E Learn/Care,Agency Staff,A35000,14/09/2010,2770549,669.21,Reed Specialist Recruitment Ltd,255596
Solihull MBC,http://statistics.data.gov.uk/id/local-authority/00CT,Highways & Transport Services,A34 Travel Planning,Professional Fees,D51000,14/09/2010,2770357,8236.92,WSP UK,217189
Solihull MBC,http://statistics.data.gov.uk/id/local-authority/00CT,Highways & Transport Services,A34 Travel Planning,Professional Fees,D51000,01/09/2010,2758780,6258.22,WSP UK,217189
Solihull MBC,http://statistics.data.gov.uk/id/local-authority/00CT,Highways & Transport Services,A45 Cov Rd Railway Bridge South,Consultants,Y31000,14/09/2010,2770321,1880.12,WSP UK,217189
Solihull MBC,http://statistics.data.gov.uk/id/local-authority/00CT,Highways & Transport Services,A45 De-Truncked Structure,Consultants,Y31000,14/09/2010,2770333,5347.78,WSP UK,217189
Solihull MBC,http://statistics.data.gov.uk/id/local-authority/00CT,Highways & Transport Services,A45 De-Truncked Structure,Contractors,Y21000,14/09/2010,2770302,500,Warwickshire County Council,8596
Solihull MBC,http://statistics.data.gov.uk/id/local-authority/00CT,Highways & Transport Services,A45 De-Truncked Structure,Contractors,Y21000,17/09/2010,2773858,13814.71,Ringway,131294
Solihull MBC,http://statistics.data.gov.uk/id/local-authority/00CT,Highways & Transport Services,A45 De-Trunk-Rev Grant,Other Contracted Services,E29000,16/09/2010,2773189,2838.63,Ringway,131294
Solihull MBC,http://statistics.data.gov.uk/id/local-authority/00CT,Highways & Transport Services,A452 Kenilworth Rd / Bradnocks Marsh Ln,Consultants,Y31000,13/09/2010,2769639,11937.63,Waterman Aspen Limited,83616
Solihull MBC,http://statistics.data.gov.uk/id/local-authority/00CT,Highways & Transport Services,A452 Kenilworth Rd / Bradnocks Marsh Ln,Contractors,Y21000,07/09/2010,2763350,-1172.05,Ringway,131294
Solihull MBC,http://statistics.data.gov.uk/id/local-authority/00CT,Central Services to the Public,Accountancy,IT Equipment & Software,D32000,01/09/2010,2758975,79.66,Supplies Team Ltd,21741
Solihull MBC,http://statistics.data.gov.uk/id/local-authority/00CT,Central Services to the Public,Accountancy,Training,A32000,14/09/2010,2770777,1099,Solihull College,7876
Solihull MBC,http://statistics.data.gov.uk/id/local-authority/00CT,Central Services to the Public,Accounts Payable,Postage & Courier Services,D43000,08/09/2010,2764109,549.75,Royal Mail Group PLC,96519
Solihull MBC,http://statistics.data.gov.uk/id/local-authority/00CT,Central Services to the Public,Accounts Payable,IT Equipment & Software,D32000,01/09/2010,2758975,500,Supplies Team Ltd,21741
Solihull MBC,http://statistics.data.gov.uk/id/local-authority/00CT,Cultural & Related Services,Active Workforce,Room Hire/ Premises Hire,D95000,16/09/2010,2772930,425.87,Parkwood Leisure,133632
Solihull MBC,http://statistics.data.gov.uk/id/local-authority/00CT,Cultural & Related Services,Active Workforce,IT Equipment & Software,D32000,01/09/2010,2758772,499,Probrand Ltd,7357
Solihull MBC,http://statistics.data.gov.uk/id/local-authority/00CT,Cultural & Related Services,Active Workforce,Training,A32000,10/09/2010,2768471,515,REDACTED PERSONAL DATA,279939
Solihull MBC,http://statistics.data.gov.uk/id/local-authority/00CT,Children & Education Services,Adoption Team,Other Premise Costs,B43000,14/09/2010,2770310,435,Patrol Alarm Systems Ltd,7199
Solihull MBC,http://statistics.data.gov.uk/id/local-authority/00CT,Children & Education Services,Adoption Team,Cleaning Contracts,B40001,07/09/2010,2762949,346.2,Connaught Environmental Ltd,244613
Solihull MBC,http://statistics.data.gov.uk/id/local-authority/00CT,Children & Education Services,Adoption Team,Cleaning Contracts,B40001,13/09/2010,2769695,346.2,Connaught Environmental Ltd,244613
Solihull MBC,http://statistics.data.gov.uk/id/local-authority/00CT,Children & Education Services,Adoption Team,Business Rates,B20000,14/09/2010,2770145,405,Solihull MBC,80026
Solihull MBC,http://statistics.data.gov.uk/id/local-authority/00CT,Adult Social Care,ADSS Directorate,Agency Staff,A35000,10/09/2010,2768772,9990,Care And Health Solutions Ltd,280099
Solihull MBC,http://statistics.data.gov.uk/id/local-authority/00CT,Adult Social Care,ADSS Directorate,Other Contracted Services,E29000,07/09/2010,2763164,276262.85,Solihull Care Trust,153268
Solihull MBC,http://statistics.data.gov.uk/id/local-authority/00CT,Adult Social Care,ADSS Directorate,Other Contracted Services,E29000,07/09/2010,2763185,-250000,Solihull Care Trust,153268
Solihull MBC,http://statistics.data.gov.uk/id/local-authority/00CT,Adult Social Care,ADSS Directorate,Other Fees,D52000,27/09/2010,Direct Debit Payment,23.3,ALLPay-Net Limited,91346
Solihull MBC,http://statistics.data.gov.uk/id/local-authority/00CT,Adult Social Care,ADSS Directorate,Other Fees,D52000,27/09/2010,Direct Debit Payment,20,ALLPay-Net Limited,91346
Solihull MBC,http://statistics.data.gov.uk/id/local-authority/00CT,Adult Social Care,ADSS Recover Client Conts,Other Contracted Services,E29000,10/09/2010,2768577,104706.21,Solihull Care Trust,153268
Solihull MBC,http://statistics.data.gov.uk/id/local-authority/00CT,Adult Social Care,ADSS Recover Client Conts,Other Contracted Services,E29000,10/09/2010,2768578,14811.86,Solihull Care Trust,153268
Solihull MBC,http://statistics.data.gov.uk/id/local-authority/00CT,Adult Social Care,ADSS Recover Client Conts,Other Contracted Services,E29000,10/09/2010,2768579,10325.28,Solihull Care Trust,153268
Solihull MBC,http://statistics.data.gov.uk/id/local-authority/00CT,Adult Social Care,ADSS Recover Client Conts,Other Contracted Services,E29000,10/09/2010,2768581,-284.46,Solihull Care Trust,153268
Solihull MBC,http://statistics.data.gov.uk/id/local-authority/00CT,Adult Social Care,ADSS Recover Client Conts,Other Contracted Services,E29000,10/09/2010,2768581,-1204.5,Solihull Care Trust,153268
Solihull MBC,http://statistics.data.gov.uk/id/local-authority/00CT,Children & Education Services,Adult Safeguard Learning,Other Contracted Services,E29000,13/09/2010,2769772,87160,Solihull College,7876
Solihull MBC,http://statistics.data.gov.uk/id/local-authority/00CT,Children & Education Services,Adult Safeguard Learning,Other Contracted Services,E29000,06/09/2010,2762120,3945,Tribal Education Ltd,136613
Solihull MBC,http://statistics.data.gov.uk/id/local-authority/00CT,Children & Education Services,AHDC - Short Breaks,Other Contracted Services,E29000,24/09/2010,2780049,1105.55,Solihull Life Opportunities,230266
Solihull MBC,http://statistics.data.gov.uk/id/local-authority/00CT,Children & Education Services,AHDC - Short Breaks,Other Contracted Services,E29000,24/09/2010,2780049,5973.74,Solihull Life Opportunities,230266
Solihull MBC,http://statistics.data.gov.uk/id/local-authority/00CT,Children & Education Services,AHDC - Short Breaks,Other Contracted Services,E29000,24/09/2010,2780051,15746.74,Solihull Life Opportunities,230266
Solihull MBC,http://statistics.data.gov.uk/id/local-authority/00CT,Children & Education Services,Alcott Hall J&I,Building Maint Day To Day,B31001,10/09/2010,2768786,4629.76,British Gas Business,11498
Solihull MBC,http://statistics.data.gov.uk/id/local-authority/00CT,Children & Education Services,Alderbrook,Employee Advertising,A34001,27/09/2010,2780547,496.57,Trinity Mirror Midlands Ltd,223591
Solihull MBC,http://statistics.data.gov.uk/id/local-authority/00CT,Children & Education Services,Alderbrook,Contractors,Y21000,27/09/2010,2780536,6100,Dendwy Ltd,244830
Solihull MBC,http://statistics.data.gov.uk/id/local-authority/00CT,Children & Education Services,Alderbrook,Contractors,Y21000,30/09/2010,2782471,4931.3,RTM Contractors Ltd,252258
Solihull MBC,http://statistics.data.gov.uk/id/local-authority/00CT,Children & Education Services,Alderbrook,Contractors,Y21000,10/09/2010,2768435,4000,RTM Contractors Ltd,252258
Solihull MBC,http://statistics.data.gov.uk/id/local-authority/00CT,Children & Education Services,Alderbrook,Contractors,Y21000,27/09/2010,2780542,591.14,Dendwy Ltd,244830
Solihull MBC,http://statistics.data.gov.uk/id/local-authority/00CT,Children & Education Services,Alderbrook,Contractors,Y21000,15/09/2010,2771236,550,RTM Contractors Ltd,252258
Solihull MBC,http://statistics.data.gov.uk/id/local-authority/00CT,Children & Education Services,Alderbrook,Building Maint Planned,B31002,23/09/2010,2779271,843,A V Design Systems Ltd,281088
Solihull MBC,http://statistics.data.gov.uk/id/local-authority/00CT,Children & Education Services,Alderbrook,Furniture & Equipment,D10000,10/09/2010,2768403,857,Matrix Display Systems Ltd,41909
Solihull MBC,http://statistics.data.gov.uk/id/local-authority/00CT,Children & Education Services,Alderbrook,Hardware,Y13001,21/09/2010,2775423,1275,Matrix Display Systems Ltd,41909
Solihull MBC,http://statistics.data.gov.uk/id/local-authority/00CT,Children & Education Services,Alderbrook,Hardware,Y13001,21/09/2010,2775445,1268,Matrix Display Systems Ltd,41909
Solihull MBC,http://statistics.data.gov.uk/id/local-authority/00CT,Children & Education Services,Alderbrook,Consumables,D32907,15/09/2010,2771239,780.51,Cartridge World Solihull,90956
Solihull MBC,http://statistics.data.gov.uk/id/local-authority/00CT,Children & Education Services,Alderbrook,Consumables,D32907,13/09/2010,2769242,780.01,Cartridge World Solihull,90956
Solihull MBC,http://statistics.data.gov.uk/id/local-authority/00CT,Children & Education Services,Alderbrook,Contractors,Y21000,27/09/2010,2780457,950,Research Machines PLC,7499
Solihull MBC,http://statistics.data.gov.uk/id/local-authority/00CT,Children & Education Services,Alderbrook,Capitation,D11001,29/09/2010,2782211,318,Pisces,7281
Solihull MBC,http://statistics.data.gov.uk/id/local-authority/00CT,Children & Education Services,Alderbrook,Capitation,D11001,15/09/2010,2771306,740.45,West Mercia Supplies,8629
Solihull MBC,http://statistics.data.gov.uk/id/local-authority/00CT,Children & Education Services,Alderbrook,Capitation,D11001,15/09/2010,2771310,698.35,West Mercia Supplies,8629
Solihull MBC,http://statistics.data.gov.uk/id/local-authority/00CT,Children & Education Services,Alderbrook,Capitation,D11001,15/09/2010,2771310,2.45,West Mercia Supplies,8629
Solihull MBC,http://statistics.data.gov.uk/id/local-authority/00CT,Children & Education Services,Alderbrook,Capitation,D11001,15/09/2010,2771314,696.87,West Mercia Supplies,8629
Solihull MBC,http://statistics.data.gov.uk/id/local-authority/00CT,Children & Education Services,Alderbrook,Materials For Resale,D11202,29/09/2010,2782211,1218.5,Pisces,7281
Solihull MBC,http://statistics.data.gov.uk/id/local-authority/00CT,Children & Education Services,Alderbrook,Capitation,D11001,09/09/2010,2767987,1750,Mainframe Engineeering Ltd,207779
Solihull MBC,http://statistics.data.gov.uk/id/local-authority/00CT,Children & Education Services,Alderbrook,Capitation,D11001,24/09/2010,2780055,765,CTC Kingshurst Academy,10140
Solihull MBC,http://statistics.data.gov.uk/id/local-authority/00CT,Children & Education Services,Alderbrook,Link Courses,D52003,27/09/2010,2780556,950,BXL Services,228729
Solihull MBC,http://statistics.data.gov.uk/id/local-authority/00CT,Children & Education Services,Alderbrook,Link Courses,D52003,27/09/2010,2780554,-950,BXL Services,228729
Solihull MBC,http://statistics.data.gov.uk/id/local-authority/00CT,Children & Education Services,Alderbrook,Professional Fees,D51000,10/09/2010,2768354,1460,Field Lockhart Associates,280351
Solihull MBC,http://statistics.data.gov.uk/id/local-authority/00CT,Children & Education Services,Alderbrook,Agency Staff: Teachers,A35001,03/09/2010,2761133,981.75,Teaching Personnel,33553
Solihull MBC,http://statistics.data.gov.uk/id/local-authority/00CT,Children & Education Services,Alderbrook,Building Maint Day To Day,B31001,09/09/2010,2768102,623,Purdie Floors Ltd,7379
Solihull MBC,http://statistics.data.gov.uk/id/local-authority/00CT,Children & Education Services,Alderbrook,Building Maint Planned,B31002,09/09/2010,2768130,2537,Purdie Floors Ltd,7379
Solihull MBC,http://statistics.data.gov.uk/id/local-authority/00CT,Children & Education Services,Alderbrook,Building Maint Planned,B31002,09/09/2010,2768130,1532,Purdie Floors Ltd,7379
Solihull MBC,http://statistics.data.gov.uk/id/local-authority/00CT,Children & Education Services,Alderbrook,Contractors,Y21000,15/09/2010,2771238,530,Acorn Floors,59129
Solihull MBC,http://statistics.data.gov.uk/id/local-authority/00CT,Children & Education Services,Alderbrook,Contractors,Y21000,15/09/2010,2771238,386,Acorn Floors,59129
Solihull MBC,http://statistics.data.gov.uk/id/local-authority/00CT,Children & Education Services,Alderbrook,Contractors,Y21000,15/09/2010,2771238,594,Acorn Floors,59129
Solihull MBC,http://statistics.data.gov.uk/id/local-authority/00CT,Children & Education Services,Alderbrook,Catering Provisions,D20000,21/09/2010,2775304,168.87,Delice De France PLC,68194
Solihull MBC,http://statistics.data.gov.uk/id/local-authority/00CT,Children & Education Services,Alderbrook,Other Transport Costs,C42000,13/09/2010,2769386,490.49,Newman Motor Engineers,86737
Solihull MBC,http://statistics.data.gov.uk/id/local-authority/00CT,Children & Education Services,Alderbrook,Other Transport Costs,C42000,13/09/2010,2769386,50,Newman Motor Engineers,86737
Solihull MBC,http://statistics.data.gov.uk/id/local-authority/00CT,Children & Education Services,Alderbrook,Maintenance Of Grounds,B30000,09/09/2010,2768098,741.96,Blooming Gardens Ltd,8970
Solihull MBC,http://statistics.data.gov.uk/id/local-authority/00CT,Children & Education Services,Alderbrook,Maintenance Of Grounds,B30000,03/09/2010,2761233,500,Blooming Gardens Ltd,8970
Solihull MBC,http://statistics.data.gov.uk/id/local-authority/00CT,Children & Education Services,Alderbrook,Contractors,Y21000,10/09/2010,2768414,2784,RM Education PLC,152589
Solihull MBC,http://statistics.data.gov.uk/id/local-authority/00CT,Children & Education Services,Alderbrook,Contractors,Y21000,10/09/2010,2768422,928,RM Education PLC,152589
Solihull MBC,http://statistics.data.gov.uk/id/local-authority/00CT,Children & Education Services,Alderbrook,Hardware,Y13001,13/09/2010,2769391,23190.57,RM Education PLC,152589
Solihull MBC,http://statistics.data.gov.uk/id/local-authority/00CT,Children & Education Services,Alderbrook,Contractors,Y21000,10/09/2010,2768530,2200,M P Jobson,33832
Solihull MBC,http://statistics.data.gov.uk/id/local-authority/00CT,Children & Education Services,Alderbrook,Contractors,Y21000,30/09/2010,2783724,1300,M P Jobson,33832
Solihull MBC,http://statistics.data.gov.uk/id/local-authority/00CT,Children & Education Services,Alderbrook,Contractors,Y21000,08/09/2010,2764156,900,REDACTED PERSONAL DATA,134346
Solihull MBC,http://statistics.data.gov.uk/id/local-authority/00CT,Children & Education Services,Alderbrook,Contractors,Y21000,30/09/2010,2783810,450,M P Jobson,33832
Solihull MBC,http://statistics.data.gov.uk/id/local-authority/00CT,Children & Education Services,Alderbrook,Furniture & Equipment,D10000,10/09/2010,2768554,3480,Parkmere Products,103620
Solihull MBC,http://statistics.data.gov.uk/id/local-authority/00CT,Children & Education Services,Alderbrook,Furniture & Equipment,D10000,10/09/2010,2768761,1402.5,Parkmere Products,103620
Solihull MBC,http://statistics.data.gov.uk/id/local-authority/00CT,Children & Education Services,Alderbrook,Furniture & Equipment,D10000,13/09/2010,2769227,1354.76,Parkmere Products,103620
Solihull MBC,http://statistics.data.gov.uk/id/local-authority/00CT,Children & Education Services,Alderbrook,Maintenance Of Grounds,B30000,21/09/2010,2775389,520,A.A.C.(Road Markings)Limited,107711
Solihull MBC,http://statistics.data.gov.uk/id/local-authority/00CT,Children & Education Services,Alderbrook,Software & Services Purchase,D32902,15/09/2010,2771237,661,Richard Hemes,134346
Solihull MBC,http://statistics.data.gov.uk/id/local-authority/00CT,Children & Education Services,Alderbrook,Visits & Pupil Activities,D52002,06/09/2010,2762440,2800,Pavilion Tours,113846
Solihull MBC,http://statistics.data.gov.uk/id/local-authority/00CT,Children & Education Services,Alderbrook,Photocopying,D40001,13/09/2010,2769239,2167.73,Canon (UK) Ltd,9772
Solihull MBC,http://statistics.data.gov.uk/id/local-authority/00CT,Children & Education Services,Alderbrook,Health & Safety,B43003,21/09/2010,2774963,1034.8,SG World Ltd,132275
Solihull MBC,http://statistics.data.gov.uk/id/local-authority/00CT,Children & Education Services,Alderbrook,Building Maint Day To Day,B31001,13/09/2010,2769447,100,M Kenny Decorators Ltd,6476
Solihull MBC,http://statistics.data.gov.uk/id/local-authority/00CT,Children & Education Services,Alderbrook,Building Maint Day To Day,B31001,13/09/2010,2769447,500,M Kenny Decorators Ltd,6476
Solihull MBC,http://statistics.data.gov.uk/id/local-authority/00CT,Children & Education Services,Alderbrook,Building Maint Planned,B31002,13/09/2010,2769397,1800,M Kenny Decorators Ltd,6476
Solihull MBC,http://statistics.data.gov.uk/id/local-authority/00CT,Children & Education Services,Alderbrook,Building Maint Planned,B31002,13/09/2010,2769395,1100,M Kenny Decorators Ltd,6476
Solihull MBC,http://statistics.data.gov.uk/id/local-authority/00CT,Children & Education Services,Alderbrook,Postage & Courier Services,D43000,30/09/2010,2783844,513,Purchase Power,7378
Solihull MBC,http://statistics.data.gov.uk/id/local-authority/00CT,Children & Education Services,Alderbrook,Printing,D40000,14/09/2010,2770373,2690,L G Davis,34645
Solihull MBC,http://statistics.data.gov.uk/id/local-authority/00CT,Children & Education Services,Alderbrook,Printing,D40000,09/09/2010,2767858,968.75,Waveprint,245371
Solihull MBC,http://statistics.data.gov.uk/id/local-authority/00CT,Children & Education Services,Alderbrook,Capitation,D11001,27/09/2010,2780458,647.2,Eastern Shires Purchasing Organisation,6363
Solihull MBC,http://statistics.data.gov.uk/id/local-authority/00CT,Children & Education Services,Alderbrook,Building Maint Day To Day,B31001,14/09/2010,2770365,945,REDACTED PERSONAL DATA,179378
Solihull MBC,http://statistics.data.gov.uk/id/local-authority/00CT,Children & Education Services,Alderbrook,Capitation,D11001,21/09/2010,2774989,3210,Gymfix,75116
Solihull MBC,http://statistics.data.gov.uk/id/local-authority/00CT,Children & Education Services,Alderbrook,Professional Fees,D51000,30/09/2010,2782690,1600,Steve Watson Consultancy Ltd,268779
Solihull MBC,http://statistics.data.gov.uk/id/local-authority/00CT,Children & Education Services,Alderbrook,Building Maint Day To Day,B31001,16/09/2010,2773108,587.34,Initial Washroom Solutions,132527
Solihull MBC,http://statistics.data.gov.uk/id/local-authority/00CT,Children & Education Services,Alderbrook,Refuse Collection,B43001,16/09/2010,2773110,937.53,Veolia Environmental Services,207518
Solihull MBC,http://statistics.data.gov.uk/id/local-authority/00CT,Children & Education Services,Alderbrook Arts College,IT Equipment & Software,D32000,07/09/2010,2763261,629.77,PC World Business Direct,7208
Solihull MBC,http://statistics.data.gov.uk/id/local-authority/00CT,Children & Education Services,Alderbrook Arts College,Visits & Pupil Activities,D52002,23/09/2010,2779253,760,The Nec Group,9329
Solihull MBC,http://statistics.data.gov.uk/id/local-authority/00CT,Children & Education Services,Alderbrook Arts College,Furniture & Equipment,D10000,30/09/2010,2783809,1901.24,Stage Electrics,9516
Solihull MBC,http://statistics.data.gov.uk/id/local-authority/00CT,Children & Education Services,Alderbrook Mod Phase 3,Contractors,Y21000,02/09/2010,2760737,200421.64,Gaj P & R M Limited T/A Gaj Planned & Reactive Maintenance Limited,203378
Solihull MBC,http://statistics.data.gov.uk/id/local-authority/00CT,Children & Education Services,Alderbrook TCF Dining,Contractors,Y21000,24/09/2010,2780367,2210,Window & Door Maintenance Services Ltd,123062
Solihull MBC,http://statistics.data.gov.uk/id/local-authority/00CT,Children & Education Services,All Risks School Fund,Other Provisions,U12000,24/09/2010,2780381,2157,Disaster Recovery Midlands Ltd,232626
Solihull MBC,http://statistics.data.gov.uk/id/local-authority/00CT,Cultural & Related Services,Allotments,Maintenance Of Grounds,B30000,16/09/2010,2773052,-600,Park Lane Fencing,103223
Solihull MBC,http://statistics.data.gov.uk/id/local-authority/00CT,Cultural & Related Services,Allotments,Maintenance Of Grounds,B30000,16/09/2010,2773052,5313,Park Lane Fencing,103223
Solihull MBC,http://statistics.data.gov.uk/id/local-authority/00CT,Cultural & Related Services,Allotments,Maintenance Of Grounds,B30000,16/09/2010,2773052,3855.19,Park Lane Fencing,103223
Solihull MBC,http://statistics.data.gov.uk/id/local-authority/00CT,Cultural & Related Services,Allotments,Maintenance Of Grounds,B30000,24/09/2010,2779969,3700,Hodges & Lawrence Ltd,5870
Solihull MBC,http://statistics.data.gov.uk/id/local-authority/00CT,Cultural & Related Services,Allotments,Maintenance Of Grounds,B30000,10/09/2010,2768538,840,Family Care Trust (Solihull),5472
Solihull MBC,http://statistics.data.gov.uk/id/local-authority/00CT,Cultural & Related Services,Allotments,Maintenance Of Grounds,B30000,27/09/2010,2780824,3187.5,Glendale Countryside,24505
Solihull MBC,http://statistics.data.gov.uk/id/local-authority/00CT,Highways & Transport Services,Anita Construction,Contractors,Y21000,22/09/2010,2775878,66540,Envitia,235048
Solihull MBC,http://statistics.data.gov.uk/id/local-authority/00CT,Highways & Transport Services,Anita Construction,Consultants,Y31000,14/09/2010,2770345,1132.95,WSP UK,217189
Solihull MBC,http://statistics.data.gov.uk/id/local-authority/00CT,Highways & Transport Services,Anita Construction,Consultants,Y31000,14/09/2010,2770341,511.5,WSP UK,217189
Solihull MBC,http://statistics.data.gov.uk/id/local-authority/00CT,Highways & Transport Services,Anita Construction,Contractors,Y21000,14/09/2010,2770346,10582.6,WSP UK,217189
Solihull MBC,http://statistics.data.gov.uk/id/local-authority/00CT,Highways & Transport Services,Anita Construction,Contractors,Y21000,14/09/2010,2770347,3498.74,WSP UK,217189
Solihull MBC,http://statistics.data.gov.uk/id/local-authority/00CT,Highways & Transport Services,Anita Construction,Contractors,Y21000,14/09/2010,2770340,1668.84,WSP UK,217189
Solihull MBC,http://statistics.data.gov.uk/id/local-authority/00CT,Highways & Transport Services,Anita Construction,Contractors,Y21000,23/09/2010,2779490,1182.94,Central Networks PLC,126772
Solihull MBC,http://statistics.data.gov.uk/id/local-authority/00CT,Highways & Transport Services,Anita Construction,Contractors,Y21000,07/09/2010,2763415,541378.37,Ringway,131294
Solihull MBC,http://statistics.data.gov.uk/id/local-authority/00CT,Highways & Transport Services,Anita Construction,Contractors,Y21000,07/09/2010,2763410,249228.28,Ringway,131294
Solihull MBC,http://statistics.data.gov.uk/id/local-authority/00CT,Highways & Transport Services,Anita Construction,Contractors,Y21000,07/09/2010,2763409,162090.25,Ringway,131294
Solihull MBC,http://statistics.data.gov.uk/id/local-authority/00CT,Highways & Transport Services,Anita Construction,Contractors,Y21000,07/09/2010,2763417,28084.43,Ringway,131294
Solihull MBC,http://statistics.data.gov.uk/id/local-authority/00CT,Highways & Transport Services,Anita Construction,Contractors,Y21000,07/09/2010,2763411,25356.58,Ringway,131294
Solihull MBC,http://statistics.data.gov.uk/id/local-authority/00CT,Highways & Transport Services,Anita Construction,Contractors,Y21000,07/09/2010,2763420,21665.55,Ringway,131294
Solihull MBC,http://statistics.data.gov.uk/id/local-authority/00CT,Highways & Transport Services,Anita Construction,Contractors,Y21000,07/09/2010,2763421,14396.37,Ringway,131294
Solihull MBC,http://statistics.data.gov.uk/id/local-authority/00CT,Highways & Transport Services,Anita Construction,Contractors,Y21000,07/09/2010,2763416,10389.63,Ringway,131294
Solihull MBC,http://statistics.data.gov.uk/id/local-authority/00CT,Highways & Transport Services,Anita Construction,Contractors,Y21000,07/09/2010,2763418,3523.06,Ringway,131294
Solihull MBC,http://statistics.data.gov.uk/id/local-authority/00CT,Highways & Transport Services,Anita Construction,Contractors,Y21000,07/09/2010,2763412,1508.93,Ringway,131294
Solihull MBC,http://statistics.data.gov.uk/id/local-authority/00CT,Highways & Transport Services,Anita Construction,Contractors,Y21000,07/09/2010,2763414,-2110.43,Ringway,131294
Solihull MBC,http://statistics.data.gov.uk/id/local-authority/00CT,Highways & Transport Services,Anita Construction,Contractors,Y21000,07/09/2010,2763413,-7615.35,Ringway,131294
Solihull MBC,http://statistics.data.gov.uk/id/local-authority/00CT,Highways & Transport Services,Anita Construction,Contractors,Y21000,10/09/2010,2768682,30172.76,C.A. Telecom UK Ltd,248623
Solihull MBC,http://statistics.data.gov.uk/id/local-authority/00CT,Highways & Transport Services,Anita Construction,Contractors,Y21000,10/09/2010,2768683,16130.1,C.A. Telecom UK Ltd,248623
Solihull MBC,http://statistics.data.gov.uk/id/local-authority/00CT,Environmental & Regulatory Services,Anti Graffiti,Other Contracted Services,E29000,01/09/2010,2758805,19684.88,Solihull Community Housing,102685
Solihull MBC,http://statistics.data.gov.uk/id/local-authority/00CT,Central Services to the Public,Application Support,Professional Fees,D51000,27/09/2010,2780700,5706.3,Aston Carter Ltd,174619
Solihull MBC,http://statistics.data.gov.uk/id/local-authority/00CT,Central Services to the Public,Appln Software,IT Equipment & Software,D32000,06/09/2010,2762355,-6388,Open Text UK Ltd,88266
Solihull MBC,http://statistics.data.gov.uk/id/local-authority/00CT,Central Services to the Public,Appln Software,IT Equipment & Software,D32000,06/09/2010,2762355,6388,Open Text UK Ltd,88266
Solihull MBC,http://statistics.data.gov.uk/id/local-authority/00CT,Central Services to the Public,Appln Software,IT Equipment & Software,D32000,06/09/2010,2762359,6388,Open Text UK Ltd,88266
Solihull MBC,http://statistics.data.gov.uk/id/local-authority/00CT,Central Services to the Public,Appln Software,IT Equipment & Software,D32000,06/09/2010,2762359,-6388,Open Text UK Ltd,88266
Solihull MBC,http://statistics.data.gov.uk/id/local-authority/00CT,Central Services to the Public,Appln Software,IT Equipment & Software,D32000,30/09/2010,2783843,4644.52,Siteimprove,190621
Solihull MBC,http://statistics.data.gov.uk/id/local-authority/00CT,Central Services to the Public,Appln Software,IT Equipment & Software,D32000,07/09/2010,2762928,2303.22,Northgate Information Solutions UK Limited,167198
Solihull MBC,http://statistics.data.gov.uk/id/local-authority/00CT,Central Services to the Public,Appln Software,IT Equipment & Software,D32000,21/09/2010,2775074,978.86,Northgate Information Solutions UK Limited,167198
Solihull MBC,http://statistics.data.gov.uk/id/local-authority/00CT,Adult Social Care,Appointee Spend- I-Proc,General Creditors,S00000,06/09/2010,2762415,523.86,St Clements Nursing Home,7965
Solihull MBC,http://statistics.data.gov.uk/id/local-authority/00CT,Adult Social Care,Appointee Spend- I-Proc,General Creditors,S00000,06/09/2010,2762453,584.31,Orton Manor Nursing Home,109712
Solihull MBC,http://statistics.data.gov.uk/id/local-authority/00CT,Adult Social Care,Appointee Spend- I-Proc,General Creditors,S00000,06/09/2010,2762507,6125.87,Craegmoor Healthcare Ltd,87853
Solihull MBC,http://statistics.data.gov.uk/id/local-authority/00CT,Adult Social Care,Appointee Spend- I-Proc,General Creditors,S00000,06/09/2010,2762413,1864.96,St Cloud Care PLC,184624
Solihull MBC,http://statistics.data.gov.uk/id/local-authority/00CT,Adult Social Care,Appointee Spend- I-Proc,General Creditors,S00000,06/09/2010,2762493,1863.33,Dudley Court Residential Home,244309
Solihull MBC,http://statistics.data.gov.uk/id/local-authority/00CT,Adult Social Care,Appointee Spend- I-Proc,General Creditors,S00000,30/09/2010,2783901,1863.33,Dudley Court Residential Home,244309
Solihull MBC,http://statistics.data.gov.uk/id/local-authority/00CT,Adult Social Care,Appointee Spend- I-Proc,General Creditors,S00000,06/09/2010,2762450,984.03,Solihull Care Ltd,7877
Solihull MBC,http://statistics.data.gov.uk/id/local-authority/00CT,Adult Social Care,Appointee Spend- I-Proc,General Creditors,S00000,06/09/2010,2762463,899.8,Kingsclear House Ltd,253750
Solihull MBC,http://statistics.data.gov.uk/id/local-authority/00CT,Adult Social Care,Appointee Spend- I-Proc,General Creditors,S00000,06/09/2010,2762462,889.04,Kingsclear House Ltd,253750
Solihull MBC,http://statistics.data.gov.uk/id/local-authority/00CT,Adult Social Care,Appointee Spend- I-Proc,General Creditors,S00000,06/09/2010,2762470,870.77,Kingsclear House Ltd,253750
Solihull MBC,http://statistics.data.gov.uk/id/local-authority/00CT,Adult Social Care,Appointee Spend- I-Proc,General Creditors,S00000,30/09/2010,2783892,860.36,Kingsclear House Ltd,253750
Solihull MBC,http://statistics.data.gov.uk/id/local-authority/00CT,Adult Social Care,Appointee Spend- I-Proc,General Creditors,S00000,06/09/2010,2762474,795.77,Kingsclear House Ltd,253750
Solihull MBC,http://statistics.data.gov.uk/id/local-authority/00CT,Adult Social Care,Appointee Spend- I-Proc,General Creditors,S00000,30/09/2010,2783848,770.66,Accord Housing Association,23450
Solihull MBC,http://statistics.data.gov.uk/id/local-authority/00CT,Adult Social Care,Appointee Spend- I-Proc,General Creditors,S00000,30/09/2010,2783886,770.1,Kingsclear House Ltd,253750
Solihull MBC,http://statistics.data.gov.uk/id/local-authority/00CT,Adult Social Care,Appointee Spend- I-Proc,General Creditors,S00000,06/09/2010,2762421,704.09,Stonebridge Nursing Home,23904
Solihull MBC,http://statistics.data.gov.uk/id/local-authority/00CT,Adult Social Care,Appointee Spend- I-Proc,General Creditors,S00000,06/09/2010,2762502,658.84,Craegmoor Healthcare Ltd,87853
Solihull MBC,http://statistics.data.gov.uk/id/local-authority/00CT,Adult Social Care,Appointee Spend- I-Proc,General Creditors,S00000,30/09/2010,2783898,637.59,Craegmoor Healthcare Ltd,87853
Solihull MBC,http://statistics.data.gov.uk/id/local-authority/00CT,Adult Social Care,Appointee Spend- I-Proc,General Creditors,S00000,06/09/2010,2762510,563.58,Cole Valley Care Limited,120815
Solihull MBC,http://statistics.data.gov.uk/id/local-authority/00CT,Adult Social Care,Appointee Spend- I-Proc,General Creditors,S00000,30/09/2010,2783894,545.4,Cole Valley Care Limited,120815
Solihull MBC,http://statistics.data.gov.uk/id/local-authority/00CT,Adult Social Care,Appointee Spend- I-Proc,General Creditors,S00000,06/09/2010,2762482,530.41,Heart Of England Care,34413
Solihull MBC,http://statistics.data.gov.uk/id/local-authority/00CT,Adult Social Care,Appointee Spend- I-Proc,General Creditors,S00000,30/09/2010,2784045,513.3,Heart Of England Care,34413
Solihull MBC,http://statistics.data.gov.uk/id/local-authority/00CT,Adult Social Care,Appointee Spend- I-Proc,General Creditors,S00000,06/09/2010,2762491,508,Four Seasons Health Care,78137
Solihull MBC,http://statistics.data.gov.uk/id/local-authority/00CT,Adult Social Care,Appointee Spend- I-Proc,General Creditors,S00000,06/09/2010,2762486,504.47,Greentree Enterprises Ltd,117678
Solihull MBC,http://statistics.data.gov.uk/id/local-authority/00CT,Adult Social Care,Appointee Spend- I-Proc,General Creditors,S00000,30/09/2010,2783884,-1001,Caretech Community Services,186238
Solihull MBC,http://statistics.data.gov.uk/id/local-authority/00CT,Adult Social Care,Appointeeship,General Creditors,S00000,28/09/2010,2781518,921,Birmingham City Council,8616
Solihull MBC,http://statistics.data.gov.uk/id/local-authority/00CT,Adult Social Care,Appointeeship,General Creditors,S00000,08/09/2010,2763874,1200,REDACTED PERSONAL DATA,280256
Solihull MBC,http://statistics.data.gov.uk/id/local-authority/00CT,Adult Social Care,Appointeeship,General Creditors,S00000,09/09/2010,2764188,1150,REDACTED PERSONAL DATA,280336
Solihull MBC,http://statistics.data.gov.uk/id/local-authority/00CT,Children & Education Services,Archbishop Grimshaw,Capitation,D11001,09/09/2010,2764190,3132.59,Pearson Education Ltd,10077
Solihull MBC,http://statistics.data.gov.uk/id/local-authority/00CT,Children & Education Services,Archbishop Grimshaw,Capitation,D11001,09/09/2010,2764190,52.79,Pearson Education Ltd,10077
Solihull MBC,http://statistics.data.gov.uk/id/local-authority/00CT,Children & Education Services,Archbishop Grimshaw,Capitation,D11001,21/09/2010,2774787,543.58,Oxford University Press,7129
Solihull MBC,http://statistics.data.gov.uk/id/local-authority/00CT,Children & Education Services,Archbishop Grimshaw,Cleaning / Janitrl Materials,B40002,21/09/2010,2775291,81.77,Nobisco,227281
Solihull MBC,http://statistics.data.gov.uk/id/local-authority/00CT,Children & Education Services,Archbishop Grimshaw,Materials,D11000,21/09/2010,2775291,124.89,Nobisco,227281
Solihull MBC,http://statistics.data.gov.uk/id/local-authority/00CT,Children & Education Services,Archbishop Grimshaw,Health & Safety,B43003,07/09/2010,2763010,490.98,Microlink PC (UK) Ltd,76594
Solihull MBC,http://statistics.data.gov.uk/id/local-authority/00CT,Children & Education Services,Archbishop Grimshaw,Recruitment Expenses,A34002,21/09/2010,2775238,6860,Teach First,277494
Solihull MBC,http://statistics.data.gov.uk/id/local-authority/00CT,Children & Education Services,Archbishop Grimshaw,Recruitment Expenses,A34002,21/09/2010,2775238,2000,Teach First,277494
Solihull MBC,http://statistics.data.gov.uk/id/local-authority/00CT,Children & Education Services,Archbishop Grimshaw,Cleaning / Janitrl Materials,B40002,16/09/2010,2772932,1298.8,Parkway Hygiene Ltd,95850
Solihull MBC,http://statistics.data.gov.uk/id/local-authority/00CT,Children & Education Services,Archbishop Grimshaw,Cleaning / Janitrl Materials,B40002,16/09/2010,2772932,5.15,Parkway Hygiene Ltd,95850
Solihull MBC,http://statistics.data.gov.uk/id/local-authority/00CT,Children & Education Services,Archbishop Grimshaw,Other Premise Costs,B43000,06/09/2010,2761606,2197.5,Securiguard Security Ltd,251876
Solihull MBC,http://statistics.data.gov.uk/id/local-authority/00CT,Children & Education Services,Archbishop Grimshaw,Capitation,D11001,20/09/2010,2774727,2592.34,Ricoh UK Ltd,54723
Solihull MBC,http://statistics.data.gov.uk/id/local-authority/00CT,Children & Education Services,Archbishop Grimshaw,Capitation,D11001,15/09/2010,2771288,2311.93,Ricoh UK Ltd,54723
Solihull MBC,http://statistics.data.gov.uk/id/local-authority/00CT,Children & Education Services,Archbishop Grimshaw,Capitation,D11001,15/09/2010,2770966,882.99,Ricoh UK Ltd,54723
Solihull MBC,http://statistics.data.gov.uk/id/local-authority/00CT,Children & Education Services,Archbishop Grimshaw,Capitation,D11001,06/09/2010,2762492,599.75,Ricoh UK Ltd,54723
Solihull MBC,http://statistics.data.gov.uk/id/local-authority/00CT,Children & Education Services,Archbishop Grimshaw,Capitation,D11001,07/09/2010,2762626,521.56,Eastern Shires Purchasing Organisation,6363
Solihull MBC,http://statistics.data.gov.uk/id/local-authority/00CT,Children & Education Services,Archbishop Grimshaw,Catering Provisions,D20000,24/09/2010,2780374,452.24,Coca-Cola Enterprises Ltd,9994
Solihull MBC,http://statistics.data.gov.uk/id/local-authority/00CT,Children & Education Services,Arden,Building Maint Day To Day,B31001,22/09/2010,2776005,1753.19,Carlton Blinds Limited,272081
Solihull MBC,http://statistics.data.gov.uk/id/local-authority/00CT,Children & Education Services,Arden,Building Maint Day To Day,B31001,01/09/2010,2758845,714.9,Carlton Blinds Limited,272081
Solihull MBC,http://statistics.data.gov.uk/id/local-authority/00CT,Children & Education Services,Arden,Capitation,D11001,14/09/2010,2770372,776.44,Books For Students Ltd,9191
Solihull MBC,http://statistics.data.gov.uk/id/local-authority/00CT,Children & Education Services,Arden,Cleaning / Janitrl Materials,B40002,21/09/2010,2775291,324.56,Nobisco,227281
Solihull MBC,http://statistics.data.gov.uk/id/local-authority/00CT,Children & Education Services,Arden,Materials,D11000,21/09/2010,2775291,185.43,Nobisco,227281
Solihull MBC,http://statistics.data.gov.uk/id/local-authority/00CT,Children & Education Services,Arden,IT Equipment & Software,D32000,14/09/2010,2770623,13464,Corero Systems Ltd,245849
Solihull MBC,http://statistics.data.gov.uk/id/local-authority/00CT,Children & Education Services,Arden,IT Equipment & Software,D32000,30/09/2010,2783790,12528,Capita Business Services Ltd.,99513
Solihull MBC,http://statistics.data.gov.uk/id/local-authority/00CT,Children & Education Services,Arden,IT Equipment & Software,D32000,01/09/2010,2758859,4865,Computerworld,245970
Solihull MBC,http://statistics.data.gov.uk/id/local-authority/00CT,Children & Education Services,Arden,IT Equipment & Software,D32000,01/09/2010,2758858,1700,TASC Software Solutions Ltd,93741
Solihull MBC,http://statistics.data.gov.uk/id/local-authority/00CT,Children & Education Services,Arden,IT Equipment & Software,D32000,22/09/2010,2775858,868.98,Bentham Ltd T/A IJT,70376
Solihull MBC,http://statistics.data.gov.uk/id/local-authority/00CT,Children & Education Services,Arden,Photocopying,D40001,01/09/2010,2758811,3337.59,Midshire Business Systems Ltd,6693
Solihull MBC,http://statistics.data.gov.uk/id/local-authority/00CT,Children & Education Services,Arden,Photocopying,D40001,01/09/2010,2758813,1028.99,Midshire Business Systems Ltd,6693
Solihull MBC,http://statistics.data.gov.uk/id/local-authority/00CT,Children & Education Services,Arden,Photocopying,D40001,01/09/2010,2758814,759.28,Midshire Business Systems Ltd,6693
Solihull MBC,http://statistics.data.gov.uk/id/local-authority/00CT,Children & Education Services,Arden,Photocopying,D40001,14/09/2010,2770663,585.12,Midshire Business Systems Ltd,6693
Solihull MBC,http://statistics.data.gov.uk/id/local-authority/00CT,Children & Education Services,Arden,Photocopying,D40001,14/09/2010,2770746,576.06,Midshire Business Systems Ltd,6693
Solihull MBC,http://statistics.data.gov.uk/id/local-authority/00CT,Children & Education Services,Arden,Postage & Courier Services,D43000,14/09/2010,2770648,500,Royal Mail,7602
Solihull MBC,http://statistics.data.gov.uk/id/local-authority/00CT,Children & Education Services,Arden,Building Maint Day To Day,B31001,08/09/2010,2763690,733.98,Knowle Decorating And Building Supplies,6279
Solihull MBC,http://statistics.data.gov.uk/id/local-authority/00CT,Children & Education Services,Arden,IT Equipment & Software,D32000,01/09/2010,2758862,1500,Capita Education Resourcing,61905
Solihull MBC,http://statistics.data.gov.uk/id/local-authority/00CT,Children & Education Services,Arden,Capitation,D11001,30/09/2010,2783760,799,Oxford Educational Supplies Ltd,7125
Solihull MBC,http://statistics.data.gov.uk/id/local-authority/00CT,Children & Education Services,Arden,Capitation,D11001,14/09/2010,2770427,615,CGP,60954
Solihull MBC,http://statistics.data.gov.uk/id/local-authority/00CT,Children & Education Services,Arden,Printing,D40000,01/09/2010,2758856,570.96,Boomerang Ed Ltd,93215
Solihull MBC,http://statistics.data.gov.uk/id/local-authority/00CT,Children & Education Services,Arden,Agency Staff: Teachers,A35001,29/09/2010,2781925,925,Monarch Education,76204
Solihull MBC,http://statistics.data.gov.uk/id/local-authority/00CT,Children & Education Services,Arden,Catering Provisions,D20000,21/09/2010,2775304,169.12,Delice De France PLC,68194
Solihull MBC,http://statistics.data.gov.uk/id/local-authority/00CT,Children & Education Services,Arden,Catering Provisions,D20000,24/09/2010,2780307,360,Pasta King (UK) Ltd,110794
Solihull MBC,http://statistics.data.gov.uk/id/local-authority/00CT,Children & Education Services,Arden,Catering Provisions,D20000,27/09/2010,2781090,895.27,Brake Bros Foodservice Ltd,9490
Solihull MBC,http://statistics.data.gov.uk/id/local-authority/00CT,Children & Education Services,Arden,Catering Provisions,D20000,27/09/2010,2781094,496.17,Brake Bros Foodservice Ltd,9490
Solihull MBC,http://statistics.data.gov.uk/id/local-authority/00CT,Children & Education Services,Arden,Building Maint Day To Day,B31001,08/09/2010,2763772,749.33,Parkway Hygiene Ltd,95850
Solihull MBC,http://statistics.data.gov.uk/id/local-authority/00CT,Children & Education Services,Arden,Cleaning / Janitrl Materials,B40002,22/09/2010,2776007,1038.71,Parkway Hygiene Ltd,95850
Solihull MBC,http://statistics.data.gov.uk/id/local-authority/00CT,Children & Education Services,Arden,Cleaning / Janitrl Materials,B40002,08/09/2010,2763778,612.95,Parkway Hygiene Ltd,95850
Solihull MBC,http://statistics.data.gov.uk/id/local-authority/00CT,Children & Education Services,Arden,Cleaning Contracts,B40001,29/09/2010,2781858,2783.3,Parkway Hygiene Ltd,95850
Solihull MBC,http://statistics.data.gov.uk/id/local-authority/00CT,Children & Education Services,Arden,Cleaning Contracts,B40001,22/09/2010,2776006,2783.3,Parkway Hygiene Ltd,95850
Solihull MBC,http://statistics.data.gov.uk/id/local-authority/00CT,Children & Education Services,Arden,Cleaning Contracts,B40001,30/09/2010,2783792,2749.88,Parkway Hygiene Ltd,95850
Solihull MBC,http://statistics.data.gov.uk/id/local-authority/00CT,Children & Education Services,Arden,Cleaning Contracts,B40001,08/09/2010,2763764,2160.48,Parkway Hygiene Ltd,95850
Solihull MBC,http://statistics.data.gov.uk/id/local-authority/00CT,Children & Education Services,Arden,Cleaning Contracts,B40001,08/09/2010,2763768,619.07,Parkway Hygiene Ltd,95850
Solihull MBC,http://statistics.data.gov.uk/id/local-authority/00CT,Children & Education Services,Arden,Cleaning Contracts,B40001,08/09/2010,2763770,552.23,Parkway Hygiene Ltd,95850
Solihull MBC,http://statistics.data.gov.uk/id/local-authority/00CT,Children & Education Services,Arden,Photocopying,D40001,14/09/2010,2770752,7371,Siemens Financial Services,90660
Solihull MBC,http://statistics.data.gov.uk/id/local-authority/00CT,Children & Education Services,Arden,Photocopying,D40001,14/09/2010,2770370,610.8,Siemens Financial Services,90660
Solihull MBC,http://statistics.data.gov.uk/id/local-authority/00CT,Children & Education Services,Arden,Building Maint Day To Day,B31001,15/09/2010,2770946,6616.4,Arden School,6207
Solihull MBC,http://statistics.data.gov.uk/id/local-authority/00CT,Children & Education Services,Arden,Business Rates,B20000,15/09/2010,2770927,1296.44,Solihull MBC,80026
Solihull MBC,http://statistics.data.gov.uk/id/local-authority/00CT,Children & Education Services,Arden,Capitation,D11001,15/09/2010,2770996,5464.6,Arden School,6207
Solihull MBC,http://statistics.data.gov.uk/id/local-authority/00CT,Children & Education Services,Arden,Training,A32000,15/09/2010,2770937,5400,Arden School,6207
Solihull MBC,http://statistics.data.gov.uk/id/local-authority/00CT,Children & Education Services,Arden,Postage & Courier Services,D43000,30/09/2010,2783751,557.28,Neopost Finance Ltd,115406
Solihull MBC,http://statistics.data.gov.uk/id/local-authority/00CT,Children & Education Services,Arden,Building Maint Day To Day,B31001,14/09/2010,2770384,578,RT Electrical & Computing Installations Ltd,86353
Solihull MBC,http://statistics.data.gov.uk/id/local-authority/00CT,Children & Education Services,Arden,Building Maint Day To Day,B31001,08/09/2010,2763726,4713.2,D J Carpets,128236
Solihull MBC,http://statistics.data.gov.uk/id/local-authority/00CT,Children & Education Services,Arden,Building Maint Day To Day,B31001,22/09/2010,2775920,1435,D J Carpets,128236
Solihull MBC,http://statistics.data.gov.uk/id/local-authority/00CT,Children & Education Services,Arden,Capitation,D11001,01/09/2010,2758790,30.17,Arden School Fund,6218
Solihull MBC,http://statistics.data.gov.uk/id/local-authority/00CT,Children & Education Services,Arden,Capitation,D11001,01/09/2010,2758790,2.45,Arden School Fund,6218
Solihull MBC,http://statistics.data.gov.uk/id/local-authority/00CT,Children & Education Services,Arden,Capitation,D11001,01/09/2010,2758790,11.94,Arden School Fund,6218
Solihull MBC,http://statistics.data.gov.uk/id/local-authority/00CT,Children & Education Services,Arden,Capitation,D11001,01/09/2010,2758790,72.95,Arden School Fund,6218
Solihull MBC,http://statistics.data.gov.uk/id/local-authority/00CT,Children & Education Services,Arden,Capitation,D11001,01/09/2010,2758790,11.79,Arden School Fund,6218
Solihull MBC,http://statistics.data.gov.uk/id/local-authority/00CT,Children & Education Services,Arden,Capitation,D11001,01/09/2010,2758790,5.2,Arden School Fund,6218
Solihull MBC,http://statistics.data.gov.uk/id/local-authority/00CT,Children & Education Services,Arden,Capitation,D11001,01/09/2010,2758790,10.58,Arden School Fund,6218
Solihull MBC,http://statistics.data.gov.uk/id/local-authority/00CT,Children & Education Services,Arden,Capitation,D11001,01/09/2010,2758790,40,Arden School Fund,6218
Solihull MBC,http://statistics.data.gov.uk/id/local-authority/00CT,Children & Education Services,Arden,Capitation,D11001,01/09/2010,2758790,120,Arden School Fund,6218
Solihull MBC,http://statistics.data.gov.uk/id/local-authority/00CT,Children & Education Services,Arden,Capitation,D11001,01/09/2010,2758790,3.75,Arden School Fund,6218
Solihull MBC,http://statistics.data.gov.uk/id/local-authority/00CT,Children & Education Services,Arden,Capitation,D11001,01/09/2010,2758790,7.96,Arden School Fund,6218
Solihull MBC,http://statistics.data.gov.uk/id/local-authority/00CT,Children & Education Services,Arden,Capitation,D11001,01/09/2010,2758790,50,Arden School Fund,6218
Solihull MBC,http://statistics.data.gov.uk/id/local-authority/00CT,Children & Education Services,Arden,Capitation,D11001,01/09/2010,2758790,40.25,Arden School Fund,6218
Solihull MBC,http://statistics.data.gov.uk/id/local-authority/00CT,Children & Education Services,Arden,Capitation,D11001,01/09/2010,2758790,110,Arden School Fund,6218
Solihull MBC,http://statistics.data.gov.uk/id/local-authority/00CT,Children & Education Services,Arden,Capitation,D11001,01/09/2010,2758790,20,Arden School Fund,6218
Solihull MBC,http://statistics.data.gov.uk/id/local-authority/00CT,Children & Education Services,Arden,Capitation,D11001,01/09/2010,2758790,15,Arden School Fund,6218
Solihull MBC,http://statistics.data.gov.uk/id/local-authority/00CT,Children & Education Services,Arden,Capitation,D11001,01/09/2010,2758790,25,Arden School Fund,6218
Solihull MBC,http://statistics.data.gov.uk/id/local-authority/00CT,Children & Education Services,Arden,Capitation,D11001,01/09/2010,2758790,39.61,Arden School Fund,6218
Solihull MBC,http://statistics.data.gov.uk/id/local-authority/00CT,Children & Education Services,Arden,Capitation,D11001,01/09/2010,2758790,6.5,Arden School Fund,6218
Solihull MBC,http://statistics.data.gov.uk/id/local-authority/00CT,Children & Education Services,Arden,Capitation,D11001,01/09/2010,2758790,15,Arden School Fund,6218
Solihull MBC,http://statistics.data.gov.uk/id/local-authority/00CT,Children & Education Services,Arden,Capitation,D11001,01/09/2010,2758790,7.1,Arden School Fund,6218
Solihull MBC,http://statistics.data.gov.uk/id/local-authority/00CT,Children & Education Services,Arden,Capitation,D11001,15/09/2010,2770834,573.27,K & M,9253
Solihull MBC,http://statistics.data.gov.uk/id/local-authority/00CT,Children & Education Services,Arden,Employee Advertising,A34001,29/09/2010,2781931,719.86,Euro Rscg Riley Ltd,124888
Solihull MBC,http://statistics.data.gov.uk/id/local-authority/00CT,Children & Education Services,Arden,Employee Advertising,A34001,29/09/2010,2781931,0.69,Euro Rscg Riley Ltd,124888
Solihull MBC,http://statistics.data.gov.uk/id/local-authority/00CT,Children & Education Services,Arden,IT Equipment & Software,D32000,14/09/2010,2770622,21250,Frogtrade Ltd,186578
Solihull MBC,http://statistics.data.gov.uk/id/local-authority/00CT,Children & Education Services,Arden,Maintenance Of Grounds,B30000,01/09/2010,2758790,24,Arden School Fund,6218
Solihull MBC,http://statistics.data.gov.uk/id/local-authority/00CT,Children & Education Services,Arden,Maintenance Of Grounds,B30000,01/09/2010,2758790,149.99,Arden School Fund,6218
Solihull MBC,http://statistics.data.gov.uk/id/local-authority/00CT,Children & Education Services,Arden,Meetings & Other Expenses,D61002,01/09/2010,2758790,5.4,Arden School Fund,6218
Solihull MBC,http://statistics.data.gov.uk/id/local-authority/00CT,Children & Education Services,Arden,Meetings & Other Expenses,D61002,01/09/2010,2758790,9.56,Arden School Fund,6218
Solihull MBC,http://statistics.data.gov.uk/id/local-authority/00CT,Children & Education Services,Arden,Meetings & Other Expenses,D61002,01/09/2010,2758790,60,Arden School Fund,6218
Solihull MBC,http://statistics.data.gov.uk/id/local-authority/00CT,Children & Education Services,Arden,Meetings & Other Expenses,D61002,01/09/2010,2758790,11.23,Arden School Fund,6218
Solihull MBC,http://statistics.data.gov.uk/id/local-authority/00CT,Children & Education Services,Arden,Meetings & Other Expenses,D61002,01/09/2010,2758790,41.94,Arden School Fund,6218
Solihull MBC,http://statistics.data.gov.uk/id/local-authority/00CT,Children & Education Services,Arden,Meetings & Other Expenses,D61002,01/09/2010,2758790,20,Arden School Fund,6218
Solihull MBC,http://statistics.data.gov.uk/id/local-authority/00CT,Children & Education Services,Arden,Meetings & Other Expenses,D61002,01/09/2010,2758790,3.05,Arden School Fund,6218
Solihull MBC,http://statistics.data.gov.uk/id/local-authority/00CT,Children & Education Services,Arden,Other Transport Costs,C42000,30/09/2010,2783759,530,Chauffeurs Of Birmingham,81879
Solihull MBC,http://statistics.data.gov.uk/id/local-authority/00CT,Children & Education Services,Arden,Cleaning Contracts,B40001,14/09/2010,2770369,643.5,Payne Security,122211
Solihull MBC,http://statistics.data.gov.uk/id/local-authority/00CT,Children & Education Services,Arden,Maintenance Of Grounds,B30000,22/09/2010,2776013,2890,Fairways Contracting Ltd,9134
Solihull MBC,http://statistics.data.gov.uk/id/local-authority/00CT,Children & Education Services,Arden,Maintenance Of Grounds,B30000,01/09/2010,2758851,2401,Fairways Contracting Ltd,9134
Solihull MBC,http://statistics.data.gov.uk/id/local-authority/00CT,Children & Education Services,Arden,Printing,D40000,08/09/2010,2763732,2744,Waveney Publishing Ltd,69038
Solihull MBC,http://statistics.data.gov.uk/id/local-authority/00CT,Children & Education Services,Arden,Building Maint Day To Day,B31001,15/09/2010,2770887,1958.9,Hollywood Monster Ltd,264259
Solihull MBC,http://statistics.data.gov.uk/id/local-authority/00CT,Children & Education Services,Arden,Catering Provisions,D20000,24/09/2010,2780329,480.32,Coca-Cola Enterprises Ltd,9994
Solihull MBC,http://statistics.data.gov.uk/id/local-authority/00CT,Children & Education Services,Arden,Capitation,D11001,29/09/2010,2781856,213,Polycopy Paper & Stationery,49512
Solihull MBC,http://statistics.data.gov.uk/id/local-authority/00CT,Children & Education Services,Arden,Capitation,D11001,29/09/2010,2781856,106.5,Polycopy Paper & Stationery,49512
Solihull MBC,http://statistics.data.gov.uk/id/local-authority/00CT,Children & Education Services,Arden,Capitation,D11001,29/09/2010,2781856,53.25,Polycopy Paper & Stationery,49512
Solihull MBC,http://statistics.data.gov.uk/id/local-authority/00CT,Children & Education Services,Arden,Photocopying,D40001,29/09/2010,2781856,637.05,Polycopy Paper & Stationery,49512
Solihull MBC,http://statistics.data.gov.uk/id/local-authority/00CT,Children & Education Services,Arden,Photocopying,D40001,14/09/2010,2770755,909.04,Polycopy Paper & Stationery,49512
Solihull MBC,http://statistics.data.gov.uk/id/local-authority/00CT,Children & Education Services,Arden,Photocopying,D40001,30/09/2010,2783754,843.15,Polycopy Paper & Stationery,49512
Solihull MBC,http://statistics.data.gov.uk/id/local-authority/00CT,Children & Education Services,Arden,Refuse Collection,B43001,14/09/2010,2770430,1596.02,Veolia Environmental Services,207518
Solihull MBC,http://statistics.data.gov.uk/id/local-authority/00CT,Children & Education Services,Arden,Refuse Collection,B43001,01/09/2010,2758847,1458.72,Veolia Environmental Services,207518
Solihull MBC,http://statistics.data.gov.uk/id/local-authority/00CT,Children & Education Services,Arden,Refuse Collection,B43001,22/09/2010,2776014,1263.7,Veolia Environmental Services,207518
Solihull MBC,http://statistics.data.gov.uk/id/local-authority/00CT,Children & Education Services,Arden,Photocopying,D40001,22/09/2010,2775861,578,Siemens Financial Services Ltd,11295
Solihull MBC,http://statistics.data.gov.uk/id/local-authority/00CT,Children & Education Services,Arden,Capitation,D11001,02/08/2010,PC89644,476.06,Espo,Purchase Card Supplier
Solihull MBC,http://statistics.data.gov.uk/id/local-authority/00CT,Highways & Transport Services,Area Response Teams,Strategic Highways Contract,E29200,07/09/2010,2763345,20152.57,Ringway,131294
Solihull MBC,http://statistics.data.gov.uk/id/local-authority/00CT,Highways & Transport Services,Area Response Teams,Strategic Highways Contract,E29200,07/09/2010,2763343,14741.77,Ringway,131294
Solihull MBC,http://statistics.data.gov.uk/id/local-authority/00CT,Highways & Transport Services,Area Response Teams,Strategic Highways Contract,E29200,07/09/2010,2763344,11246.47,Ringway,131294
Solihull MBC,http://statistics.data.gov.uk/id/local-authority/00CT,Highways & Transport Services,Area Wide Srts Scheme (Location Tba),Consultants,Y31000,24/09/2010,2779879,2700,WSP UK,217189
Solihull MBC,http://statistics.data.gov.uk/id/local-authority/00CT,Highways & Transport Services,Area Wide Srts Scheme (Location Tba),Contractors,Y21000,07/09/2010,2763386,53607.9,Ringway,131294
Solihull MBC,http://statistics.data.gov.uk/id/local-authority/00CT,Highways & Transport Services,Area Wide Srts Scheme (Location Tba),Contractors,Y21000,03/09/2010,2761447,2279.16,Ringway,131294
Solihull MBC,http://statistics.data.gov.uk/id/local-authority/00CT,Cultural & Related Services,Arts Complex Hirings,Licences,D52410,06/09/2010,2762371,1886.79,The Performing Right Society Ltd,59243
Solihull MBC,http://statistics.data.gov.uk/id/local-authority/00CT,Cultural & Related Services,Arts Complex Hirings,Furniture & Equipment,D10000,07/09/2010,2763169,959.9,Impact Products,279941
Solihull MBC,http://statistics.data.gov.uk/id/local-authority/00CT,Cultural & Related Services,Arts Complex Hirings,Fees & Charges,I20000,23/09/2010,2779461,-1185,Timeless Theatre,221703
Solihull MBC,http://statistics.data.gov.uk/id/local-authority/00CT,Cultural & Related Services,Arts Complex Hirings,Fees & Charges,I20000,23/09/2010,2779461,-12.77,Timeless Theatre,221703
Solihull MBC,http://statistics.data.gov.uk/id/local-authority/00CT,Cultural & Related Services,Arts Complex Hirings,Fees & Charges,I20000,23/09/2010,2779461,-74.32,Timeless Theatre,221703
Solihull MBC,http://statistics.data.gov.uk/id/local-authority/00CT,Cultural & Related Services,Arts Complex Hirings,Fees & Charges,I20000,23/09/2010,2779461,-85.34,Timeless Theatre,221703
Solihull MBC,http://statistics.data.gov.uk/id/local-authority/00CT,Cultural & Related Services,Arts Complex Hirings,Fees & Charges,I20000,23/09/2010,2779462,-135,Barnstomers Comedy Ltd,281095
Solihull MBC,http://statistics.data.gov.uk/id/local-authority/00CT,Cultural & Related Services,Arts Complex Hirings,Fees & Charges,I20000,23/09/2010,2779462,-12.77,Barnstomers Comedy Ltd,281095
Solihull MBC,http://statistics.data.gov.uk/id/local-authority/00CT,Cultural & Related Services,Arts Complex Hirings,Fees & Charges,I20000,23/09/2010,2779462,-12.38,Barnstomers Comedy Ltd,281095
Solihull MBC,http://statistics.data.gov.uk/id/local-authority/00CT,Cultural & Related Services,Arts Complex Hirings,Furniture & Equipment,D10000,07/09/2010,2762868,3010,Asg Stage Products,240310
Solihull MBC,http://statistics.data.gov.uk/id/local-authority/00CT,Cultural & Related Services,Arts Complex Hirings,Furniture & Equipment,D10000,09/09/2010,2767782,4069,G H Associates Ltd,60756
Solihull MBC,http://statistics.data.gov.uk/id/local-authority/00CT,Cultural & Related Services,Arts Complex Hirings,Furniture & Equipment,D10000,24/09/2010,2780104,487.5,G H Associates Ltd,60756
Solihull MBC,http://statistics.data.gov.uk/id/local-authority/00CT,Cultural & Related Services,Arts Complex Hirings,Other Fees,D52000,10/09/2010,Direct Debit Payment,0.73,Barclays Merch Chg,161487
Solihull MBC,http://statistics.data.gov.uk/id/local-authority/00CT,Cultural & Related Services,Arts Complex Hirings,Other Fees,D52000,10/09/2010,Direct Debit Payment,25,Barclays Merch Chg,161487
Solihull MBC,http://statistics.data.gov.uk/id/local-authority/00CT,Cultural & Related Services,Arts Complex Hirings,Other Fees,D52000,10/09/2010,Direct Debit Payment,778.41,Barclays Merch Chg,161487
Solihull MBC,http://statistics.data.gov.uk/id/local-authority/00CT,Cultural & Related Services,Arts Complex Hirings,Other Fees,D52000,10/09/2010,Direct Debit Payment,3.07,Barclays Merch Chg,161487
Solihull MBC,http://statistics.data.gov.uk/id/local-authority/00CT,Cultural & Related Services,Arts Complex Hirings,Other Fees,D52000,10/09/2010,Direct Debit Payment,30,Barclays Merch Chg,161487
Solihull MBC,http://statistics.data.gov.uk/id/local-authority/00CT,Cultural & Related Services,Arts Cpx - Private Events,General Creditors,S00000,23/09/2010,2779461,5013.5,Timeless Theatre,221703
Solihull MBC,http://statistics.data.gov.uk/id/local-authority/00CT,Cultural & Related Services,Arts Cpx - Private Events,General Creditors,S00000,23/09/2010,2779462,834,Barnstomers Comedy Ltd,281095
Solihull MBC,http://statistics.data.gov.uk/id/local-authority/00CT,Central Services to the Public,Awards Team,Professional Fees,D51000,16/09/2010,2773120,1054,Audit Commission,6806
Solihull MBC,http://statistics.data.gov.uk/id/local-authority/00CT,Central Services to the Public,Awards Team,Postage & Courier Services,D43000,06/09/2010,2762114,420.37,Royal Mail,7602
Solihull MBC,http://statistics.data.gov.uk/id/local-authority/00CT,Central Services to the Public,Awards Team,Postage & Courier Services,D43000,22/09/2010,2776197,351.37,Royal Mail,7602
Solihull MBC,http://statistics.data.gov.uk/id/local-authority/00CT,Central Services to the Public,Awards Team,Postage & Courier Services,D43000,06/09/2010,2762388,950.78,Central Mailing Services,99882
Solihull MBC,http://statistics.data.gov.uk/id/local-authority/00CT,Central Services to the Public,Awards Team,Postage & Courier Services,D43000,06/09/2010,2762385,411.27,Central Mailing Services,99882
Solihull MBC,http://statistics.data.gov.uk/id/local-authority/00CT,Central Services to the Public,Awards Team,Postage & Courier Services,D43000,22/09/2010,2776192,398.45,Central Mailing Services,99882
Solihull MBC,http://statistics.data.gov.uk/id/local-authority/00CT,Central Services to the Public,Awards Team,Agency Staff,A35000,27/09/2010,2781259,1648.64,Reed Specialist Recruitment Ltd,255596
Solihull MBC,http://statistics.data.gov.uk/id/local-authority/00CT,Central Services to the Public,Awards Team,Agency Staff,A35000,21/09/2010,2775091,1621.76,Reed Specialist Recruitment Ltd,255596
Solihull MBC,http://statistics.data.gov.uk/id/local-authority/00CT,Central Services to the Public,Awards Team,Agency Staff,A35000,06/09/2010,2762240,1379.84,Reed Specialist Recruitment Ltd,255596
Solihull MBC,http://statistics.data.gov.uk/id/local-authority/00CT,Central Services to the Public,Awards Team,Agency Staff,A35000,14/09/2010,2770577,1335.04,Reed Specialist Recruitment Ltd,255596
Solihull MBC,http://statistics.data.gov.uk/id/local-authority/00CT,Central Services to the Public,Awards Team,IT Equipment & Software,D32000,01/09/2010,2758975,44.18,Supplies Team Ltd,21741
Solihull MBC,http://statistics.data.gov.uk/id/local-authority/00CT,Children & Education Services,Balsall Common Extn & Alt,Consultants,Y31000,09/09/2010,2767932,4360.64,Ridge,141623
Solihull MBC,http://statistics.data.gov.uk/id/local-authority/00CT,Children & Education Services,Balsall Common J&I,Furniture & Equipment,D10000,06/09/2010,2761683,812.77,4 Seasons Blinds & Awnings,275822
Solihull MBC,http://statistics.data.gov.uk/id/local-authority/00CT,Children & Education Services,Balsall Common J&I,Capitation,D11001,29/09/2010,2782093,548.89,Oxford University Press,7129
Solihull MBC,http://statistics.data.gov.uk/id/local-authority/00CT,Children & Education Services,Balsall Common J&I,Capitation,D11001,29/09/2010,2782093,56.85,Oxford University Press,7129
Solihull MBC,http://statistics.data.gov.uk/id/local-authority/00CT,Children & Education Services,Balsall Common J&I,Furniture & Equipment,D10000,20/09/2010,2774646,3340,Camera One Limited,70631
Solihull MBC,http://statistics.data.gov.uk/id/local-authority/00CT,Children & Education Services,Balsall Common J&I,Capitation,D11001,13/09/2010,2769651,791.41,GLS Educational Supplies Ltd,5654
Solihull MBC,http://statistics.data.gov.uk/id/local-authority/00CT,Children & Education Services,Balsall Common J&I,Capitation,D11001,06/09/2010,2762423,495.7,Hope Education Ltd,5890
Solihull MBC,http://statistics.data.gov.uk/id/local-authority/00CT,Children & Education Services,Balsall Common J&I,Swimming Charges,I20002,20/09/2010,2774651,954,Balsall Common Primary School PTA,212361
Solihull MBC,http://statistics.data.gov.uk/id/local-authority/00CT,Children & Education Services,Balsall Common J&I,Furniture & Equipment,D10000,13/09/2010,2769659,1180,Hemroe Joinery,19140
Solihull MBC,http://statistics.data.gov.uk/id/local-authority/00CT,Children & Education Services,Balsall Common J&I,Health & Safety,B43003,06/09/2010,2761586,555,Progressive Swimming Pool Supplies Ltd,7361
Solihull MBC,http://statistics.data.gov.uk/id/local-authority/00CT,Children & Education Services,Balsall Common J&I,IT Equipment & Software,D32000,06/09/2010,2761903,905.02,Childnet International,189302
Solihull MBC,http://statistics.data.gov.uk/id/local-authority/00CT,Children & Education Services,Balsall Common J&I,Telephones,D30000,06/09/2010,2762406,611,Peoplewiz Ltd,90198
Solihull MBC,http://statistics.data.gov.uk/id/local-authority/00CT,Children & Education Services,Balsall Common J&I,Health & Safety,B43003,06/09/2010,2762417,447.85,SG World Ltd,132275
Solihull MBC,http://statistics.data.gov.uk/id/local-authority/00CT,Children & Education Services,Balsall Common J&I,Cleaning Contracts,B40001,29/09/2010,2781947,3104.17,Ace Cleaning Company,48575
Solihull MBC,http://statistics.data.gov.uk/id/local-authority/00CT,Children & Education Services,Balsall Common J&I,Refuse Collection,B43001,06/09/2010,2762104,3104.17,Ace Cleaning Company,48575
Solihull MBC,http://statistics.data.gov.uk/id/local-authority/00CT,Children & Education Services,Balsall Common J&I,Refuse Collection,B43001,06/09/2010,2762106,3104.17,Ace Cleaning Company,48575
Solihull MBC,http://statistics.data.gov.uk/id/local-authority/00CT,Children & Education Services,Balsall Common J&I,Alarms,B43002,06/09/2010,2762408,747.87,ADT Fire & Security PLC,10132
Solihull MBC,http://statistics.data.gov.uk/id/local-authority/00CT,Children & Education Services,Balsall Common J&I,Pay: Teachers Planned Supply,A11905,29/09/2010,2781943,880,REDACTED PERSONAL DATA,124626
Solihull MBC,http://statistics.data.gov.uk/id/local-authority/00CT,Children & Education Services,Balsall Common J&I,Telephones,D30000,06/09/2010,2762096,511,Modern Telecom,81677
Solihull MBC,http://statistics.data.gov.uk/id/local-authority/00CT,Cultural & Related Services,Balsall Common Library,Cleaning Contracts,B40001,07/09/2010,2762949,423.13,Connaught Environmental Ltd,244613
Solihull MBC,http://statistics.data.gov.uk/id/local-authority/00CT,Cultural & Related Services,Balsall Common Library,Cleaning Contracts,B40001,13/09/2010,2769695,423.13,Connaught Environmental Ltd,244613
Solihull MBC,http://statistics.data.gov.uk/id/local-authority/00CT,Corporate & Democratic Core,Bank Charges,Other Contracted Services,E29000,24/09/2010,2780100,5083.19,G4S Cash Services (UK) Ltd,7717
Solihull MBC,http://statistics.data.gov.uk/id/local-authority/00CT,Corporate & Democratic Core,Bank Charges,Other Contracted Services,E29000,21/09/2010,2775316,989.59,G4S Cash Services (UK) Ltd,7717
Solihull MBC,http://statistics.data.gov.uk/id/local-authority/00CT,Corporate & Democratic Core,Bank Charges,Other Contracted Services,E29000,28/09/2010,Direct Debit Payment,"11,729.11",Barclays Bank Charges,161487
Solihull MBC,http://statistics.data.gov.uk/id/local-authority/00CT,Children & Education Services,Bentley Heath Child Cent,Agency Staff,A35000,06/09/2010,2762607,455,Hays Education Personnel,5790
Solihull MBC,http://statistics.data.gov.uk/id/local-authority/00CT,Children & Education Services,Bentley Heath Child Cent,Agency Staff,A35000,06/09/2010,2762608,442,Hays Education Personnel,5790
Solihull MBC,http://statistics.data.gov.uk/id/local-authority/00CT,Children & Education Services,Bentley Heath Child Cent,Agency Staff,A35000,21/09/2010,2775122,794.41,Reed Specialist Recruitment Ltd,255596
Solihull MBC,http://statistics.data.gov.uk/id/local-authority/00CT,Children & Education Services,Bentley Heath Child Cent,Agency Staff,A35000,06/09/2010,2762262,704.57,Reed Specialist Recruitment Ltd,255596
Solihull MBC,http://statistics.data.gov.uk/id/local-authority/00CT,Children & Education Services,Bentley Heath Child Cent,Agency Staff,A35000,27/09/2010,2781260,659.66,Reed Specialist Recruitment Ltd,255596
Solihull MBC,http://statistics.data.gov.uk/id/local-authority/00CT,Children & Education Services,Bentley Heath Child Cent,Agency Staff,A35000,14/09/2010,2770620,648.43,Reed Specialist Recruitment Ltd,255596
Solihull MBC,http://statistics.data.gov.uk/id/local-authority/00CT,Children & Education Services,Bentley Heath Child Cent,Agency Staff: Classroom Support,A35002,21/09/2010,2775107,625.58,Reed Specialist Recruitment Ltd,255596
Solihull MBC,http://statistics.data.gov.uk/id/local-authority/00CT,Children & Education Services,Bentley Heath Child Cent,Agency Staff: Classroom Support,A35002,27/09/2010,2781280,590.28,Reed Specialist Recruitment Ltd,255596
Solihull MBC,http://statistics.data.gov.uk/id/local-authority/00CT,Children & Education Services,Bentley Heath Child Cent,Agency Staff: Classroom Support,A35002,14/09/2010,2770605,480,Reed Specialist Recruitment Ltd,255596
Solihull MBC,http://statistics.data.gov.uk/id/local-authority/00CT,Children & Education Services,Bentley Heath Child Cent,Capitation,D11001,06/09/2010,2762606,581.82,Supplies Team Ltd,21741
Solihull MBC,http://statistics.data.gov.uk/id/local-authority/00CT,Children & Education Services,Bentley Heath J&I,Building Maint Planned,B31002,21/09/2010,2775174,1300,P W Humphries,7160
Solihull MBC,http://statistics.data.gov.uk/id/local-authority/00CT,Children & Education Services,Bentley Heath J&I,Building Maint Planned,B31002,21/09/2010,2775179,1788,A G Shakespeare,275130
Solihull MBC,http://statistics.data.gov.uk/id/local-authority/00CT,Children & Education Services,Bentley Heath J&I,Agency Staff: Teachers,A35001,03/09/2010,2760993,800,Hays Education Personnel,5790
Solihull MBC,http://statistics.data.gov.uk/id/local-authority/00CT,Children & Education Services,Bentley Heath J&I,Agency Staff: Teachers,A35001,03/09/2010,2760996,800,Hays Education Personnel,5790
Solihull MBC,http://statistics.data.gov.uk/id/local-authority/00CT,Children & Education Services,Bentley Heath J&I,Maintenance Of Grounds,B30000,16/09/2010,2772848,898.05,Parkway Ground Maint Ltd,7189
Solihull MBC,http://statistics.data.gov.uk/id/local-authority/00CT,Children & Education Services,Bentley Heath J&I,Maintenance Of Grounds,B30000,03/09/2010,2761049,676.48,Parkway Ground Maint Ltd,7189
Solihull MBC,http://statistics.data.gov.uk/id/local-authority/00CT,Children & Education Services,Bentley Heath J&I,Capitation,D11001,21/09/2010,2775182,548.77,Normans (Burton-On-Trent) Ltd,7023
Solihull MBC,http://statistics.data.gov.uk/id/local-authority/00CT,Children & Education Services,Bentley Heath J&I,Capitation,D11001,03/09/2010,2761229,467.45,Eastern Shires Purchasing Organisation,6363
Solihull MBC,http://statistics.data.gov.uk/id/local-authority/00CT,Children & Education Services,Bentley Heath J&I,Capitation,D11001,03/09/2010,2761295,432.22,Eastern Shires Purchasing Organisation,6363
Solihull MBC,http://statistics.data.gov.uk/id/local-authority/00CT,Children & Education Services,Bentley Heath J&I,Refuse Collection,B43001,03/09/2010,2761012,484.12,SITA UK Ltd,95837
Solihull MBC,http://statistics.data.gov.uk/id/local-authority/00CT,Children & Education Services,Bentley Heath Ph2 Mod,Hardware,Y13001,13/09/2010,2769737,2178.06,Virgin Media Payments Ltd,172138
Solihull MBC,http://statistics.data.gov.uk/id/local-authority/00CT,Environmental & Regulatory Services,Bereavement Services,Materials For Resale,D11202,20/09/2010,2774655,743.4,The Columbaria Company,88589
Solihull MBC,http://statistics.data.gov.uk/id/local-authority/00CT,Environmental & Regulatory Services,Bereavement Services,Cleaning Contracts,B40001,20/09/2010,2774661,443.13,Connaught Environmental Ltd,244613
Solihull MBC,http://statistics.data.gov.uk/id/local-authority/00CT,Environmental & Regulatory Services,Bereavement Services,Cleaning Contracts,B40001,20/09/2010,2774662,441.13,Connaught Environmental Ltd,244613
Solihull MBC,http://statistics.data.gov.uk/id/local-authority/00CT,Environmental & Regulatory Services,Bereavement Services,Internal Building Maintenance,H20908,03/09/2010,2760830,121.33,Dodd Group (Midlands) Ltd,60305
Solihull MBC,http://statistics.data.gov.uk/id/local-authority/00CT,Environmental & Regulatory Services,Bereavement Services,Repair & Maintn Of Buildings,B31000,03/09/2010,2760830,1213.26,Dodd Group (Midlands) Ltd,60305
Solihull MBC,http://statistics.data.gov.uk/id/local-authority/00CT,Environmental & Regulatory Services,Bereavement Services,Repair & Maintn Of Buildings,B31000,10/09/2010,2768809,460.72,Facultatieve Technologies Ltd,65773
Solihull MBC,http://statistics.data.gov.uk/id/local-authority/00CT,Environmental & Regulatory Services,Bereavement Services,Materials For Resale,D11202,07/09/2010,2763301,766.3,Treasured Memories Ltd,78284
Solihull MBC,http://statistics.data.gov.uk/id/local-authority/00CT,Environmental & Regulatory Services,Bereavement Services,Maintenance Of Grounds,B30000,24/09/2010,2780099,550,Glendale Countryside,24505
Solihull MBC,http://statistics.data.gov.uk/id/local-authority/00CT,Environmental & Regulatory Services,Bereavement Services,Advertising/Publicity/Promotion,D93000,06/08/2010,PC21589,459.43,Birmingham Post & Mail,Purchase Card Supplier
Solihull MBC,http://statistics.data.gov.uk/id/local-authority/00CT,Environmental & Regulatory Services,Bereavement Services,Materials,D11000,18/08/2010,PC26946,1514.57,Profab,Purchase Card Supplier
Solihull MBC,http://statistics.data.gov.uk/id/local-authority/00CT,Environmental & Regulatory Services,Bereavement Services,Telephones,D30000,12/08/2010,PC66237,1427.81,Earlswood Nurseries,Purchase Card Supplier
Solihull MBC,http://statistics.data.gov.uk/id/local-authority/00CT,Children & Education Services,Berkswell Curt Wall/Glaze,Contractors,Y21000,02/09/2010,2760477,134619.4,Coventry Diocesan Board Of Education,48853
Solihull MBC,http://statistics.data.gov.uk/id/local-authority/00CT,Children & Education Services,Berkswell J&I,Alarms,B43002,06/09/2010,2762591,485,Patrol Alarm Systems Ltd,7199
Solihull MBC,http://statistics.data.gov.uk/id/local-authority/00CT,Children & Education Services,Bishop Wilson Co-Location,Contractors,Y21000,23/09/2010,2779386,15000,North Solihull Partnership,149149
Solihull MBC,http://statistics.data.gov.uk/id/local-authority/00CT,Children & Education Services,Bishop Wilson J&I,Alarms,B43002,16/09/2010,2771804,785,Patrol Alarm Systems Ltd,7199
Solihull MBC,http://statistics.data.gov.uk/id/local-authority/00CT,Children & Education Services,Bishop Wilson J&I,Capitation,D11001,16/09/2010,2771811,539.85,Tempus Computers Ltd,36655
Solihull MBC,http://statistics.data.gov.uk/id/local-authority/00CT,Children & Education Services,Bishop Wilson J&I,Maintenance Of Grounds,B30000,07/09/2010,2762824,436,Blooming Gardens Ltd,8970
Solihull MBC,http://statistics.data.gov.uk/id/local-authority/00CT,Children & Education Services,Bishop Wilson J&I,Employee Advertising,A34001,23/09/2010,2776478,1873.21,Euro Rscg Riley Ltd,124888
Solihull MBC,http://statistics.data.gov.uk/id/local-authority/00CT,Children & Education Services,Bishop Wilson J&I,Employee Advertising,A34001,23/09/2010,2776478,1.85,Euro Rscg Riley Ltd,124888
Solihull MBC,http://statistics.data.gov.uk/id/local-authority/00CT,Children & Education Services,Bishop Wilson J&I,Maintenance Of Grounds,B30000,23/09/2010,2776474,715.95,B & Q PLC,7006
Solihull MBC,http://statistics.data.gov.uk/id/local-authority/00CT,Children & Education Services,Bishop Wilson J&I,Photocopying,D40001,30/09/2010,2783837,638.55,Ricoh UK Ltd,54723
Solihull MBC,http://statistics.data.gov.uk/id/local-authority/00CT,Children & Education Services,Bishop Wilson J&I,Photocopying,D40001,30/09/2010,2783818,636.96,Ricoh UK Ltd,54723
Solihull MBC,http://statistics.data.gov.uk/id/local-authority/00CT,Children & Education Services,Bishop Wilson J&I,Capitation,D11001,23/09/2010,2779238,40,Speed Stacks Ltd,234427
Solihull MBC,http://statistics.data.gov.uk/id/local-authority/00CT,Children & Education Services,Bishop Wilson J&I,Capitation,D11001,23/09/2010,2779238,391.49,Speed Stacks Ltd,234427
Solihull MBC,http://statistics.data.gov.uk/id/local-authority/00CT,Children & Education Services,Bishop Wilson J&I,Telephones,D30000,30/09/2010,2783829,1390.5,Teachers2Parents Ltd,268201
Solihull MBC,http://statistics.data.gov.uk/id/local-authority/00CT,Children & Education Services,Bishop Wilson J&I,Rental/Lease Of Equipment,D12000,07/09/2010,2762994,1145.78,Severn Trent Water,22561
Solihull MBC,http://statistics.data.gov.uk/id/local-authority/00CT,Children & Education Services,Blossomfield Inf,Building Maint Planned,B31002,29/09/2010,2781899,14548.36,E Terry Groundworks Ltd,280676
Solihull MBC,http://statistics.data.gov.uk/id/local-authority/00CT,Children & Education Services,Blossomfield Inf,Cleaning Contracts,B40001,28/09/2010,2781356,900,O K  Kleening Limited,122884
Solihull MBC,http://statistics.data.gov.uk/id/local-authority/00CT,Children & Education Services,Blossomfield Inf,Capitation,D11001,13/09/2010,2769557,668.95,Smart Kids (UK) Ltd,17327
Solihull MBC,http://statistics.data.gov.uk/id/local-authority/00CT,Children & Education Services,Blossomfield Inf,Furniture & Equipment,D10000,28/09/2010,2781351,609.8,NES Arnold Findel Education Ltd,104955
Solihull MBC,http://statistics.data.gov.uk/id/local-authority/00CT,Children & Education Services,Blossomfield Inf,Maintenance Of Grounds,B30000,22/09/2010,2775608,520,AMW Landscapes Ltd,109573
Solihull MBC,http://statistics.data.gov.uk/id/local-authority/00CT,Children & Education Services,Blossomfield Inf,Capitation,D11001,13/09/2010,2769564,663.3,Central Theatre Supplies,9864
Solihull MBC,http://statistics.data.gov.uk/id/local-authority/00CT,Children & Education Services,Blossomfield Inf,Capitation,D11001,22/09/2010,2775982,55.9,Blossomfield Infant School,8981
Solihull MBC,http://statistics.data.gov.uk/id/local-authority/00CT,Children & Education Services,Blossomfield Inf,Capitation,D11001,22/09/2010,2775982,12,Blossomfield Infant School,8981
Solihull MBC,http://statistics.data.gov.uk/id/local-authority/00CT,Children & Education Services,Blossomfield Inf,Capitation,D11001,22/09/2010,2775982,39.54,Blossomfield Infant School,8981
Solihull MBC,http://statistics.data.gov.uk/id/local-authority/00CT,Children & Education Services,Blossomfield Inf,Capitation,D11001,22/09/2010,2775982,123.72,Blossomfield Infant School,8981
Solihull MBC,http://statistics.data.gov.uk/id/local-authority/00CT,Children & Education Services,Blossomfield Inf,Capitation,D11001,22/09/2010,2775982,72.97,Blossomfield Infant School,8981
Solihull MBC,http://statistics.data.gov.uk/id/local-authority/00CT,Children & Education Services,Blossomfield Inf,Capitation,D11001,22/09/2010,2775982,25.44,Blossomfield Infant School,8981
Solihull MBC,http://statistics.data.gov.uk/id/local-authority/00CT,Children & Education Services,Blossomfield Inf,Capitation,D11001,22/09/2010,2775982,69.9,Blossomfield Infant School,8981
Solihull MBC,http://statistics.data.gov.uk/id/local-authority/00CT,Children & Education Services,Blossomfield Inf,Capitation,D11001,22/09/2010,2775982,44.62,Blossomfield Infant School,8981
Solihull MBC,http://statistics.data.gov.uk/id/local-authority/00CT,Children & Education Services,Blossomfield Inf,Capitation,D11001,22/09/2010,2775982,51.02,Blossomfield Infant School,8981
Solihull MBC,http://statistics.data.gov.uk/id/local-authority/00CT,Children & Education Services,Blossomfield Inf,Capitation,D11001,22/09/2010,2775982,20.13,Blossomfield Infant School,8981
Solihull MBC,http://statistics.data.gov.uk/id/local-authority/00CT,Children & Education Services,Blossomfield Inf,Capitation,D11001,22/09/2010,2775982,62.29,Blossomfield Infant School,8981
Solihull MBC,http://statistics.data.gov.uk/id/local-authority/00CT,Children & Education Services,Blossomfield Inf,Capitation,D11001,22/09/2010,2775982,34,Blossomfield Infant School,8981
Solihull MBC,http://statistics.data.gov.uk/id/local-authority/00CT,Children & Education Services,Blossomfield Inf,Capitation,D11001,22/09/2010,2775982,37.88,Blossomfield Infant School,8981
Solihull MBC,http://statistics.data.gov.uk/id/local-authority/00CT,Children & Education Services,Blossomfield Inf,Capitation,D11001,22/09/2010,2775982,17.97,Blossomfield Infant School,8981
Solihull MBC,http://statistics.data.gov.uk/id/local-authority/00CT,Children & Education Services,Blossomfield Inf,Stationery,D41000,01/09/2010,2758736,700,Officexpress Europe Ltd,162258
Solihull MBC,http://statistics.data.gov.uk/id/local-authority/00CT,Cultural & Related Services,Blue Badge & Radar Keys,Stationery,D41000,06/09/2010,2761902,1061.75,The Stationery Office Ltd,126818
Solihull MBC,http://statistics.data.gov.uk/id/local-authority/00CT,Highways & Transport Services,Bridge Assessments,Consultants,Y31000,14/09/2010,2770338,779.4,WSP UK,217189
Solihull MBC,http://statistics.data.gov.uk/id/local-authority/00CT,Highways & Transport Services,Bridge Maintenance,Professional Fees,D51000,14/09/2010,2770325,3874.36,WSP UK,217189
Solihull MBC,http://statistics.data.gov.uk/id/local-authority/00CT,Highways & Transport Services,Bridge Maintenance,Professional Fees,D51000,13/09/2010,2769490,2119.91,WSP UK,217189
Solihull MBC,http://statistics.data.gov.uk/id/local-authority/00CT,Highways & Transport Services,Bridge Maintenance,Professional Fees,D51000,14/09/2010,2770334,738.2,WSP UK,217189
Solihull MBC,http://statistics.data.gov.uk/id/local-authority/00CT,Children & Education Services,Broadband Line Rental,IT Equipment & Software,D32000,07/09/2010,2763328,5057.34,Scalable Networks PLC,122994
Solihull MBC,http://statistics.data.gov.uk/id/local-authority/00CT,Children & Education Services,Broadband Line Rental,IT Equipment & Software,D32000,08/09/2010,2763801,196278.9,Virgin Media Payments Ltd,172138
Solihull MBC,http://statistics.data.gov.uk/id/local-authority/00CT,Children & Education Services,Broadband Line Rental,IT Equipment & Software,D32000,08/09/2010,2763783,9955.2,Virgin Media Payments Ltd,172138
Solihull MBC,http://statistics.data.gov.uk/id/local-authority/00CT,Children & Education Services,Broadband Line Rental,IT Equipment & Software,D32000,07/09/2010,2762896,1469.89,Virgin Media Payments Ltd,172138
Solihull MBC,http://statistics.data.gov.uk/id/local-authority/00CT,Children & Education Services,Broadband Line Rental,IT Equipment & Software,D32000,04/08/2010,PC08184,6905,Shropshire County Council,Purchase Card Supplier
Solihull MBC,http://statistics.data.gov.uk/id/local-authority/00CT,Children & Education Services,Broadband Line Rental,IT Equipment & Software,D32000,04/08/2010,PC08192,6905,Shropshire County Council,Purchase Card Supplier
Solihull MBC,http://statistics.data.gov.uk/id/local-authority/00CT,Children & Education Services,BSF ICT,Consultants,Y31000,17/09/2010,2773822,84612.71,RM Education PLC,152589
Solihull MBC,http://statistics.data.gov.uk/id/local-authority/00CT,Children & Education Services,BSF ICT,Consultants,Y31000,17/09/2010,2773823,3192,RM Education PLC,152589
Solihull MBC,http://statistics.data.gov.uk/id/local-authority/00CT,Central Services to the Public,BT - One Bill,General Creditors,S00000,02/09/2010,2760721,4592.4,Cable & Wireless Communications,9750
Solihull MBC,http://statistics.data.gov.uk/id/local-authority/00CT,Central Services to the Public,BT - One Bill,General Creditors,S00000,02/09/2010,2760723,633.57,Cable & Wireless Communications,9750
Solihull MBC,http://statistics.data.gov.uk/id/local-authority/00CT,Central Services to the Public,BT - One Bill,General Creditors,S00000,02/09/2010,2760723,0.3,Cable & Wireless Communications,9750
Solihull MBC,http://statistics.data.gov.uk/id/local-authority/00CT,Central Services to the Public,BT - One Bill,General Creditors,S00000,02/09/2010,2760725,-631.27,Cable & Wireless Communications,9750
Solihull MBC,http://statistics.data.gov.uk/id/local-authority/00CT,Central Services to the Public,BT - One Bill,General Creditors,S00000,02/09/2010,2760722,-1827.84,Cable & Wireless Communications,9750
Solihull MBC,http://statistics.data.gov.uk/id/local-authority/00CT,Central Services to the Public,BT - One Bill,General Creditors,S00000,20/09/2010,2774302,11056.69,Uniworld Communications Ltd,264899
Solihull MBC,http://statistics.data.gov.uk/id/local-authority/00CT,Central Services to the Public,BT - One Bill,General Creditors,S00000,20/09/2010,2774302,3396.97,Uniworld Communications Ltd,264899
Solihull MBC,http://statistics.data.gov.uk/id/local-authority/00CT,Central Services to the Public,BT - One Bill,General Creditors,S00000,08/09/2010,2764054,12784.97,BT Global Services,138961
Solihull MBC,http://statistics.data.gov.uk/id/local-authority/00CT,Central Services to the Public,Building & Design,Professional Fees,D51000,20/09/2010,2774681,1645,John Griffin Associates,6126
Solihull MBC,http://statistics.data.gov.uk/id/local-authority/00CT,Central Services to the Public,Building & Design,Professional Fees,D51000,06/09/2010,2762153,995,Cudd Bentley Consulting Ltd,270445
Solihull MBC,http://statistics.data.gov.uk/id/local-authority/00CT,Central Services to the Public,Building & Design,Professional Fees,D51000,10/09/2010,2768665,1000,Faarup Associates,190879
Solihull MBC,http://statistics.data.gov.uk/id/local-authority/00CT,Central Services to the Public,Building & Design,Furniture & Equipment,D10000,23/09/2010,2779494,1952.5,Charter Office Equipment Ltd,9886
Solihull MBC,http://statistics.data.gov.uk/id/local-authority/00CT,Central Services to the Public,Building & Design,IT Equipment & Software,D32000,01/09/2010,2758975,99,Supplies Team Ltd,21741
Solihull MBC,http://statistics.data.gov.uk/id/local-authority/00CT,Central Services to the Public,Building & Design,IT Equipment & Software,D32000,01/09/2010,2758975,198,Supplies Team Ltd,21741
Solihull MBC,http://statistics.data.gov.uk/id/local-authority/00CT,Central Services to the Public,Building & Design,IT Equipment & Software,D32000,01/09/2010,2758975,198,Supplies Team Ltd,21741
Solihull MBC,http://statistics.data.gov.uk/id/local-authority/00CT,Central Services to the Public,Building & Design,IT Equipment & Software,D32000,01/09/2010,2758975,873,Supplies Team Ltd,21741
Solihull MBC,http://statistics.data.gov.uk/id/local-authority/00CT,Central Services to the Public,Building & Design,IT Equipment & Software,D32000,01/09/2010,2758975,99,Supplies Team Ltd,21741
Solihull MBC,http://statistics.data.gov.uk/id/local-authority/00CT,Central Services to the Public,Building & Design,IT Equipment & Software,D32000,01/09/2010,2758975,198,Supplies Team Ltd,21741
Solihull MBC,http://statistics.data.gov.uk/id/local-authority/00CT,Central Services to the Public,Building & Design,Stationery,D41000,01/09/2010,2758975,83.43,Supplies Team Ltd,21741
Solihull MBC,http://statistics.data.gov.uk/id/local-authority/00CT,Planning & Development Services,Building Control Holding Account,Agency Staff,A35000,27/09/2010,2780823,6346.2,Birmingham City Council,8616
Solihull MBC,http://statistics.data.gov.uk/id/local-authority/00CT,Planning & Development Services,Building Control Holding Account,Professional Fees,D51000,27/09/2010,2780822,1920.91,Birmingham City Council,8616
Solihull MBC,http://statistics.data.gov.uk/id/local-authority/00CT,Planning & Development Services,Building Control Holding Account,Stationery,D41000,28/09/2010,2781534,434.28,Sabell & Co Ltd,7662
Solihull MBC,http://statistics.data.gov.uk/id/local-authority/00CT,Planning & Development Services,Building Control Holding Account,IT Equipment & Software,D32000,01/09/2010,2758975,128.02,Supplies Team Ltd,21741
Solihull MBC,http://statistics.data.gov.uk/id/local-authority/00CT,Planning & Development Services,Building Control Holding Account,Professional Fees,D51000,08/09/2010,2764098,1747.85,JBC Ltd,132660
Solihull MBC,http://statistics.data.gov.uk/id/local-authority/00CT,Planning & Development Services,Building Control Holding Account,Professional Fees,D51000,07/09/2010,2762935,1747.85,JBC Ltd,132660
Solihull MBC,http://statistics.data.gov.uk/id/local-authority/00CT,Planning & Development Services,Building Control Holding Account,Professional Fees,D51000,08/09/2010,2764101,23.19,Barneveld Consultants,218451
Solihull MBC,http://statistics.data.gov.uk/id/local-authority/00CT,Planning & Development Services,Building Control Holding Account,Professional Fees,D51000,08/09/2010,2764101,1102.5,Barneveld Consultants,218451
Solihull MBC,http://statistics.data.gov.uk/id/local-authority/00CT,Children & Education Services,Building Schools Future,Furniture & Equipment,D10000,23/09/2010,2779499,2064,Gunnebo Security UK Ltd,87822
Solihull MBC,http://statistics.data.gov.uk/id/local-authority/00CT,Children & Education Services,Building Schools Future,Furniture & Equipment,D10000,23/09/2010,2779501,1062,Gunnebo Security UK Ltd,87822
Solihull MBC,http://statistics.data.gov.uk/id/local-authority/00CT,Children & Education Services,Building Schools Future,Furniture & Equipment,D10000,23/09/2010,2779500,850,Gunnebo Security UK Ltd,87822
Solihull MBC,http://statistics.data.gov.uk/id/local-authority/00CT,Cultural & Related Services,Business Support,IT Equipment & Software,D32000,15/09/2010,2771085,450,Prolog Print Media Ltd,129325
Solihull MBC,http://statistics.data.gov.uk/id/local-authority/00CT,Cultural & Related Services,Business Support,IT Equipment & Software,D32000,01/09/2010,2758975,22.47,Supplies Team Ltd,21741
Solihull MBC,http://statistics.data.gov.uk/id/local-authority/00CT,Cultural & Related Services,Business Support,IT Equipment & Software,D32000,01/09/2010,2758975,19.61,Supplies Team Ltd,21741
Solihull MBC,http://statistics.data.gov.uk/id/local-authority/00CT,Cultural & Related Services,Business Support,IT Equipment & Software,D32000,01/09/2010,2758975,59.51,Supplies Team Ltd,21741
Solihull MBC,http://statistics.data.gov.uk/id/local-authority/00CT,Cultural & Related Services,Business Support,IT Equipment & Software,D32000,01/09/2010,2758975,79.66,Supplies Team Ltd,21741
Solihull MBC,http://statistics.data.gov.uk/id/local-authority/00CT,Cultural & Related Services,Business Support,IT Equipment & Software,D32000,01/09/2010,2758975,41.28,Supplies Team Ltd,21741
Solihull MBC,http://statistics.data.gov.uk/id/local-authority/00CT,Cultural & Related Services,Business Support,IT Equipment & Software,D32000,01/09/2010,2758975,82.09,Supplies Team Ltd,21741
Solihull MBC,http://statistics.data.gov.uk/id/local-authority/00CT,Cultural & Related Services,Business Support,IT Equipment & Software,D32000,01/09/2010,2758975,19.61,Supplies Team Ltd,21741
Solihull MBC,http://statistics.data.gov.uk/id/local-authority/00CT,Cultural & Related Services,Business Support,IT Equipment & Software,D32000,01/09/2010,2758975,41.28,Supplies Team Ltd,21741
Solihull MBC,http://statistics.data.gov.uk/id/local-authority/00CT,Cultural & Related Services,Business Support,IT Equipment & Software,D32000,01/09/2010,2758975,22.47,Supplies Team Ltd,21741
Solihull MBC,http://statistics.data.gov.uk/id/local-authority/00CT,Cultural & Related Services,Business Support,IT Equipment & Software,D32000,01/09/2010,2758975,79.66,Supplies Team Ltd,21741
Solihull MBC,http://statistics.data.gov.uk/id/local-authority/00CT,Cultural & Related Services,Business Support,IT Equipment & Software,D32000,01/09/2010,2758975,27.06,Supplies Team Ltd,21741
Solihull MBC,http://statistics.data.gov.uk/id/local-authority/00CT,Cultural & Related Services,Business Support,IT Equipment & Software,D32000,01/09/2010,2758975,41.28,Supplies Team Ltd,21741
Solihull MBC,http://statistics.data.gov.uk/id/local-authority/00CT,Cultural & Related Services,Business Support,IT Equipment & Software,D32000,01/09/2010,2758975,41.28,Supplies Team Ltd,21741
Solihull MBC,http://statistics.data.gov.uk/id/local-authority/00CT,Cultural & Related Services,Business Support,IT Equipment & Software,D32000,01/09/2010,2758975,41.28,Supplies Team Ltd,21741
Solihull MBC,http://statistics.data.gov.uk/id/local-authority/00CT,Cultural & Related Services,Business Support,IT Equipment & Software,D32000,01/09/2010,2758975,19.61,Supplies Team Ltd,21741
Solihull MBC,http://statistics.data.gov.uk/id/local-authority/00CT,Cultural & Related Services,Business Support,IT Equipment & Software,D32000,01/09/2010,2758975,19.61,Supplies Team Ltd,21741
Solihull MBC,http://statistics.data.gov.uk/id/local-authority/00CT,Cultural & Related Services,Business Support,IT Equipment & Software,D32000,01/09/2010,2758975,22.47,Supplies Team Ltd,21741
Solihull MBC,http://statistics.data.gov.uk/id/local-authority/00CT,Cultural & Related Services,Business Support,IT Equipment & Software,D32000,01/09/2010,2758975,82.56,Supplies Team Ltd,21741
Solihull MBC,http://statistics.data.gov.uk/id/local-authority/00CT,Cultural & Related Services,Business Support,IT Equipment & Software,D32000,01/09/2010,2758975,20.98,Supplies Team Ltd,21741
Solihull MBC,http://statistics.data.gov.uk/id/local-authority/00CT,Cultural & Related Services,Business Support,IT Equipment & Software,D32000,01/09/2010,2758975,41.28,Supplies Team Ltd,21741
Solihull MBC,http://statistics.data.gov.uk/id/local-authority/00CT,Cultural & Related Services,Business Support,IT Equipment & Software,D32000,01/09/2010,2758975,19.61,Supplies Team Ltd,21741
Solihull MBC,http://statistics.data.gov.uk/id/local-authority/00CT,Cultural & Related Services,Business Support,IT Equipment & Software,D32000,01/09/2010,2758975,45.32,Supplies Team Ltd,21741
Solihull MBC,http://statistics.data.gov.uk/id/local-authority/00CT,Cultural & Related Services,Business Support,IT Equipment & Software,D32000,08/09/2010,2763801,8400,Virgin Media Payments Ltd,172138
Solihull MBC,http://statistics.data.gov.uk/id/local-authority/00CT,Cultural & Related Services,Business Support,IT Equipment & Software,D32000,07/09/2010,2762900,9749.52,Virgin Media Payments Ltd,172138
Solihull MBC,http://statistics.data.gov.uk/id/local-authority/00CT,Central Services to the Public,C Chamber Public Add Sys,Furniture & Equipment,D10000,13/09/2010,2769739,49429,Sound Advice PA Ltd,199358
Solihull MBC,http://statistics.data.gov.uk/id/local-authority/00CT,Central Services to the Public,C Chamber Public Add Sys,Furniture & Equipment,D10000,13/09/2010,2769740,4528,Sound Advice PA Ltd,199358
Solihull MBC,http://statistics.data.gov.uk/id/local-authority/00CT,Central Services to the Public,C Chamber Public Add Sys,Furniture & Equipment,D10000,14/09/2010,2770535,-1344,Sound Advice PA Ltd,199358
Solihull MBC,http://statistics.data.gov.uk/id/local-authority/00CT,Cultural & Related Services,C S Coach Tennis,Professional Fees,D51000,10/09/2010,2768489,795,Solihull Arden Club,107449
Solihull MBC,http://statistics.data.gov.uk/id/local-authority/00CT,Cultural & Related Services,C S Coach Tennis,Professional Fees,D51000,28/09/2010,2781533,795,Solihull Tennis Club,276979
Solihull MBC,http://statistics.data.gov.uk/id/local-authority/00CT,Central Services to the Public,C.Tax Revenue Account,Council Tax: Police Authority,U33922,30/09/2010,2783772,659005,West Midlands Police Authority,8637
Solihull MBC,http://statistics.data.gov.uk/id/local-authority/00CT,Central Services to the Public,C.Tax Revenue Account,Council Tax: Police Authority,U33922,30/09/2010,2783771,20078,West Midlands Police Authority,8637
Solihull MBC,http://statistics.data.gov.uk/id/local-authority/00CT,Central Services to the Public,C.Tax Revenue Account,Council Tax: Fire Authority,U33923,30/09/2010,2783773,316953,West Midlands Fire Service,48662
Solihull MBC,http://statistics.data.gov.uk/id/local-authority/00CT,Children & Education Services,CAMHS Grant,Other Contracted Services,E29000,15/09/2010,2771409,62583,Solihull NHS Care Trust,218430
Solihull MBC,http://statistics.data.gov.uk/id/local-authority/00CT,Housing Revenue Account,Capital Programme,General Creditors,S00000,06/09/2010,2762513,1983597,Solihull Community Housing,102685
Solihull MBC,http://statistics.data.gov.uk/id/local-authority/00CT,Central Services to the Public,Car Loans Raised,Other Long Term Assets,Q42000,14/09/2010,2770234,10000,Lookers Yardley,235010
Solihull MBC,http://statistics.data.gov.uk/id/local-authority/00CT,Environmental & Regulatory Services,Care For The Environment,Agency Staff,A35000,06/09/2010,2761594,1788.09,SFS Services Ltd,227508
Solihull MBC,http://statistics.data.gov.uk/id/local-authority/00CT,Environmental & Regulatory Services,Care For The Environment,Agency Staff,A35000,06/09/2010,2761594,64.8,SFS Services Ltd,227508
Solihull MBC,http://statistics.data.gov.uk/id/local-authority/00CT,Children & Education Services,Care Matters,Agency Staff,A35000,10/09/2010,2768951,940,Simpson Lang Associates Ltd,243061
Solihull MBC,http://statistics.data.gov.uk/id/local-authority/00CT,Children & Education Services,Care Matters,Agency Staff,A35000,10/09/2010,2768953,470,Simpson Lang Associates Ltd,243061
Solihull MBC,http://statistics.data.gov.uk/id/local-authority/00CT,Children & Education Services,Care Matters,Agency Staff,A35000,08/09/2010,2764059,470,Simpson Lang Associates Ltd,243061
Solihull MBC,http://statistics.data.gov.uk/id/local-authority/00CT,Children & Education Services,Care Matters,Agency Staff,A35000,27/09/2010,2781272,515.88,Reed Specialist Recruitment Ltd,255596
Solihull MBC,http://statistics.data.gov.uk/id/local-authority/00CT,Children & Education Services,Care Matters,Agency Staff,A35000,21/09/2010,2775116,488.7,Reed Specialist Recruitment Ltd,255596
Solihull MBC,http://statistics.data.gov.uk/id/local-authority/00CT,Children & Education Services,Care Matters,Agency Staff,A35000,06/09/2010,2762238,488.7,Reed Specialist Recruitment Ltd,255596
Solihull MBC,http://statistics.data.gov.uk/id/local-authority/00CT,Adult Social Care,Care Trust Facilities,Cleaning Contracts,B40001,13/09/2010,2769694,6808.47,Connaught Environmental Ltd,244613
Solihull MBC,http://statistics.data.gov.uk/id/local-authority/00CT,Adult Social Care,Care Trust Facilities,Community Care,E21000,20/09/2010,2774545,700,Marsden PTS Ltd,6549
Solihull MBC,http://statistics.data.gov.uk/id/local-authority/00CT,Adult Social Care,Care Trust Facilities,Community Care,E21000,09/09/2010,2767695,1368,Friendly Radio Cars Ltd,224082
Solihull MBC,http://statistics.data.gov.uk/id/local-authority/00CT,Adult Social Care,Care Trust Facilities,Community Care,E21000,15/09/2010,2771319,1260,T C Cars,8132
Solihull MBC,http://statistics.data.gov.uk/id/local-authority/00CT,Adult Social Care,Care Trust Facilities,Community Care,E21000,22/09/2010,2776232,1104,Local Radio Cars,6421
Solihull MBC,http://statistics.data.gov.uk/id/local-authority/00CT,Adult Social Care,Care Trust Facilities,Community Care,E21000,15/09/2010,2771322,960,T C Cars,8132
Solihull MBC,http://statistics.data.gov.uk/id/local-authority/00CT,Adult Social Care,Care Trust Facilities,Community Care,E21000,22/09/2010,2776175,832,Local Radio Cars,6421
Solihull MBC,http://statistics.data.gov.uk/id/local-authority/00CT,Adult Social Care,Care Trust Facilities,Community Care,E21000,22/09/2010,2776178,780,Local Radio Cars,6421
Solihull MBC,http://statistics.data.gov.uk/id/local-authority/00CT,Adult Social Care,Care Trust Facilities,Community Care,E21000,22/09/2010,2776177,650,Local Radio Cars,6421
Solihull MBC,http://statistics.data.gov.uk/id/local-authority/00CT,Adult Social Care,Care Trust Facilities,Community Care,E21000,22/09/2010,2776184,600,Local Radio Cars,6421
Solihull MBC,http://statistics.data.gov.uk/id/local-authority/00CT,Children & Education Services,Carefirst 6.9,Consultants,Y31000,28/09/2010,2781731,4900,Simpson Lang Associates Ltd,243061
Solihull MBC,http://statistics.data.gov.uk/id/local-authority/00CT,Children & Education Services,Carers Childrens Services,Clients Expenses,D62000,22/09/2010,2776000,1010.38,REDACTED PERSONAL DATA,119609
Solihull MBC,http://statistics.data.gov.uk/id/local-authority/00CT,Children & Education Services,Carers Childrens Services,Clients Expenses,D62000,22/09/2010,2775999,699.49,REDACTED PERSONAL DATA,119609
Solihull MBC,http://statistics.data.gov.uk/id/local-authority/00CT,Highways & Transport Services,Carriageway Maintenance,Contractors,Y21000,03/09/2010,2761394,50374.12,Ringway,131294
Solihull MBC,http://statistics.data.gov.uk/id/local-authority/00CT,Highways & Transport Services,Carriageway Maintenance,Contractors,Y21000,03/09/2010,2761389,12146.6,Ringway,131294
Solihull MBC,http://statistics.data.gov.uk/id/local-authority/00CT,Children & Education Services,Castle Bromwich Inf,Capitation,D11001,27/09/2010,2780524,430.89,Baker Ross Ltd,7494
Solihull MBC,http://statistics.data.gov.uk/id/local-authority/00CT,Children & Education Services,Castle Bromwich Inf,Alarms,B43002,15/09/2010,2771177,874,Patrol Alarm Systems Ltd,7199
Solihull MBC,http://statistics.data.gov.uk/id/local-authority/00CT,Children & Education Services,Castle Bromwich Inf,Consultants,Y31000,03/09/2010,2761178,4254.05,Construction Management Services,10057
Solihull MBC,http://statistics.data.gov.uk/id/local-authority/00CT,Children & Education Services,Castle Bromwich Inf,Furniture & Equipment,D10000,09/09/2010,2767907,536,Designs For Education,242800
Solihull MBC,http://statistics.data.gov.uk/id/local-authority/00CT,Children & Education Services,Castle Bromwich Inf,Professional Fees,D51000,03/09/2010,2761123,766,Clare Daniels,227130
Solihull MBC,http://statistics.data.gov.uk/id/local-authority/00CT,Children & Education Services,Castle Bromwich Inf,Employee Advertising,A34001,21/09/2010,2775186,1753.27,Euro Rscg Riley Ltd,124888
Solihull MBC,http://statistics.data.gov.uk/id/local-authority/00CT,Children & Education Services,Castle Bromwich Inf,Furniture & Equipment,D10000,01/09/2010,2758972,2193.93,Remploy Ltd,7489
Solihull MBC,http://statistics.data.gov.uk/id/local-authority/00CT,Children & Education Services,Castle Bromwich Inf,Furniture & Equipment,D10000,01/09/2010,2758974,1189.17,Remploy Ltd,7489
Solihull MBC,http://statistics.data.gov.uk/id/local-authority/00CT,Children & Education Services,Castle Bromwich Inf,Furniture & Equipment,D10000,01/09/2010,2758974,742.68,Remploy Ltd,7489
Solihull MBC,http://statistics.data.gov.uk/id/local-authority/00CT,Children & Education Services,Castle Bromwich Inf,Furniture & Equipment,D10000,01/09/2010,2758973,626.49,Remploy Ltd,7489
Solihull MBC,http://statistics.data.gov.uk/id/local-authority/00CT,Children & Education Services,Castle Bromwich Inf,Building Maint Planned,B31002,15/09/2010,2770973,763,Zone Cee Ltd,15254
Solihull MBC,http://statistics.data.gov.uk/id/local-authority/00CT,Children & Education Services,Castle Bromwich Inf,Contractors,Y21000,03/09/2010,2761170,8778.75,Zone Cee Ltd,15254
Solihull MBC,http://statistics.data.gov.uk/id/local-authority/00CT,Children & Education Services,Castle Bromwich Inf,Furniture & Equipment,D10000,20/09/2010,2774713,705.92,Viking Direct Ltd,8543
Solihull MBC,http://statistics.data.gov.uk/id/local-authority/00CT,Children & Education Services,Castle Bromwich Inf,Capitation,D11001,02/09/2010,2760606,795.25,Eastern Shires Purchasing Organisation,6363
Solihull MBC,http://statistics.data.gov.uk/id/local-authority/00CT,Children & Education Services,Castle Bromwich Inf,Contractors,Y21000,03/09/2010,2761250,47500,Solihull Roofing & Bldg Co Ltd,7890
Solihull MBC,http://statistics.data.gov.uk/id/local-authority/00CT,Children & Education Services,Castle Bromwich Inf,Capitation,D11001,23/09/2010,2779473,539.1,Polycopy Paper & Stationery,49512
Solihull MBC,http://statistics.data.gov.uk/id/local-authority/00CT,Children & Education Services,Castle Bromwich Inf,IT Equipment & Software,D32000,23/09/2010,2779471,586,Polycopy Paper & Stationery,49512
Solihull MBC,http://statistics.data.gov.uk/id/local-authority/00CT,Children & Education Services,Castle Bromwich Inf,Health & Safety,B43003,03/09/2010,2761151,885,Aquaid,71388
Solihull MBC,http://statistics.data.gov.uk/id/local-authority/00CT,Children & Education Services,Castle Bromwich Jnr,Building Maint Planned,B31002,16/09/2010,2771823,3850,P W Humphries,7160
Solihull MBC,http://statistics.data.gov.uk/id/local-authority/00CT,Children & Education Services,Castle Bromwich Jnr,Internal Income-Insurance Claims,H21922,15/09/2010,2770931,1187.61,P W Humphries,7160
Solihull MBC,http://statistics.data.gov.uk/id/local-authority/00CT,Children & Education Services,Castle Bromwich Jnr,Building Maint Planned,B31002,15/09/2010,2770962,885,Patrol Alarm Systems Ltd,7199
Solihull MBC,http://statistics.data.gov.uk/id/local-authority/00CT,Children & Education Services,Castle Bromwich Jnr,Capitation,D11001,15/09/2010,2770936,3617,Active Visual Supplies Ltd,57805
Solihull MBC,http://statistics.data.gov.uk/id/local-authority/00CT,Children & Education Services,Castle Bromwich Jnr,Building Maint Day To Day,B31001,16/09/2010,2771829,2676,Shellbys Decorations,280350
Solihull MBC,http://statistics.data.gov.uk/id/local-authority/00CT,Children & Education Services,Castle Bromwich Jnr,Building Maint Day To Day,B31001,22/09/2010,2775625,429.99,Dodd Group (Midlands) Ltd,60305
Solihull MBC,http://statistics.data.gov.uk/id/local-authority/00CT,Children & Education Services,Castle Bromwich Jnr,Building Maint Planned,B31002,15/09/2010,2770958,725,Parkway Ground Maint Ltd,7189
Solihull MBC,http://statistics.data.gov.uk/id/local-authority/00CT,Children & Education Services,Castle Bromwich Jnr,Maintenance Of Grounds,B30000,16/09/2010,2771820,870,Parkway Ground Maint Ltd,7189
Solihull MBC,http://statistics.data.gov.uk/id/local-authority/00CT,Children & Education Services,Castle Bromwich Jnr,Capitation,D11001,08/09/2010,2764064,550,Parkmere Products,103620
Solihull MBC,http://statistics.data.gov.uk/id/local-authority/00CT,Children & Education Services,Castle Bromwich Jnr,Capitation,D11001,22/09/2010,2775600,455.02,Av Parts Master,124433
Solihull MBC,http://statistics.data.gov.uk/id/local-authority/00CT,Children & Education Services,Castle Bromwich Jnr,Stationery,D41000,08/09/2010,2764066,807.78,Lyreco UK Ltd,74691
Solihull MBC,http://statistics.data.gov.uk/id/local-authority/00CT,Children & Education Services,Castle Bromwich Jnr,Building Maint Planned,B31002,16/09/2010,2771824,3380.94,Nova Installation Ltd,276377
Solihull MBC,http://statistics.data.gov.uk/id/local-authority/00CT,Children & Education Services,Castle Bromwich Jnr,Internal Income-Insurance Claims,H21922,15/09/2010,2770952,1520.6,Nova Installation Ltd,276377
Solihull MBC,http://statistics.data.gov.uk/id/local-authority/00CT,Children & Education Services,Castle Bromwich Jnr,Photocopying,D40001,22/09/2010,2775591,883.24,Digital Copier Systems Ltd,88169
Solihull MBC,http://statistics.data.gov.uk/id/local-authority/00CT,Children & Education Services,Castle Bromwich Jnr,Stationery,D41000,08/09/2010,2764053,582.49,Eastern Shires Purchasing Organisation,6363
Solihull MBC,http://statistics.data.gov.uk/id/local-authority/00CT,Children & Education Services,Castle Bromwich Jnr,Capitation,D11001,08/09/2010,2764061,880,Loud Mouth Theatre Co,233782
Solihull MBC,http://statistics.data.gov.uk/id/local-authority/00CT,Cultural & Related Services,Castle Bromwich Library,Other Premise Costs,B43000,08/09/2010,2764089,540,Patrol Alarm Systems Ltd,7199
Solihull MBC,http://statistics.data.gov.uk/id/local-authority/00CT,Cultural & Related Services,Castle Bromwich Library,Cleaning Contracts,B40001,07/09/2010,2762949,230.8,Connaught Environmental Ltd,244613
Solihull MBC,http://statistics.data.gov.uk/id/local-authority/00CT,Cultural & Related Services,Castle Bromwich Library,Cleaning Contracts,B40001,13/09/2010,2769695,230.8,Connaught Environmental Ltd,244613
Solihull MBC,http://statistics.data.gov.uk/id/local-authority/00CT,Children & Education Services,Castle Bromwich School YC,Capitation,D11001,22/09/2010,2775597,930,Worcestershire County Council,8721
Solihull MBC,http://statistics.data.gov.uk/id/local-authority/00CT,Children & Education Services,Catering Management,Training,A32000,21/09/2010,2775300,600,PSCA International,110689
Solihull MBC,http://statistics.data.gov.uk/id/local-authority/00CT,Children & Education Services,Catering Management,Advertising/Publicity/Promotion,D93000,21/09/2010,2775305,548.2,Party Packs UK,279947
Solihull MBC,http://statistics.data.gov.uk/id/local-authority/00CT,Children & Education Services,Catering Management,Advertising/Publicity/Promotion,D93000,10/09/2010,2768576,565,FT Print Ltd,138958
Solihull MBC,http://statistics.data.gov.uk/id/local-authority/00CT,Children & Education Services,Catering Management,IT Equipment & Software,D32000,01/09/2010,2758975,130.8,Supplies Team Ltd,21741
Solihull MBC,http://statistics.data.gov.uk/id/local-authority/00CT,Children & Education Services,Catering Management,IT Equipment & Software,D32000,01/09/2010,2758975,4.39,Supplies Team Ltd,21741
Solihull MBC,http://statistics.data.gov.uk/id/local-authority/00CT,Environmental & Regulatory Services,CCTV Revenue Account,Other Contracted Services,E29000,23/09/2010,2779406,3475.67,Quadrant Security Group Ltd,136158
Solihull MBC,http://statistics.data.gov.uk/id/local-authority/00CT,Children & Education Services,Central Area - Youth,Advertising/Publicity/Promotion,D93000,23/09/2010,2779554,-550,Crime Services Agency,109085
Solihull MBC,http://statistics.data.gov.uk/id/local-authority/00CT,Children & Education Services,Central Area - Youth,IT Equipment & Software,D32000,08/09/2010,2763801,2700,Virgin Media Payments Ltd,172138
Solihull MBC,http://statistics.data.gov.uk/id/local-authority/00CT,Children & Education Services,Central Area - Youth,IT Equipment & Software,D32000,08/09/2010,2763783,4050,Virgin Media Payments Ltd,172138
Solihull MBC,http://statistics.data.gov.uk/id/local-authority/00CT,Central Services to the Public,Central Recruitment,Employee Advertising,A34001,17/09/2010,2773855,3797.6,SHL (UK) Ltd,105747
Solihull MBC,http://statistics.data.gov.uk/id/local-authority/00CT,Central Services to the Public,Central Services,Other Premise Costs,B43000,07/09/2010,2763092,450,Synel Industries (UK) Ltd,8123
Solihull MBC,http://statistics.data.gov.uk/id/local-authority/00CT,Central Services to the Public,Central Services,Other Premise Costs,B43000,07/09/2010,2763092,10,Synel Industries (UK) Ltd,8123
Solihull MBC,http://statistics.data.gov.uk/id/local-authority/00CT,Housing Revenue Account,Central Support,Building Insurance,B41000,07/09/2010,2762738,12695.79,Marsh UK Ltd,27361
Solihull MBC,http://statistics.data.gov.uk/id/local-authority/00CT,Children & Education Services,Chapel Fields Jnr,Furniture & Equipment,D10000,16/09/2010,2772935,1218,Solihull Supplies,7895
Solihull MBC,http://statistics.data.gov.uk/id/local-authority/00CT,Children & Education Services,Chapel Fields Jnr,Photocopying,D40001,16/09/2010,2773138,1587.66,CF Asset,221711
Solihull MBC,http://statistics.data.gov.uk/id/local-authority/00CT,Children & Education Services,Chapel Fields Jnr,Maintenance Of Grounds,B30000,16/09/2010,2773133,437.21,Hosking Ground Maintenance,5897
Solihull MBC,http://statistics.data.gov.uk/id/local-authority/00CT,Children & Education Services,Chapel Fields Jnr,Visits & Pupil Activities,D52002,30/09/2010,2784042,1750,Manor Adventure,18756
Solihull MBC,http://statistics.data.gov.uk/id/local-authority/00CT,Children & Education Services,Chapel Fields Jnr,Refuse Collection,B43001,16/09/2010,2773093,19.67,SITA,68424
Solihull MBC,http://statistics.data.gov.uk/id/local-authority/00CT,Children & Education Services,Chapel Fields Jnr,Refuse Collection,B43001,16/09/2010,2773093,477.7,SITA,68424
Solihull MBC,http://statistics.data.gov.uk/id/local-authority/00CT,Children & Education Services,Chapel Fields Jnr,Refuse Collection,B43001,16/09/2010,2772939,478.3,SITA,68424
Solihull MBC,http://statistics.data.gov.uk/id/local-authority/00CT,Children & Education Services,Chapel Fields Jnr,Examination Fees,D52001,11/08/2010,PC36330,1334.77,Diversity Travel,Purchase Card Supplier
Solihull MBC,http://statistics.data.gov.uk/id/local-authority/00CT,Children & Education Services,Chapel Fields Jnr,Examination Fees,D52001,11/08/2010,PC36323,667.38,Diversity Travel,Purchase Card Supplier
Solihull MBC,http://statistics.data.gov.uk/id/local-authority/00CT,Central Services to the Public,Chelmsley Wood T/Centre,Cleaning Contracts,B40001,13/09/2010,2769695,2307.99,Connaught Environmental Ltd,244613
Solihull MBC,http://statistics.data.gov.uk/id/local-authority/00CT,Central Services to the Public,Chelmsley Wood T/Centre,Cleaning Contracts,B40001,07/09/2010,2762949,2307.99,Connaught Environmental Ltd,244613
Solihull MBC,http://statistics.data.gov.uk/id/local-authority/00CT,Central Services to the Public,Chelmsley Wood T/Centre,Business Rates,B20000,09/09/2010,2767779,125401.77,Solihull MBC,80026
Solihull MBC,http://statistics.data.gov.uk/id/local-authority/00CT,Central Services to the Public,Chelmsley Wood T/Centre,Business Rates,B20000,09/09/2010,2767778,64023.22,Solihull MBC,80026
Solihull MBC,http://statistics.data.gov.uk/id/local-authority/00CT,Central Services to the Public,Chelmsley Wood T/Centre,Business Rates,B20000,09/09/2010,2767933,26026.47,Solihull MBC,80026
Solihull MBC,http://statistics.data.gov.uk/id/local-authority/00CT,Central Services to the Public,Chelmsley Wood T/Centre,Rents For Premises,B22000,13/09/2010,2769508,13175,Mayfield Asset & Property Management Ltd,196882
Solihull MBC,http://statistics.data.gov.uk/id/local-authority/00CT,Central Services to the Public,Chelmsley Wood T/Centre,Rents For Premises,B22000,13/09/2010,2769512,10343.75,Mayfield Asset & Property Management Ltd,196882
Solihull MBC,http://statistics.data.gov.uk/id/local-authority/00CT,Central Services to the Public,Chelmsley Wood T/Centre,Rents For Premises,B22000,13/09/2010,2769511,3172.5,Mayfield Asset & Property Management Ltd,196882
Solihull MBC,http://statistics.data.gov.uk/id/local-authority/00CT,Children & Education Services,Chess,Foster Parents,D50000,27/09/2010,2781004,651.49,REDACTED PERSONAL DATA,225471
Solihull MBC,http://statistics.data.gov.uk/id/local-authority/00CT,Children & Education Services,Chess,Foster Parents,D50000,20/09/2010,2774196,544.5,REDACTED PERSONAL DATA,110739
Solihull MBC,http://statistics.data.gov.uk/id/local-authority/00CT,Children & Education Services,Chess,Foster Parents,D50000,27/09/2010,2780748,544.5,REDACTED PERSONAL DATA,110738
Solihull MBC,http://statistics.data.gov.uk/id/local-authority/00CT,Children & Education Services,Chess,Foster Parents,D50000,13/09/2010,2769252,544.5,REDACTED PERSONAL DATA,110738
Solihull MBC,http://statistics.data.gov.uk/id/local-authority/00CT,Children & Education Services,Chess,Foster Parents,D50000,13/09/2010,2769254,544.5,REDACTED PERSONAL DATA,110739
Solihull MBC,http://statistics.data.gov.uk/id/local-authority/00CT,Children & Education Services,Chess,Foster Parents,D50000,27/09/2010,2780751,544.5,REDACTED PERSONAL DATA,110739
Solihull MBC,http://statistics.data.gov.uk/id/local-authority/00CT,Children & Education Services,Chess,Foster Parents,D50000,20/09/2010,2774194,544.5,REDACTED PERSONAL DATA,110738
Solihull MBC,http://statistics.data.gov.uk/id/local-authority/00CT,Children & Education Services,Chess,Foster Parents,D50000,06/09/2010,2761798,544.5,REDACTED PERSONAL DATA,110738
Solihull MBC,http://statistics.data.gov.uk/id/local-authority/00CT,Children & Education Services,Chess,Foster Parents,D50000,06/09/2010,2761800,544.5,REDACTED PERSONAL DATA,110739
Solihull MBC,http://statistics.data.gov.uk/id/local-authority/00CT,Children & Education Services,Chess,Foster Parents,D50000,27/09/2010,2780862,544.5,REDACTED PERSONAL DATA,148349
Solihull MBC,http://statistics.data.gov.uk/id/local-authority/00CT,Children & Education Services,Chess,Foster Parents,D50000,20/09/2010,2774269,544.5,REDACTED PERSONAL DATA,148349
Solihull MBC,http://statistics.data.gov.uk/id/local-authority/00CT,Children & Education Services,Chess,Foster Parents,D50000,13/09/2010,2769321,544.5,REDACTED PERSONAL DATA,148349
Solihull MBC,http://statistics.data.gov.uk/id/local-authority/00CT,Children & Education Services,Chess,Foster Parents,D50000,06/09/2010,2761884,544.5,REDACTED PERSONAL DATA,148349
Solihull MBC,http://statistics.data.gov.uk/id/local-authority/00CT,Highways & Transport Services,Chester Road / Beechcroft Road,Consultants,Y31000,02/09/2010,2760726,1043.8,WSP UK,217189
Solihull MBC,http://statistics.data.gov.uk/id/local-authority/00CT,Children & Education Services,Cheswick Green J&I,Alarms,B43002,17/09/2010,2773723,815,Patrol Alarm Systems Ltd,7199
Solihull MBC,http://statistics.data.gov.uk/id/local-authority/00CT,Children & Education Services,Cheswick Green J&I,Professional Fees,D51000,17/09/2010,2773765,825,Malcolm Ratcliffe,15260
Solihull MBC,http://statistics.data.gov.uk/id/local-authority/00CT,Children & Education Services,Cheswick Green J&I,Training,A32000,17/09/2010,2773724,416.39,Croner Cch Group Ltd,10129
Solihull MBC,http://statistics.data.gov.uk/id/local-authority/00CT,Children & Education Services,Cheswick Green J&I,Training,A32000,17/09/2010,2773724,113.56,Croner Cch Group Ltd,10129
Solihull MBC,http://statistics.data.gov.uk/id/local-authority/00CT,Children & Education Services,Cheswick Green Pcp,Consultants,Y31000,02/09/2010,2760474,3000,Ridge,141623
Solihull MBC,http://statistics.data.gov.uk/id/local-authority/00CT,Children & Education Services,Child Disability Dom Care,Clients Expenses,D62000,22/09/2010,2776037,900.33,REDACTED PERSONAL DATA,95066
Solihull MBC,http://statistics.data.gov.uk/id/local-authority/00CT,Children & Education Services,Child Disability Dom Care,Clients Expenses,D62000,30/09/2010,2783713,2559.34,Livingwell Care Ltd,166712
Solihull MBC,http://statistics.data.gov.uk/id/local-authority/00CT,Children & Education Services,Child Disability Dom Care,Clients Expenses,D62000,06/09/2010,2761752,1928.63,Livingwell Care Ltd,166712
Solihull MBC,http://statistics.data.gov.uk/id/local-authority/00CT,Children & Education Services,Child Disability Dom Care,Clients Expenses,D62000,10/09/2010,2768360,1871.68,Take-A-Break,78141
Solihull MBC,http://statistics.data.gov.uk/id/local-authority/00CT,Children & Education Services,Child Disability Dom Care,Clients Expenses,D62000,06/09/2010,2762353,1716.5,Care Help Line (Solihull) Ltd,9791
Solihull MBC,http://statistics.data.gov.uk/id/local-authority/00CT,Children & Education Services,Child Disability Dom Care,Clients Expenses,D62000,10/09/2010,2768362,930.63,Take-A-Break,78141
Solihull MBC,http://statistics.data.gov.uk/id/local-authority/00CT,Children & Education Services,Child Disability Dom Care,Clients Expenses,D62000,08/09/2010,2763934,888.96,Take-A-Break,78141
Solihull MBC,http://statistics.data.gov.uk/id/local-authority/00CT,Children & Education Services,Child Disability Dom Care,Clients Expenses,D62000,30/09/2010,2782523,749,Safehands Network (Bham South) Ltd,193659
Solihull MBC,http://statistics.data.gov.uk/id/local-authority/00CT,Children & Education Services,Child Disability Dom Care,Clients Expenses,D62000,20/09/2010,2774232,740.01,Crossroads Caring For Carers,122691
Solihull MBC,http://statistics.data.gov.uk/id/local-authority/00CT,Children & Education Services,Child Disability Dom Care,Clients Expenses,D62000,22/09/2010,2775991,725.4,REDACTED PERSONAL DATA,279245
Solihull MBC,http://statistics.data.gov.uk/id/local-authority/00CT,Children & Education Services,Child Disability Dom Care,Clients Expenses,D62000,22/09/2010,2775994,725.4,REDACTED PERSONAL DATA,244060
Solihull MBC,http://statistics.data.gov.uk/id/local-authority/00CT,Children & Education Services,Child Disability Dom Care,Clients Expenses,D62000,06/09/2010,2762349,507.72,Crossroads Caring For Carers,122691
Solihull MBC,http://statistics.data.gov.uk/id/local-authority/00CT,Children & Education Services,Child Disability Dom Care,Clients Expenses,D62000,22/09/2010,2776029,3574.66,REDACTED PERSONAL DATA,92230
Solihull MBC,http://statistics.data.gov.uk/id/local-authority/00CT,Children & Education Services,Child Disability Dom Care,Clients Expenses,D62000,22/09/2010,2776030,1571.14,REDACTED PERSONAL DATA,249365
Solihull MBC,http://statistics.data.gov.uk/id/local-authority/00CT,Children & Education Services,Child Disability Dom Care,Clients Expenses,D62000,22/09/2010,2776067,1347.17,REDACTED PERSONAL DATA,126280
Solihull MBC,http://statistics.data.gov.uk/id/local-authority/00CT,Children & Education Services,Child Disability Dom Care,Clients Expenses,D62000,22/09/2010,2775996,952.14,REDACTED PERSONAL DATA,101584
Solihull MBC,http://statistics.data.gov.uk/id/local-authority/00CT,Children & Education Services,Child Disability Dom Care,Clients Expenses,D62000,22/09/2010,2776043,744.89,REDACTED PERSONAL DATA,275375
Solihull MBC,http://statistics.data.gov.uk/id/local-authority/00CT,Children & Education Services,Child Disability Dom Care,Clients Expenses,D62000,22/09/2010,2775973,693.07,REDACTED PERSONAL DATA,238898
Solihull MBC,http://statistics.data.gov.uk/id/local-authority/00CT,Children & Education Services,Child Disability Dom Care,Clients Expenses,D62000,22/09/2010,2775976,558.26,REDACTED PERSONAL DATA,110653
Solihull MBC,http://statistics.data.gov.uk/id/local-authority/00CT,Children & Education Services,Child Disability Dom Care,Clients Expenses,D62000,30/09/2010,2783710,2838.09,Alpha Nursing & Care Services,206961
Solihull MBC,http://statistics.data.gov.uk/id/local-authority/00CT,Children & Education Services,Child Disability Dom Care,Clients Expenses,D62000,02/09/2010,2760508,1019.2,Solihull Life Opportunities,230266
Solihull MBC,http://statistics.data.gov.uk/id/local-authority/00CT,Children & Education Services,Child Protection Unit (Prevention),Agency Staff,A35000,27/09/2010,2781224,1407,Reed Specialist Recruitment Ltd,255596
Solihull MBC,http://statistics.data.gov.uk/id/local-authority/00CT,Children & Education Services,Child Protection Unit (Prevention),Agency Staff,A35000,21/09/2010,2775131,1407,Reed Specialist Recruitment Ltd,255596
Solihull MBC,http://statistics.data.gov.uk/id/local-authority/00CT,Children & Education Services,Child Protection Unit (Prevention),Agency Staff,A35000,14/09/2010,2770573,1055.25,Reed Specialist Recruitment Ltd,255596
Solihull MBC,http://statistics.data.gov.uk/id/local-authority/00CT,Children & Education Services,Child Protection Unit (Prevention),Agency Staff,A35000,14/09/2010,2770570,891.1,Reed Specialist Recruitment Ltd,255596
Solihull MBC,http://statistics.data.gov.uk/id/local-authority/00CT,Children & Education Services,Child Protection Unit (Prevention),Stationery,D41000,13/09/2010,2769463,35.32,Lyreco UK Ltd,74691
Solihull MBC,http://statistics.data.gov.uk/id/local-authority/00CT,Children & Education Services,Child Protection Unit (Prevention),Stationery,D41000,13/09/2010,2769463,20,Lyreco UK Ltd,74691
Solihull MBC,http://statistics.data.gov.uk/id/local-authority/00CT,Children & Education Services,Child Protection Unit (Prevention),Stationery,D41000,08/09/2010,2764106,0.6,Lyreco UK Ltd,74691
Solihull MBC,http://statistics.data.gov.uk/id/local-authority/00CT,Children & Education Services,Child Protection Unit (Prevention),Stationery,D41000,08/09/2010,2764106,3.2,Lyreco UK Ltd,74691
Solihull MBC,http://statistics.data.gov.uk/id/local-authority/00CT,Children & Education Services,Child Protection Unit (Prevention),Stationery,D41000,08/09/2010,2764106,17.02,Lyreco UK Ltd,74691
Solihull MBC,http://statistics.data.gov.uk/id/local-authority/00CT,Children & Education Services,Child Protection Unit (Prevention),Stationery,D41000,08/09/2010,2764106,1,Lyreco UK Ltd,74691
Solihull MBC,http://statistics.data.gov.uk/id/local-authority/00CT,Children & Education Services,Child Protection Unit (Prevention),Stationery,D41000,08/09/2010,2764106,4.8,Lyreco UK Ltd,74691
Solihull MBC,http://statistics.data.gov.uk/id/local-authority/00CT,Children & Education Services,Child Protection Unit (Prevention),Stationery,D41000,08/09/2010,2764106,3.2,Lyreco UK Ltd,74691
Solihull MBC,http://statistics.data.gov.uk/id/local-authority/00CT,Children & Education Services,Child Protection Unit (Prevention),Training,A32000,16/09/2010,2772799,502.2,Positive Learning Ltd,279250
Solihull MBC,http://statistics.data.gov.uk/id/local-authority/00CT,Central Services to the Public,Childcare Vouchers,Other Fees,D52000,09/09/2010,2764185,44.88,Edenred,276843
Solihull MBC,http://statistics.data.gov.uk/id/local-authority/00CT,Central Services to the Public,Childcare Vouchers,Other Fees,D52000,09/09/2010,2764185,1122,Edenred,276843
Solihull MBC,http://statistics.data.gov.uk/id/local-authority/00CT,Children & Education Services,Children Subs Misuse Serv,Agency Staff,A35000,06/09/2010,2762267,810.58,Reed Specialist Recruitment Ltd,255596
Solihull MBC,http://statistics.data.gov.uk/id/local-authority/00CT,Children & Education Services,Children Subs Misuse Serv,Agency Staff,A35000,21/09/2010,2775087,759.04,Reed Specialist Recruitment Ltd,255596
Solihull MBC,http://statistics.data.gov.uk/id/local-authority/00CT,Children & Education Services,Children Subs Misuse Serv,Agency Staff,A35000,14/09/2010,2770579,638.77,Reed Specialist Recruitment Ltd,255596
Solihull MBC,http://statistics.data.gov.uk/id/local-authority/00CT,Children & Education Services,Children Sw-Dart,Agency Staff,A35000,14/09/2010,2770601,1388.24,Reed Specialist Recruitment Ltd,255596
Solihull MBC,http://statistics.data.gov.uk/id/local-authority/00CT,Children & Education Services,Children Sw-Dart,Agency Staff,A35000,21/09/2010,2775048,1388.24,Reed Specialist Recruitment Ltd,255596
Solihull MBC,http://statistics.data.gov.uk/id/local-authority/00CT,Children & Education Services,Children Sw-Dart,Agency Staff,A35000,27/09/2010,2781250,1388.24,Reed Specialist Recruitment Ltd,255596
Solihull MBC,http://statistics.data.gov.uk/id/local-authority/00CT,Children & Education Services,Children Sw-Dart,Agency Staff,A35000,14/09/2010,2770598,1289.08,Reed Specialist Recruitment Ltd,255596
Solihull MBC,http://statistics.data.gov.uk/id/local-authority/00CT,Children & Education Services,Children Sw-Dart,Agency Staff,A35000,06/09/2010,2762253,1289.08,Reed Specialist Recruitment Ltd,255596
Solihull MBC,http://statistics.data.gov.uk/id/local-authority/00CT,Children & Education Services,Children Sw-Dart,Agency Staff,A35000,21/09/2010,2775109,1289.08,Reed Specialist Recruitment Ltd,255596
Solihull MBC,http://statistics.data.gov.uk/id/local-authority/00CT,Children & Education Services,Children Sw-Dart,Agency Staff,A35000,27/09/2010,2781247,1289.08,Reed Specialist Recruitment Ltd,255596
Solihull MBC,http://statistics.data.gov.uk/id/local-authority/00CT,Children & Education Services,Children Sw-Dart,Agency Staff,A35000,14/09/2010,2770600,1189.92,Reed Specialist Recruitment Ltd,255596
Solihull MBC,http://statistics.data.gov.uk/id/local-authority/00CT,Children & Education Services,Children Sw-Dart,Agency Staff,A35000,21/09/2010,2775047,1189.92,Reed Specialist Recruitment Ltd,255596
Solihull MBC,http://statistics.data.gov.uk/id/local-authority/00CT,Children & Education Services,Children Sw-Dart,Agency Staff,A35000,27/09/2010,2781249,1189.92,Reed Specialist Recruitment Ltd,255596
Solihull MBC,http://statistics.data.gov.uk/id/local-authority/00CT,Children & Education Services,Children Sw-Dart,Agency Staff,A35000,06/09/2010,2762247,1189.92,Reed Specialist Recruitment Ltd,255596
Solihull MBC,http://statistics.data.gov.uk/id/local-authority/00CT,Children & Education Services,Children Sw-Dart,Agency Staff,A35000,06/09/2010,2762260,825.44,Reed Specialist Recruitment Ltd,255596
Solihull MBC,http://statistics.data.gov.uk/id/local-authority/00CT,Children & Education Services,Children Sw-Dart,Agency Staff,A35000,14/09/2010,2770603,675.03,Reed Specialist Recruitment Ltd,255596
Solihull MBC,http://statistics.data.gov.uk/id/local-authority/00CT,Children & Education Services,Children Sw-Dart,Agency Staff,A35000,21/09/2010,2775051,675.03,Reed Specialist Recruitment Ltd,255596
Solihull MBC,http://statistics.data.gov.uk/id/local-authority/00CT,Children & Education Services,Children Sw-Dart,Agency Staff,A35000,21/09/2010,2775133,675.03,Reed Specialist Recruitment Ltd,255596
Solihull MBC,http://statistics.data.gov.uk/id/local-authority/00CT,Children & Education Services,Children Sw-Dart,Agency Staff,A35000,06/09/2010,2762252,675.03,Reed Specialist Recruitment Ltd,255596
Solihull MBC,http://statistics.data.gov.uk/id/local-authority/00CT,Children & Education Services,Children Sw-South/Central,Agency Staff,A35000,06/09/2010,2762256,1140.34,Reed Specialist Recruitment Ltd,255596
Solihull MBC,http://statistics.data.gov.uk/id/local-authority/00CT,Children & Education Services,Children Sw-South/Central,Agency Staff,A35000,27/09/2010,2781287,1140.34,Reed Specialist Recruitment Ltd,255596
Solihull MBC,http://statistics.data.gov.uk/id/local-authority/00CT,Children & Education Services,Children Sw-South/Central,Agency Staff,A35000,14/09/2010,2770599,1140.34,Reed Specialist Recruitment Ltd,255596
Solihull MBC,http://statistics.data.gov.uk/id/local-authority/00CT,Children & Education Services,Children Sw-South/Central,Agency Staff,A35000,21/09/2010,2775112,1140.34,Reed Specialist Recruitment Ltd,255596
Solihull MBC,http://statistics.data.gov.uk/id/local-authority/00CT,Children & Education Services,Children Sw-South/Central,Agency Staff,A35000,27/09/2010,2781275,1090.76,Reed Specialist Recruitment Ltd,255596
Solihull MBC,http://statistics.data.gov.uk/id/local-authority/00CT,Children & Education Services,Children Sw-South/Central,Agency Staff,A35000,06/09/2010,2762289,1090.76,Reed Specialist Recruitment Ltd,255596
Solihull MBC,http://statistics.data.gov.uk/id/local-authority/00CT,Children & Education Services,Children Sw-South/Central,Agency Staff,A35000,14/09/2010,2770621,1090.76,Reed Specialist Recruitment Ltd,255596
Solihull MBC,http://statistics.data.gov.uk/id/local-authority/00CT,Children & Education Services,Children Sw-South/Central,Agency Staff,A35000,21/09/2010,2775132,884.4,Reed Specialist Recruitment Ltd,255596
Solihull MBC,http://statistics.data.gov.uk/id/local-authority/00CT,Children & Education Services,Childrens Centres,Other Contracted Services,E29000,10/09/2010,2768673,87327.26,NCH Action For Children Ltd,6960
Solihull MBC,http://statistics.data.gov.uk/id/local-authority/00CT,Children & Education Services,Childrens Centres,Other Contracted Services,E29000,10/09/2010,2768672,25168.8,NCH Action For Children Ltd,6960
Solihull MBC,http://statistics.data.gov.uk/id/local-authority/00CT,Children & Education Services,Childrens Centres,Other Contracted Services,E29000,10/09/2010,2768670,23669.13,NCH Action For Children Ltd,6960
Solihull MBC,http://statistics.data.gov.uk/id/local-authority/00CT,Children & Education Services,Childrens Centres,Other Contracted Services,E29000,15/09/2010,2771408,2148.8,Shirley Citizens Advice Bureau,7793
Solihull MBC,http://statistics.data.gov.uk/id/local-authority/00CT,Children & Education Services,Childrens Centres,IT Equipment & Software,D32000,07/09/2010,2763327,843.5,Scalable Networks PLC,122994
Solihull MBC,http://statistics.data.gov.uk/id/local-authority/00CT,Children & Education Services,Childrens Centres,Other Contracted Services,E29000,28/09/2010,2781800,7056,Renewal Christian Centre,83678
Solihull MBC,http://statistics.data.gov.uk/id/local-authority/00CT,Children & Education Services,Childrens Centres,Agency Staff,A35000,21/09/2010,2775045,442.99,Reed Specialist Recruitment Ltd,255596
Solihull MBC,http://statistics.data.gov.uk/id/local-authority/00CT,Children & Education Services,Childrens Centres,IT Equipment & Software,D32000,08/09/2010,2763801,2700,Virgin Media Payments Ltd,172138
Solihull MBC,http://statistics.data.gov.uk/id/local-authority/00CT,Children & Education Services,Childrens Centres,Telephones,D30000,02/09/2010,2760719,553.93,Virgin Media Payments Ltd,172138
Solihull MBC,http://statistics.data.gov.uk/id/local-authority/00CT,Children & Education Services,Childrens Centres,Telephones,D30000,29/09/2010,2782205,553.34,Virgin Media Payments Ltd,172138
Solihull MBC,http://statistics.data.gov.uk/id/local-authority/00CT,Children & Education Services,Childrens Contact Team,Cleaning Contracts,B40001,13/09/2010,2769695,846.26,Connaught Environmental Ltd,244613
Solihull MBC,http://statistics.data.gov.uk/id/local-authority/00CT,Children & Education Services,Childrens Contact Team,Cleaning Contracts,B40001,07/09/2010,2762949,846.26,Connaught Environmental Ltd,244613
Solihull MBC,http://statistics.data.gov.uk/id/local-authority/00CT,Children & Education Services,Childrens Contact Team,Cleaning Contracts,B40001,07/09/2010,2762949,1038.6,Connaught Environmental Ltd,244613
Solihull MBC,http://statistics.data.gov.uk/id/local-authority/00CT,Children & Education Services,Childrens Contact Team,Cleaning Contracts,B40001,13/09/2010,2769695,1038.6,Connaught Environmental Ltd,244613
Solihull MBC,http://statistics.data.gov.uk/id/local-authority/00CT,Children & Education Services,Childrens Contact Team,Agency Staff,A35000,06/09/2010,2762287,727.85,Reed Specialist Recruitment Ltd,255596
Solihull MBC,http://statistics.data.gov.uk/id/local-authority/00CT,Children & Education Services,Childrens Contact Team,Agency Staff,A35000,14/09/2010,2770587,727.85,Reed Specialist Recruitment Ltd,255596
Solihull MBC,http://statistics.data.gov.uk/id/local-authority/00CT,Children & Education Services,Childrens Contact Team,Agency Staff,A35000,27/09/2010,2781233,593.43,Reed Specialist Recruitment Ltd,255596
Solihull MBC,http://statistics.data.gov.uk/id/local-authority/00CT,Children & Education Services,Childrens Contact Team,Agency Staff,A35000,27/09/2010,2781234,435.18,Reed Specialist Recruitment Ltd,255596
Solihull MBC,http://statistics.data.gov.uk/id/local-authority/00CT,Children & Education Services,Childrens Fund Abg,Other Contracted Services,E29000,10/09/2010,2768680,9375,Solihull Carers Centre,120503
Solihull MBC,http://statistics.data.gov.uk/id/local-authority/00CT,Children & Education Services,Childrens Fund Abg,Other Contracted Services,E29000,24/09/2010,2780013,2625,Barnardos Midlands,121075
Solihull MBC,http://statistics.data.gov.uk/id/local-authority/00CT,Children & Education Services,Childrens Fund Abg,Other Contracted Services,E29000,24/09/2010,2780045,12825,National Youth Advocacy Service,268759
Solihull MBC,http://statistics.data.gov.uk/id/local-authority/00CT,Children & Education Services,Childrens Fund Abg,Other Contracted Services,E29000,24/09/2010,2780049,27881.58,Solihull Life Opportunities,230266
Solihull MBC,http://statistics.data.gov.uk/id/local-authority/00CT,Cultural & Related Services,Childrens Library Service,Books,D11410,28/09/2010,2781665,956.16,Askews Library Services Ltd,6562
Solihull MBC,http://statistics.data.gov.uk/id/local-authority/00CT,Children & Education Services,Childrens Management,Other Employee Costs,A39000,10/09/2010,2768807,756,Criminal  Records  Bureau,205951
Solihull MBC,http://statistics.data.gov.uk/id/local-authority/00CT,Children & Education Services,Childrens Social Work,Training,A32000,24/09/2010,2779980,526.38,Park Farm Hotel,281007
Solihull MBC,http://statistics.data.gov.uk/id/local-authority/00CT,Children & Education Services,Childrens Social Work,IT Equipment & Software,D32000,01/09/2010,2758975,17.21,Supplies Team Ltd,21741
Solihull MBC,http://statistics.data.gov.uk/id/local-authority/00CT,Children & Education Services,Childrens Social Work,IT Equipment & Software,D32000,01/09/2010,2758975,17.21,Supplies Team Ltd,21741
Solihull MBC,http://statistics.data.gov.uk/id/local-authority/00CT,Children & Education Services,Childrens Social Work,IT Equipment & Software,D32000,01/09/2010,2758975,17.21,Supplies Team Ltd,21741
Solihull MBC,http://statistics.data.gov.uk/id/local-authority/00CT,Children & Education Services,Childrens Social Work,Training,A32000,28/09/2010,2781603,928.2,Calder Training & Consultancy,276455
Solihull MBC,http://statistics.data.gov.uk/id/local-authority/00CT,Children & Education Services,Childrens Sw-Chelmsley Wd,Agency Staff,A35000,06/09/2010,2762261,1410.4,Reed Specialist Recruitment Ltd,255596
Solihull MBC,http://statistics.data.gov.uk/id/local-authority/00CT,Children & Education Services,Childrens Sw-Chelmsley Wd,Agency Staff,A35000,27/09/2010,2781199,1336.65,Reed Specialist Recruitment Ltd,255596
Solihull MBC,http://statistics.data.gov.uk/id/local-authority/00CT,Children & Education Services,Childrens Sw-Chelmsley Wd,Agency Staff,A35000,14/09/2010,2770776,1226.1,Reed Specialist Recruitment Ltd,255596
Solihull MBC,http://statistics.data.gov.uk/id/local-authority/00CT,Children & Education Services,Childrens Sw-Chelmsley Wd,Agency Staff,A35000,06/09/2010,2762301,1226.1,Reed Specialist Recruitment Ltd,255596
Solihull MBC,http://statistics.data.gov.uk/id/local-authority/00CT,Children & Education Services,Childrens Sw-Chelmsley Wd,Agency Staff,A35000,22/09/2010,2775467,1195.95,Reed Specialist Recruitment Ltd,255596
Solihull MBC,http://statistics.data.gov.uk/id/local-authority/00CT,Children & Education Services,Childrens Sw-Chelmsley Wd,Agency Staff,A35000,14/09/2010,2770612,1140.9,Reed Specialist Recruitment Ltd,255596
Solihull MBC,http://statistics.data.gov.uk/id/local-authority/00CT,Children & Education Services,Childrens Sw-Chelmsley Wd,Agency Staff,A35000,27/09/2010,2781271,929.16,Reed Specialist Recruitment Ltd,255596
Solihull MBC,http://statistics.data.gov.uk/id/local-authority/00CT,Children & Education Services,Childrens Sw-Chelmsley Wd,Agency Staff,A35000,21/09/2010,2775104,852.16,Reed Specialist Recruitment Ltd,255596
Solihull MBC,http://statistics.data.gov.uk/id/local-authority/00CT,Children & Education Services,Childrens Sw-Chelmsley Wd,Agency Staff,A35000,01/09/2010,2758941,663.3,Reed Specialist Recruitment Ltd,255596
Solihull MBC,http://statistics.data.gov.uk/id/local-authority/00CT,Children & Education Services,Childrens Sw-Smiths Wood,Agency Staff,A35000,06/09/2010,2762291,1536.98,Reed Specialist Recruitment Ltd,255596
Solihull MBC,http://statistics.data.gov.uk/id/local-authority/00CT,Children & Education Services,Childrens Sw-Smiths Wood,Agency Staff,A35000,21/09/2010,2775090,1329.28,Reed Specialist Recruitment Ltd,255596
Solihull MBC,http://statistics.data.gov.uk/id/local-authority/00CT,Children & Education Services,Childrens Sw-Smiths Wood,Agency Staff,A35000,27/09/2010,2781217,1329.28,Reed Specialist Recruitment Ltd,255596
Solihull MBC,http://statistics.data.gov.uk/id/local-authority/00CT,Children & Education Services,Childrens Sw-Smiths Wood,Agency Staff,A35000,14/09/2010,2770604,934.65,Reed Specialist Recruitment Ltd,255596
Solihull MBC,http://statistics.data.gov.uk/id/local-authority/00CT,Children & Education Services,Chuckles,Furniture & Equipment,D10000,30/09/2010,2784078,710.83,West Mercia Supplies,8629
Solihull MBC,http://statistics.data.gov.uk/id/local-authority/00CT,Children & Education Services,Chuckles,Officers Expenses,D61000,21/09/2010,2775428,1128.81,Clive Mark Schoolwear Ltd,9982
Solihull MBC,http://statistics.data.gov.uk/id/local-authority/00CT,Highways & Transport Services,Church Hill Car Pk,Furniture & Equipment,D10000,08/09/2010,2763925,5074.4,Eurosigns UK Ltd,83425
Solihull MBC,http://statistics.data.gov.uk/id/local-authority/00CT,Highways & Transport Services,Church Hill Car Pk,Furniture & Equipment,D10000,08/09/2010,2763904,573.01,Eurosigns UK Ltd,83425
Solihull MBC,http://statistics.data.gov.uk/id/local-authority/00CT,Highways & Transport Services,Church Hill Car Pk,Furniture & Equipment,D10000,06/09/2010,2762324,289.28,Liberty Services,213778
Solihull MBC,http://statistics.data.gov.uk/id/local-authority/00CT,Highways & Transport Services,Church Hill Car Pk,Business Rates,B20000,14/09/2010,2770146,990.6,Solihull MBC,80026
Solihull MBC,http://statistics.data.gov.uk/id/local-authority/00CT,Highways & Transport Services,Church Hill Car Pk,Furniture & Equipment,D10000,08/09/2010,2764015,130.5,Parkeon,96088
Solihull MBC,http://statistics.data.gov.uk/id/local-authority/00CT,Corporate & Democratic Core,Civic Suite,Transport-Contract Hire,C30000,24/09/2010,2779832,999.91,Land Rover Contract Hire,251360
Solihull MBC,http://statistics.data.gov.uk/id/local-authority/00CT,Corporate & Democratic Core,Civic Suite,Transport-Contract Hire,C30000,24/09/2010,2779831,999.91,Land Rover Contract Hire,251360
Solihull MBC,http://statistics.data.gov.uk/id/local-authority/00CT,Corporate & Democratic Core,Civic Suite,Cleaning Contracts,B40001,13/09/2010,2769695,1538.66,Connaught Environmental Ltd,244613
Solihull MBC,http://statistics.data.gov.uk/id/local-authority/00CT,Corporate & Democratic Core,Civic Suite,Cleaning Contracts,B40001,07/09/2010,2762949,1538.66,Connaught Environmental Ltd,244613
Solihull MBC,http://statistics.data.gov.uk/id/local-authority/00CT,Corporate & Democratic Core,Civic Suite,Cleaning Contracts,B40001,16/09/2010,2772827,2095.68,Superclean Services Wothorpe Ltd,122900
Solihull MBC,http://statistics.data.gov.uk/id/local-authority/00CT,Corporate & Democratic Core,Civic Suite,Cleaning Contracts,B40001,16/09/2010,2772830,-1286.71,Superclean Services Wothorpe Ltd,122900
Solihull MBC,http://statistics.data.gov.uk/id/local-authority/00CT,Corporate & Democratic Core,Civic Suite,Other Premise Costs,B43000,23/09/2010,2779327,667.68,Biffa Waste Services Ltd,29923
Solihull MBC,http://statistics.data.gov.uk/id/local-authority/00CT,Children & Education Services,Civic Suite Catering,Materials,D11000,21/09/2010,2775291,55.79,Nobisco,227281
Solihull MBC,http://statistics.data.gov.uk/id/local-authority/00CT,Children & Education Services,Civic Suite Catering,Catering Provisions,D20000,21/09/2010,2775304,102.39,Delice De France PLC,68194
Solihull MBC,http://statistics.data.gov.uk/id/local-authority/00CT,Children & Education Services,Civic Suite Catering,IT Equipment & Software,D32000,01/09/2010,2758975,38.5,Supplies Team Ltd,21741
Solihull MBC,http://statistics.data.gov.uk/id/local-authority/00CT,Highways & Transport Services,Civil Parking Enforcement,Other Contracted Services,E29000,09/09/2010,2767714,55148.03,Apcoa Parking (UK) Ltd,201518
Solihull MBC,http://statistics.data.gov.uk/id/local-authority/00CT,Highways & Transport Services,Civil Parking Enforcement,Other Contracted Services,E29000,09/09/2010,2767716,617,Apcoa Parking (UK) Ltd,201518
Solihull MBC,http://statistics.data.gov.uk/id/local-authority/00CT,Highways & Transport Services,Civil Parking Enforcement,IT Equipment & Software,D32000,08/09/2010,2763990,457,Chipside Ltd,207159
Solihull MBC,http://statistics.data.gov.uk/id/local-authority/00CT,Highways & Transport Services,Civil Parking Enforcement,Professional Fees,D51000,16/09/2010,2771805,5000,HMCS,119153
Solihull MBC,http://statistics.data.gov.uk/id/local-authority/00CT,Highways & Transport Services,Civil Parking Enforcement,Other Fees,D52000,09/09/2010,2767787,4503.6,Jade Security Services Ltd,173278
Solihull MBC,http://statistics.data.gov.uk/id/local-authority/00CT,Children & Education Services,Cleaning Equipment,Cleaning Contracts,B40001,06/09/2010,2761978,3571.33,Scrubtec Ltd,76340
Solihull MBC,http://statistics.data.gov.uk/id/local-authority/00CT,Central Services to the Public,Client Mgt Transport,Other Fees,D52000,15/09/2010,2771261,452.4,Freight Transport Assoc,5565
Solihull MBC,http://statistics.data.gov.uk/id/local-authority/00CT,Central Services to the Public,Client Mgt Transport,Agency Staff,A35000,27/09/2010,2781238,927.07,Reed Specialist Recruitment Ltd,255596
Solihull MBC,http://statistics.data.gov.uk/id/local-authority/00CT,Central Services to the Public,Client Mgt Transport,Agency Staff,A35000,27/09/2010,2781239,927.07,Reed Specialist Recruitment Ltd,255596
Solihull MBC,http://statistics.data.gov.uk/id/local-authority/00CT,Central Services to the Public,Client Mgt Transport,Agency Staff,A35000,27/09/2010,2781237,556.24,Reed Specialist Recruitment Ltd,255596
Solihull MBC,http://statistics.data.gov.uk/id/local-authority/00CT,Central Services to the Public,Coco,Consultants,Y31000,06/09/2010,2762384,450,Simon Fisher Ltd,277354
Solihull MBC,http://statistics.data.gov.uk/id/local-authority/00CT,Children & Education Services,Coleshill Heath,Contractors,Y21000,24/09/2010,2780117,484,RT Electrical & Computing Installations Ltd,86353
Solihull MBC,http://statistics.data.gov.uk/id/local-authority/00CT,Children & Education Services,Coleshill Heath J&I,Capitation,D11001,20/09/2010,2774728,661.4,Hope Education Ltd,5890
Solihull MBC,http://statistics.data.gov.uk/id/local-authority/00CT,Children & Education Services,Coleshill Heath J&I,Building Maint Day To Day,B31001,21/09/2010,2775069,600,Kingshurst Gates And Railings,97113
Solihull MBC,http://statistics.data.gov.uk/id/local-authority/00CT,Children & Education Services,Coleshill Heath J&I,Health & Safety,B43003,20/09/2010,2774369,560,RT Electrical & Computing Installations Ltd,86353
Solihull MBC,http://statistics.data.gov.uk/id/local-authority/00CT,Children & Education Services,Coleshill Heath J&I,Capitation,D11001,24/09/2010,2779951,949,Coleshill Heath School Fund,67577
Solihull MBC,http://statistics.data.gov.uk/id/local-authority/00CT,Children & Education Services,Coleshill Heath J&I,Refuse Collection,B43001,02/09/2010,2760609,694.52,SITA UK Ltd,95837
Solihull MBC,http://statistics.data.gov.uk/id/local-authority/00CT,Children & Education Services,Coleshill Heath J&I,Refuse Collection,B43001,02/09/2010,2760609,0,SITA UK Ltd,95837
Solihull MBC,http://statistics.data.gov.uk/id/local-authority/00CT,Children & Education Services,Coleshill Heath J&I,Health & Safety,B43003,01/09/2010,2758854,9198.06,School Signs,178080
Solihull MBC,http://statistics.data.gov.uk/id/local-authority/00CT,Children & Education Services,Coleshill Heath J&I,Refuse Collection,B43001,20/09/2010,2774294,806.49,SITA,68424
Solihull MBC,http://statistics.data.gov.uk/id/local-authority/00CT,Children & Education Services,Coleshill Heath J&I,Capitation,D11001,20/08/2010,PC76254,900,Appliance City Ltd,Purchase Card Supplier
Solihull MBC,http://statistics.data.gov.uk/id/local-authority/00CT,Children & Education Services,Coleshill Heath J&I,Capitation,D11001,09/08/2010,PC99844,653,Wickes,Purchase Card Supplier
Solihull MBC,http://statistics.data.gov.uk/id/local-authority/00CT,Children & Education Services,Coleshill Heath Std Fund,Capitation,D11001,29/09/2010,2782170,5390,Worcestershire County Council,8721
Solihull MBC,http://statistics.data.gov.uk/id/local-authority/00CT,Children & Education Services,Coleshill Heath Std Fund,Capitation,D11001,29/09/2010,2782169,2320,Worcestershire County Council,8721
Solihull MBC,http://statistics.data.gov.uk/id/local-authority/00CT,Children & Education Services,Coleshill Heath Std Fund,Capitation,D11001,24/09/2010,2779989,1180.11,Coleshill Heath School Fund,67577
Solihull MBC,http://statistics.data.gov.uk/id/local-authority/00CT,Children & Education Services,Coleshill-Alcott Transitn,Repair & Maintn Of Buildings,B31000,20/09/2010,2774435,640,RT Electrical & Computing Installations Ltd,86353
Solihull MBC,http://statistics.data.gov.uk/id/local-authority/00CT,Cultural & Related Services,Comic Landscape,Other Fees,D52000,02/09/2010,2760592,700,REDACTED PERSONAL DATA,220510
Solihull MBC,http://statistics.data.gov.uk/id/local-authority/00CT,Cultural & Related Services,Comic Landscape,Other Fees,D52000,24/09/2010,2780101,650.31,REDACTED PERSONAL DATA,257679
Solihull MBC,http://statistics.data.gov.uk/id/local-authority/00CT,Central Services to the Public,Communications Unit,Postage & Courier Services,D43000,20/09/2010,2774379,4613.38,Trinity Mirror Midlands Ltd,223591
Solihull MBC,http://statistics.data.gov.uk/id/local-authority/00CT,Planning & Development Services,Community & Voluntary,Agency Staff,A35000,14/09/2010,2770468,500,Athena Care Limited,124891
Solihull MBC,http://statistics.data.gov.uk/id/local-authority/00CT,Central Services to the Public,Community Initiatives Fund,Grant & Subscription (SCITT),D92000,23/09/2010,2779614,5000,Make A Better Life Trust,202260
Solihull MBC,http://statistics.data.gov.uk/id/local-authority/00CT,Central Services to the Public,Community Initiatives Fund,Grant & Subscription (SCITT),D92000,23/09/2010,2779615,2350,Recom,223373
Solihull MBC,http://statistics.data.gov.uk/id/local-authority/00CT,Central Services to the Public,Community Initiatives Fund,Grant & Subscription (SCITT),D92000,27/09/2010,2780911,1639,Solihull Shopmobility,72818
Solihull MBC,http://statistics.data.gov.uk/id/local-authority/00CT,Housing Revenue Account,Community Services,Maintenance Of Grounds,B30000,09/09/2010,2767868,1537.58,Glendale Countryside,24505
Solihull MBC,http://statistics.data.gov.uk/id/local-authority/00CT,Housing Revenue Account,Community Services,Maintenance Of Grounds,B30000,09/09/2010,2767868,712.53,Glendale Countryside,24505
Solihull MBC,http://statistics.data.gov.uk/id/local-authority/00CT,Children & Education Services,Community Sports Centre,Advertising/Publicity/Promotion,D93000,16/09/2010,2773045,520,Norwood Press,161121
Solihull MBC,http://statistics.data.gov.uk/id/local-authority/00CT,Children & Education Services,Connexions ABG,Agency Staff,A35000,16/09/2010,2773125,497.65,Randstad Employment Bureau Limited,219089
Solihull MBC,http://statistics.data.gov.uk/id/local-authority/00CT,Children & Education Services,Connexions ABG,Agency Staff,A35000,27/09/2010,2781007,497.65,Randstad Employment Bureau Limited,219089
Solihull MBC,http://statistics.data.gov.uk/id/local-authority/00CT,Children & Education Services,Connexions ABG,Electricity,B11000,27/09/2010,2780996,1642.63,SWALEC,102301
Solihull MBC,http://statistics.data.gov.uk/id/local-authority/00CT,Children & Education Services,Connexions ABG,Electricity,B11000,27/09/2010,2780994,1257.54,SWALEC,102301
Solihull MBC,http://statistics.data.gov.uk/id/local-authority/00CT,Children & Education Services,Connexions ABG,Other Premise Costs,B43000,16/09/2010,2773100,710,Crimestop Security Installers Ltd,87826
Solihull MBC,http://statistics.data.gov.uk/id/local-authority/00CT,Children & Education Services,Connexions ABG,IT Equipment & Software,D32000,01/09/2010,2758975,214.36,Supplies Team Ltd,21741
Solihull MBC,http://statistics.data.gov.uk/id/local-authority/00CT,Children & Education Services,Connexions ABG,IT Equipment & Software,D32000,01/09/2010,2758975,164.18,Supplies Team Ltd,21741
Solihull MBC,http://statistics.data.gov.uk/id/local-authority/00CT,Children & Education Services,Connexions ABG,IT Equipment & Software,D32000,08/09/2010,2763783,2700,Virgin Media Payments Ltd,172138
Solihull MBC,http://statistics.data.gov.uk/id/local-authority/00CT,Children & Education Services,Connexions ABG,Telephones,D30000,06/09/2010,2762405,592.85,Virgin Media Payments Ltd,172138
Solihull MBC,http://statistics.data.gov.uk/id/local-authority/00CT,Children & Education Services,Connexions Scheme,Clients Expenses,D62000,03/09/2010,2761398,2092.34,The Old Vicarage Adventure Centre,182862
Solihull MBC,http://statistics.data.gov.uk/id/local-authority/00CT,Planning & Development Services,Consultancy Fees,Professional Fees,D51000,10/09/2010,2768881,600,Thomas Lister Ltd,280101
Solihull MBC,http://statistics.data.gov.uk/id/local-authority/00CT,Central Services to the Public,Contact Centre,Photocopying,D40001,03/09/2010,2761386,457.11,Danwood Group Ltd,5121
Solihull MBC,http://statistics.data.gov.uk/id/local-authority/00CT,Central Services to the Public,Contact Service Support,IT Equipment & Software,D32000,17/09/2010,2773706,2178.96,Mokum Change Management Ltd,239662
Solihull MBC,http://statistics.data.gov.uk/id/local-authority/00CT,Central Services to the Public,Contact Service Support,Agency Staff,A35000,14/09/2010,2770609,434.49,Reed Specialist Recruitment Ltd,255596
Solihull MBC,http://statistics.data.gov.uk/id/local-authority/00CT,Central Services to the Public,Contact Service Support,IT Equipment & Software,D32000,01/09/2010,2758975,102.21,Supplies Team Ltd,21741
Solihull MBC,http://statistics.data.gov.uk/id/local-authority/00CT,Central Services to the Public,Contact Service Support,Printing,D40000,01/09/2010,2758975,155.19,Supplies Team Ltd,21741
Solihull MBC,http://statistics.data.gov.uk/id/local-authority/00CT,Central Services to the Public,Contact Service Support,Training,A32000,23/09/2010,2779436,595,SJD Leisure & Event Management Ltd,280737
Solihull MBC,http://statistics.data.gov.uk/id/local-authority/00CT,Central Services to the Public,Contingency Fund,Professional Fees,D51000,24/09/2010,2780382,750,Bonhams 1793 Limited,78267
Solihull MBC,http://statistics.data.gov.uk/id/local-authority/00CT,Children & Education Services,Coppice Jnr,Building Maint Planned,B31002,27/09/2010,2780454,3750,A Dee Kay Joinery Ltd,281016
Solihull MBC,http://statistics.data.gov.uk/id/local-authority/00CT,Children & Education Services,Coppice Jnr,Building Maint Planned,B31002,06/09/2010,2762150,490,Patrol Alarm Systems Ltd,7199
Solihull MBC,http://statistics.data.gov.uk/id/local-authority/00CT,Children & Education Services,Coppice Jnr,Building Maint Planned,B31002,06/09/2010,2761817,734,Westgate Solar Control,34729
Solihull MBC,http://statistics.data.gov.uk/id/local-authority/00CT,Children & Education Services,Coppice Jnr,Maintenance Of Grounds,B30000,06/09/2010,2762124,434.4,Blooming Gardens Ltd,8970
Solihull MBC,http://statistics.data.gov.uk/id/local-authority/00CT,Children & Education Services,Coppice Jnr,Refuse Collection,B43001,06/09/2010,2762074,944.03,SITA,68424
Solihull MBC,http://statistics.data.gov.uk/id/local-authority/00CT,Central Services to the Public,Corporate Governance,Training,A32000,14/09/2010,2770231,495,First Response (First Aid) Ltd,211247
Solihull MBC,http://statistics.data.gov.uk/id/local-authority/00CT,Central Services to the Public,Corporate Land & Property,Grant & Subscription (SCITT),D92000,23/09/2010,2779502,750,CIPFA,9942
Solihull MBC,http://statistics.data.gov.uk/id/local-authority/00CT,Central Services to the Public,Corporate Land & Property,Grant & Subscription (SCITT),D92000,10/09/2010,2768872,700,National Best Value Benchmarking Scheme Ltd,82685
Solihull MBC,http://statistics.data.gov.uk/id/local-authority/00CT,Central Services to the Public,Council House Complex,Other Premise Costs,B43000,14/09/2010,2770782,807,Arrow County Supplies,6340
Solihull MBC,http://statistics.data.gov.uk/id/local-authority/00CT,Central Services to the Public,Council House Complex,Cleaning Contracts,B40001,13/09/2010,2769695,6731.64,Connaught Environmental Ltd,244613
Solihull MBC,http://statistics.data.gov.uk/id/local-authority/00CT,Central Services to the Public,Council House Complex,Cleaning Contracts,B40001,07/09/2010,2762949,6731.64,Connaught Environmental Ltd,244613
Solihull MBC,http://statistics.data.gov.uk/id/local-authority/00CT,Central Services to the Public,Council House Complex,Cleaning Contracts,B40001,07/09/2010,2762949,1538.66,Connaught Environmental Ltd,244613
Solihull MBC,http://statistics.data.gov.uk/id/local-authority/00CT,Central Services to the Public,Council House Complex,Cleaning Contracts,B40001,13/09/2010,2769695,1538.66,Connaught Environmental Ltd,244613
Solihull MBC,http://statistics.data.gov.uk/id/local-authority/00CT,Central Services to the Public,Council House Complex,Cleaning Contracts,B40001,02/09/2010,2760701,448.18,Connaught Environmental Ltd,244613
Solihull MBC,http://statistics.data.gov.uk/id/local-authority/00CT,Central Services to the Public,Council House Complex,Business Rates,B20000,14/09/2010,2770145,11300,Solihull MBC,80026
Solihull MBC,http://statistics.data.gov.uk/id/local-authority/00CT,Central Services to the Public,Council House Complex,Business Rates,B20000,14/09/2010,2770146,309.4,Solihull MBC,80026
Solihull MBC,http://statistics.data.gov.uk/id/local-authority/00CT,Children & Education Services,Craig Croft P.R.U,Agency Staff,A35000,23/09/2010,2779366,500,Teacher Active Limited,142264
Solihull MBC,http://statistics.data.gov.uk/id/local-authority/00CT,Children & Education Services,Craig Croft P.R.U,Agency Staff,A35000,23/09/2010,2779365,500,Teacher Active Limited,142264
Solihull MBC,http://statistics.data.gov.uk/id/local-authority/00CT,Children & Education Services,Craig Croft P.R.U,Agency Staff,A35000,23/09/2010,2779367,500,Teacher Active Limited,142264
Solihull MBC,http://statistics.data.gov.uk/id/local-authority/00CT,Children & Education Services,Craig Croft P.R.U,Agency Staff,A35000,23/09/2010,2779369,500,Teacher Active Limited,142264
Solihull MBC,http://statistics.data.gov.uk/id/local-authority/00CT,Children & Education Services,Craig Croft P.R.U,Stationery,D41000,07/09/2010,2763072,503.89,Lyreco UK Ltd,74691
Solihull MBC,http://statistics.data.gov.uk/id/local-authority/00CT,Children & Education Services,Craig Croft Premises & Opps,Other Premise Costs,B43000,09/09/2010,2767865,690,Patrol Alarm Systems Ltd,7199
Solihull MBC,http://statistics.data.gov.uk/id/local-authority/00CT,Children & Education Services,Craig Croft Premises & Opps,Other Premise Costs,B43000,07/09/2010,2763166,620,Patrol Alarm Systems Ltd,7199
Solihull MBC,http://statistics.data.gov.uk/id/local-authority/00CT,Children & Education Services,Craig Croft Premises & Opps,Other Premise Costs,B43000,07/09/2010,2763168,495,Patrol Alarm Systems Ltd,7199
Solihull MBC,http://statistics.data.gov.uk/id/local-authority/00CT,Children & Education Services,Craig Croft Premises & Opps,Photocopying,D40001,23/09/2010,2779361,462.58,Ricoh UK Ltd,54723
Solihull MBC,http://statistics.data.gov.uk/id/local-authority/00CT,Children & Education Services,Craig Croft Premises & Opps,Rental/Lease Of Equipment,D12000,23/09/2010,2779361,258.61,Ricoh UK Ltd,54723
Solihull MBC,http://statistics.data.gov.uk/id/local-authority/00CT,Children & Education Services,Cranmore Inf,Cleaning Contracts,B40001,08/09/2010,2763909,979.22,Network Cleaning  Consultants Ltd,68264
Solihull MBC,http://statistics.data.gov.uk/id/local-authority/00CT,Children & Education Services,Cranmore Inf,Capitation,D11001,22/09/2010,2776072,5785,Pentagon Sport Ltd,84894
Solihull MBC,http://statistics.data.gov.uk/id/local-authority/00CT,Environmental & Regulatory Services,Crime And Disorder Reduction,Other Contracted Services,E29000,24/09/2010,2779970,38275,Solihull Community Housing,102685
Solihull MBC,http://statistics.data.gov.uk/id/local-authority/00CT,Central Services to the Public,Cycle To Work Scheme,Furniture & Equipment,D10000,09/09/2010,2767941,4122.48,Cyclescheme Ltd,260217
Solihull MBC,http://statistics.data.gov.uk/id/local-authority/00CT,Central Services to the Public,Cycle To Work Scheme,Furniture & Equipment,D10000,09/09/2010,2767941,84.98,Cyclescheme Ltd,260217
Solihull MBC,http://statistics.data.gov.uk/id/local-authority/00CT,Central Services to the Public,Cycle To Work Scheme,Furniture & Equipment,D10000,30/09/2010,2783794,1461.15,Cyclescheme Ltd,260217
Solihull MBC,http://statistics.data.gov.uk/id/local-authority/00CT,Central Services to the Public,Cycle To Work Scheme,Furniture & Equipment,D10000,30/09/2010,2783794,26.95,Cyclescheme Ltd,260217
Solihull MBC,http://statistics.data.gov.uk/id/local-authority/00CT,Central Services to the Public,Cycle To Work Scheme,Furniture & Equipment,D10000,30/09/2010,2783797,30,Cyclescheme Ltd,260217
Solihull MBC,http://statistics.data.gov.uk/id/local-authority/00CT,Central Services to the Public,Cycle To Work Scheme,Furniture & Equipment,D10000,30/09/2010,2783797,1348.06,Cyclescheme Ltd,260217
Solihull MBC,http://statistics.data.gov.uk/id/local-authority/00CT,Central Services to the Public,Cycle To Work Scheme,Furniture & Equipment,D10000,30/09/2010,2783797,-1,Cyclescheme Ltd,260217
Solihull MBC,http://statistics.data.gov.uk/id/local-authority/00CT,Central Services to the Public,Cycle To Work Scheme,Furniture & Equipment,D10000,09/09/2010,2767870,70,Cyclescheme Ltd,260217
Solihull MBC,http://statistics.data.gov.uk/id/local-authority/00CT,Central Services to the Public,Cycle To Work Scheme,Furniture & Equipment,D10000,09/09/2010,2767870,1148.94,Cyclescheme Ltd,260217
Solihull MBC,http://statistics.data.gov.uk/id/local-authority/00CT,Central Services to the Public,Cycle To Work Scheme,Furniture & Equipment,D10000,30/09/2010,2783793,669.78,Cyclescheme Ltd,260217
Solihull MBC,http://statistics.data.gov.uk/id/local-authority/00CT,Central Services to the Public,Cycle To Work Scheme,Furniture & Equipment,D10000,30/09/2010,2783793,30,Cyclescheme Ltd,260217
Solihull MBC,http://statistics.data.gov.uk/id/local-authority/00CT,Central Services to the Public,Cycle To Work Scheme,Furniture & Equipment,D10000,09/09/2010,2767943,-680.85,Cyclescheme Ltd,260217
Solihull MBC,http://statistics.data.gov.uk/id/local-authority/00CT,Highways & Transport Services,Cycleways,Other Contracted Services,E29000,03/09/2010,2761446,718.39,Ringway,131294
Solihull MBC,http://statistics.data.gov.uk/id/local-authority/00CT,Children & Education Services,Damson Wood Inf,Building Maint Planned,B31002,02/09/2010,2759306,570,Enderbey Properties Ltd,246992
Solihull MBC,http://statistics.data.gov.uk/id/local-authority/00CT,Children & Education Services,Damson Wood Inf,Alarms,B43002,09/09/2010,2767659,785,Patrol Alarm Systems Ltd,7199
Solihull MBC,http://statistics.data.gov.uk/id/local-authority/00CT,Children & Education Services,Damson Wood Inf,Printing,D40000,02/09/2010,2759305,430,Plus One,61863
Solihull MBC,http://statistics.data.gov.uk/id/local-authority/00CT,Children & Education Services,Damson Wood Inf,Building Maint Planned,B31002,09/09/2010,2767656,5193.15,Mardi Grass Ltd,274404
Solihull MBC,http://statistics.data.gov.uk/id/local-authority/00CT,Children & Education Services,Damson Wood Inf,Refuse Collection,B43001,02/09/2010,2759308,603.59,SITA,68424
Solihull MBC,http://statistics.data.gov.uk/id/local-authority/00CT,Children & Education Services,Damson Wood Inf,Furniture & Equipment,D10000,09/09/2010,2767650,590,Aquaaid (Midlands),78951
Solihull MBC,http://statistics.data.gov.uk/id/local-authority/00CT,Children & Education Services,Daylesford Inf,Photocopying,D40001,21/09/2010,2775073,520.01,Ricoh UK Ltd,54723
Solihull MBC,http://statistics.data.gov.uk/id/local-authority/00CT,Children & Education Services,Daylesford Inf,IT Equipment & Software,D32000,20/09/2010,2774601,600,Refurb Midlands,274874
Solihull MBC,http://statistics.data.gov.uk/id/local-authority/00CT,Children & Education Services,Daylesford Inf,Capitation,D11001,06/09/2010,2762210,949.5,Eastern Shires Purchasing Organisation,6363
Solihull MBC,http://statistics.data.gov.uk/id/local-authority/00CT,Children & Education Services,Daylesford Inf,Furniture & Equipment,D10000,06/09/2010,2762188,818,Eastern Shires Purchasing Organisation,6363
Solihull MBC,http://statistics.data.gov.uk/id/local-authority/00CT,Children & Education Services,Daylesford Inf,Health & Safety,B43003,21/09/2010,2775071,590,Aquaid,71388
Solihull MBC,http://statistics.data.gov.uk/id/local-authority/00CT,Children & Education Services,Dcatch,Grant & Subscription (SCITT),D92000,28/09/2010,2781712,15746.67,Kids,92755
Solihull MBC,http://statistics.data.gov.uk/id/local-authority/00CT,Children & Education Services,Dcatch,Grant & Subscription (SCITT),D92000,30/09/2010,2782506,1500,Shirley Golf Club,26997
Solihull MBC,http://statistics.data.gov.uk/id/local-authority/00CT,Children & Education Services,Dcatch,Grant & Subscription (SCITT),D92000,28/09/2010,2781713,500,TCS Services Ltd,119844
Solihull MBC,http://statistics.data.gov.uk/id/local-authority/00CT,Children & Education Services,Dcatch,Professional Fees,D51000,17/09/2010,2773852,11000,Chris Leigh Management,253796
Solihull MBC,http://statistics.data.gov.uk/id/local-authority/00CT,Children & Education Services,Dcatch,Grant & Subscription (SCITT),D92000,30/09/2010,2782505,1200,Parkwood Leisure,133632
Solihull MBC,http://statistics.data.gov.uk/id/local-authority/00CT,Children & Education Services,Dcatch,Agency Staff,A35000,06/09/2010,2762266,557.26,Reed Specialist Recruitment Ltd,255596
Solihull MBC,http://statistics.data.gov.uk/id/local-authority/00CT,Children & Education Services,Dcatch,Agency Staff,A35000,27/09/2010,2781236,510.93,Reed Specialist Recruitment Ltd,255596
Solihull MBC,http://statistics.data.gov.uk/id/local-authority/00CT,Children & Education Services,Dcatch,Agency Staff,A35000,14/09/2010,2770569,449.16,Reed Specialist Recruitment Ltd,255596
Solihull MBC,http://statistics.data.gov.uk/id/local-authority/00CT,Children & Education Services,Dcatch,Agency Staff,A35000,21/09/2010,2775126,449.16,Reed Specialist Recruitment Ltd,255596
Solihull MBC,http://statistics.data.gov.uk/id/local-authority/00CT,Children & Education Services,Dcatch,Other Contracted Services,E29000,01/09/2010,2758836,1909.38,Sportwise Ltd,262838
Solihull MBC,http://statistics.data.gov.uk/id/local-authority/00CT,Children & Education Services,Dcatch,Other Contracted Services,E29000,01/09/2010,2758839,1120,Sportwise Ltd,262838
Solihull MBC,http://statistics.data.gov.uk/id/local-authority/00CT,Children & Education Services,Dcatch,Grant & Subscription (SCITT),D92000,21/09/2010,2775344,4125,University Of Wolverhampton,8498
Solihull MBC,http://statistics.data.gov.uk/id/local-authority/00CT,Children & Education Services,Dcatch,Grant & Subscription (SCITT),D92000,21/09/2010,2775347,1781.6,University Of Wolverhampton,8498
Solihull MBC,http://statistics.data.gov.uk/id/local-authority/00CT,Children & Education Services,Dcatch,Other Contracted Services,E29000,22/09/2010,2776245,8500,Dyspraxia Foundation,11869
Solihull MBC,http://statistics.data.gov.uk/id/local-authority/00CT,Corporate & Democratic Core,Democratic Services,Photocopying,D40001,21/09/2010,2775035,220,Ricoh UK Ltd,54723
Solihull MBC,http://statistics.data.gov.uk/id/local-authority/00CT,Corporate & Democratic Core,Democratic Services,Rental/Lease Of Equipment,D12000,21/09/2010,2775035,146.03,Ricoh UK Ltd,54723
Solihull MBC,http://statistics.data.gov.uk/id/local-authority/00CT,Corporate & Democratic Core,Democratic Services,IT Equipment & Software,D32000,01/09/2010,2758975,376.59,Supplies Team Ltd,21741
Solihull MBC,http://statistics.data.gov.uk/id/local-authority/00CT,Planning & Development Services,Deprived Area Funding,Other Contracted Services,E29000,17/09/2010,2773600,6767.4,Solihull Community Housing,102685
Solihull MBC,http://statistics.data.gov.uk/id/local-authority/00CT,Central Services to the Public,Desktop Trading Account,IT Equipment & Software,D32000,16/09/2010,2773116,3635.36,Viglen Ltd,8542
Solihull MBC,http://statistics.data.gov.uk/id/local-authority/00CT,Central Services to the Public,Desktop Trading Account,IT Equipment & Software,D32000,16/09/2010,2773116,40,Viglen Ltd,8542
Solihull MBC,http://statistics.data.gov.uk/id/local-authority/00CT,Central Services to the Public,Desktop Trading Account,IT Equipment & Software,D32000,16/09/2010,2773116,500,Viglen Ltd,8542
Solihull MBC,http://statistics.data.gov.uk/id/local-authority/00CT,Central Services to the Public,Desktop Trading Account,IT Equipment & Software,D32000,02/09/2010,2760761,1971.24,Viglen Ltd,8542
Solihull MBC,http://statistics.data.gov.uk/id/local-authority/00CT,Central Services to the Public,Desktop Trading Account,IT Equipment & Software,D32000,02/09/2010,2760761,8,Viglen Ltd,8542
Solihull MBC,http://statistics.data.gov.uk/id/local-authority/00CT,Central Services to the Public,Desktop Trading Account,IT Equipment & Software,D32000,02/09/2010,2760761,4,Viglen Ltd,8542
Solihull MBC,http://statistics.data.gov.uk/id/local-authority/00CT,Planning & Development Services,Development Control,Advertising/Publicity/Promotion,D93000,20/09/2010,2774467,482.8,Trinity Mirror Midlands Ltd,223591
Solihull MBC,http://statistics.data.gov.uk/id/local-authority/00CT,Planning & Development Services,Development Control,Advertising/Publicity/Promotion,D93000,20/09/2010,2774465,454.4,Trinity Mirror Midlands Ltd,223591
Solihull MBC,http://statistics.data.gov.uk/id/local-authority/00CT,Planning & Development Services,Development Control,Professional Fees,D51000,20/09/2010,2774464,1971.39,FPCR Environment & Design Ltd,277935
Solihull MBC,http://statistics.data.gov.uk/id/local-authority/00CT,Planning & Development Services,Development Control,Professional Fees,D51000,20/09/2010,2774366,2408.23,Cross Engineering Consultancy,103602
Solihull MBC,http://statistics.data.gov.uk/id/local-authority/00CT,Planning & Development Services,Development Control,Professional Fees,D51000,20/09/2010,2774374,3332.5,Warwickshire County Council,8596
Solihull MBC,http://statistics.data.gov.uk/id/local-authority/00CT,Planning & Development Services,Development Control,Stationery,D41000,28/09/2010,2781534,84,Sabell & Co Ltd,7662
Solihull MBC,http://statistics.data.gov.uk/id/local-authority/00CT,Planning & Development Services,Development Control,Telephones,D30000,06/09/2010,2762518,32.88,Rocom Group Ltd,16106
Solihull MBC,http://statistics.data.gov.uk/id/local-authority/00CT,Highways & Transport Services,Dickens Heath Cycle Works,Contractors,Y21000,07/09/2010,2763366,1067.55,Ringway,131294
Solihull MBC,http://statistics.data.gov.uk/id/local-authority/00CT,Children & Education Services,Dickens Heath Devolved,Contractors,Y21000,02/09/2010,2760732,3530,Darfen Durafencing,9065
Solihull MBC,http://statistics.data.gov.uk/id/local-authority/00CT,Planning & Development Services,Dickens Heath Infrastr,Consultants,Y31000,14/09/2010,2770147,3438.9,Redrow Homes Midlands Ltd,20297
Solihull MBC,http://statistics.data.gov.uk/id/local-authority/00CT,Cultural & Related Services,Dickens Heath Library,Other Premise Costs,B43000,08/09/2010,2764088,650,Patrol Alarm Systems Ltd,7199
Solihull MBC,http://statistics.data.gov.uk/id/local-authority/00CT,Cultural & Related Services,Dickens Heath Library,Cleaning Contracts,B40001,07/09/2010,2762949,346.2,Connaught Environmental Ltd,244613
Solihull MBC,http://statistics.data.gov.uk/id/local-authority/00CT,Cultural & Related Services,Dickens Heath Library,Cleaning Contracts,B40001,13/09/2010,2769695,346.2,Connaught Environmental Ltd,244613
Solihull MBC,http://statistics.data.gov.uk/id/local-authority/00CT,Cultural & Related Services,Dickens Heath Library,Repair & Maintn Of Buildings,B31000,28/09/2010,2781586,2380.82,Phoenix Beard,65474
Solihull MBC,http://statistics.data.gov.uk/id/local-authority/00CT,Children & Education Services,Dickens Hth Primary,Capitation,D11001,09/09/2010,2768055,30,Waterstones,55346
Solihull MBC,http://statistics.data.gov.uk/id/local-authority/00CT,Children & Education Services,Dickens Hth Primary,Capitation,D11001,09/09/2010,2768055,711.96,Waterstones,55346
Solihull MBC,http://statistics.data.gov.uk/id/local-authority/00CT,Children & Education Services,Dickens Hth Primary,Capitation,D11001,09/09/2010,2768022,2.23,Madeleine Lindley Ltd,6500
Solihull MBC,http://statistics.data.gov.uk/id/local-authority/00CT,Children & Education Services,Dickens Hth Primary,Capitation,D11001,09/09/2010,2768022,516.36,Madeleine Lindley Ltd,6500
Solihull MBC,http://statistics.data.gov.uk/id/local-authority/00CT,Children & Education Services,Dickens Hth Primary,Alarms,B43002,09/09/2010,2768047,500,Patrol Alarm Systems Ltd,7199
Solihull MBC,http://statistics.data.gov.uk/id/local-authority/00CT,Children & Education Services,Dickens Hth Primary,Building Maint Planned,B31002,02/09/2010,2760757,631.5,Solihull Supplies,7895
Solihull MBC,http://statistics.data.gov.uk/id/local-authority/00CT,Children & Education Services,Dickens Hth Primary,Cleaning Contracts,B40001,02/09/2010,2760758,460,Solihull Supplies,7895
Solihull MBC,http://statistics.data.gov.uk/id/local-authority/00CT,Children & Education Services,Dickens Hth Primary,Cleaning Contracts,B40001,23/09/2010,2779576,1017.6,ISS Facility Services Ltd,85961
Solihull MBC,http://statistics.data.gov.uk/id/local-authority/00CT,Children & Education Services,Dickens Hth Primary,Cleaning Contracts,B40001,02/09/2010,2760752,1045.88,ISS Facility Services Ltd,85961
Solihull MBC,http://statistics.data.gov.uk/id/local-authority/00CT,Children & Education Services,Dickens Hth Primary,Cleaning Contracts,B40001,23/09/2010,2779576,28.28,ISS Facility Services Ltd,85961
Solihull MBC,http://statistics.data.gov.uk/id/local-authority/00CT,Children & Education Services,Dickens Hth Primary,Capitation,D11001,23/09/2010,2779201,505.06,Hope Education Ltd,5890
Solihull MBC,http://statistics.data.gov.uk/id/local-authority/00CT,Children & Education Services,Dickens Hth Primary,Furniture & Equipment,D10000,23/09/2010,2779191,718.21,Eme Furniture,29719
Solihull MBC,http://statistics.data.gov.uk/id/local-authority/00CT,Children & Education Services,Dickens Hth Primary,Capitation,D11001,02/09/2010,2760738,881.95,Eastern Shires Purchasing Organisation,6363
Solihull MBC,http://statistics.data.gov.uk/id/local-authority/00CT,Children & Education Services,Dickens Hth Primary,Capitation,D11001,02/09/2010,2760734,596.94,Eastern Shires Purchasing Organisation,6363
Solihull MBC,http://statistics.data.gov.uk/id/local-authority/00CT,Children & Education Services,Dickens Hth Primary,Capitation,D11001,02/09/2010,2760736,593.27,Eastern Shires Purchasing Organisation,6363
Solihull MBC,http://statistics.data.gov.uk/id/local-authority/00CT,Children & Education Services,Dickens Hth Primary,IT Equipment & Software,D32000,16/09/2010,2772859,430.61,Supplies Team Ltd,21741
Solihull MBC,http://statistics.data.gov.uk/id/local-authority/00CT,Central Services to the Public,Digital Print,IT Equipment & Software,D32000,07/09/2010,2762895,3419.51,Xerox Office Supplies Ltd,11951
Solihull MBC,http://statistics.data.gov.uk/id/local-authority/00CT,Central Services to the Public,Digital Print,IT Equipment & Software,D32000,13/09/2010,2769734,3398.91,Gandlake Technology Ltd,79010
Solihull MBC,http://statistics.data.gov.uk/id/local-authority/00CT,Central Services to the Public,Digital Print,Photocopying,D40001,15/09/2010,2771173,-688.36,Xerox Office Supplies Ltd,11951
Solihull MBC,http://statistics.data.gov.uk/id/local-authority/00CT,Central Services to the Public,Digital Print,Printing,D40000,27/09/2010,2780825,326.25,Dayfold Solvit Ltd,120813
Solihull MBC,http://statistics.data.gov.uk/id/local-authority/00CT,Central Services to the Public,Digital Print,Printing,D40000,27/09/2010,2780825,25.77,Dayfold Solvit Ltd,120813
Solihull MBC,http://statistics.data.gov.uk/id/local-authority/00CT,Central Services to the Public,Digital Print,Printing,D40000,27/09/2010,2780825,144,Dayfold Solvit Ltd,120813
Solihull MBC,http://statistics.data.gov.uk/id/local-authority/00CT,Central Services to the Public,Digital Print,Printing,D40000,27/09/2010,2780825,20.61,Dayfold Solvit Ltd,120813
Solihull MBC,http://statistics.data.gov.uk/id/local-authority/00CT,Central Services to the Public,Digital Print,Printing,D40000,27/09/2010,2780825,326.25,Dayfold Solvit Ltd,120813
Solihull MBC,http://statistics.data.gov.uk/id/local-authority/00CT,Central Services to the Public,Digital Print,Printing,D40000,27/09/2010,2780825,326.25,Dayfold Solvit Ltd,120813
Solihull MBC,http://statistics.data.gov.uk/id/local-authority/00CT,Central Services to the Public,Digital Print,Printing,D40000,27/09/2010,2780825,108.88,Dayfold Solvit Ltd,120813
Solihull MBC,http://statistics.data.gov.uk/id/local-authority/00CT,Central Services to the Public,Digital Print,Printing,D40000,27/09/2010,2780825,12.37,Dayfold Solvit Ltd,120813
Solihull MBC,http://statistics.data.gov.uk/id/local-authority/00CT,Central Services to the Public,Digital Print,Photocopying,D40001,20/09/2010,2774675,5491.84,Canon (UK) Ltd,9772
Solihull MBC,http://statistics.data.gov.uk/id/local-authority/00CT,Children & Education Services,Diploma Consortium Grant,Training,A32000,02/09/2010,2760507,800,Pertemps People Development Group,105681
Solihull MBC,http://statistics.data.gov.uk/id/local-authority/00CT,Children & Education Services,Disability Team,Cleaning Contracts,B40001,07/09/2010,2762949,423.13,Connaught Environmental Ltd,244613
Solihull MBC,http://statistics.data.gov.uk/id/local-authority/00CT,Children & Education Services,Disability Team,Cleaning Contracts,B40001,13/09/2010,2769695,0.01,Connaught Environmental Ltd,244613
Solihull MBC,http://statistics.data.gov.uk/id/local-authority/00CT,Children & Education Services,Disability Team,Cleaning Contracts,B40001,13/09/2010,2769695,423.13,Connaught Environmental Ltd,244613
Solihull MBC,http://statistics.data.gov.uk/id/local-authority/00CT,Children & Education Services,Disability Team,Agency Staff,A35000,21/09/2010,2775055,932.64,Reed Specialist Recruitment Ltd,255596
Solihull MBC,http://statistics.data.gov.uk/id/local-authority/00CT,Children & Education Services,Disability Team,Agency Staff,A35000,06/09/2010,2762246,932.64,Reed Specialist Recruitment Ltd,255596
Solihull MBC,http://statistics.data.gov.uk/id/local-authority/00CT,Children & Education Services,Disability Team,Agency Staff,A35000,27/09/2010,2781219,932.64,Reed Specialist Recruitment Ltd,255596
Solihull MBC,http://statistics.data.gov.uk/id/local-authority/00CT,Children & Education Services,Disability Team,Agency Staff,A35000,27/09/2010,2781223,631.4,Reed Specialist Recruitment Ltd,255596
Solihull MBC,http://statistics.data.gov.uk/id/local-authority/00CT,Children & Education Services,Disability Team,Agency Staff,A35000,14/09/2010,2770591,621.76,Reed Specialist Recruitment Ltd,255596
Solihull MBC,http://statistics.data.gov.uk/id/local-authority/00CT,Children & Education Services,Disability Team,Agency Staff,A35000,21/09/2010,2775117,586.88,Reed Specialist Recruitment Ltd,255596
Solihull MBC,http://statistics.data.gov.uk/id/local-authority/00CT,Children & Education Services,Disability Team,Agency Staff,A35000,14/09/2010,2770595,502.3,Reed Specialist Recruitment Ltd,255596
Solihull MBC,http://statistics.data.gov.uk/id/local-authority/00CT,Children & Education Services,Disability Team,IT Equipment & Software,D32000,01/09/2010,2758975,59.51,Supplies Team Ltd,21741
Solihull MBC,http://statistics.data.gov.uk/id/local-authority/00CT,Environmental & Regulatory Services,DOH Smokebusters Grant,Agency Staff,A35000,21/09/2010,2775099,1009.72,Reed Specialist Recruitment Ltd,255596
Solihull MBC,http://statistics.data.gov.uk/id/local-authority/00CT,Environmental & Regulatory Services,DOH Smokebusters Grant,Agency Staff,A35000,21/09/2010,2775100,1004.91,Reed Specialist Recruitment Ltd,255596
Solihull MBC,http://statistics.data.gov.uk/id/local-authority/00CT,Environmental & Regulatory Services,DOH Smokebusters Grant,Agency Staff,A35000,27/09/2010,2781270,980.4,Reed Specialist Recruitment Ltd,255596
Solihull MBC,http://statistics.data.gov.uk/id/local-authority/00CT,Environmental & Regulatory Services,DOH Smokebusters Grant,Agency Staff,A35000,06/09/2010,2762259,955.89,Reed Specialist Recruitment Ltd,255596
Solihull MBC,http://statistics.data.gov.uk/id/local-authority/00CT,Environmental & Regulatory Services,DOH Smokebusters Grant,Agency Staff,A35000,14/09/2010,2770547,870.11,Reed Specialist Recruitment Ltd,255596
Solihull MBC,http://statistics.data.gov.uk/id/local-authority/00CT,Environmental & Regulatory Services,DOH Smokebusters Grant,Agency Staff,A35000,27/09/2010,2781268,778.54,Reed Specialist Recruitment Ltd,255596
Solihull MBC,http://statistics.data.gov.uk/id/local-authority/00CT,Environmental & Regulatory Services,DOH Smokebusters Grant,Agency Staff,A35000,14/09/2010,2770546,620.02,Reed Specialist Recruitment Ltd,255596
Solihull MBC,http://statistics.data.gov.uk/id/local-authority/00CT,Highways & Transport Services,Dominion Court (Herbert Rd),Furniture & Equipment,D10000,06/09/2010,2762324,289.29,Liberty Services,213778
Solihull MBC,http://statistics.data.gov.uk/id/local-authority/00CT,Highways & Transport Services,Dominion Court (Herbert Rd),Electricity,B11000,08/09/2010,2763741,877.49,Npower,40119
Solihull MBC,http://statistics.data.gov.uk/id/local-authority/00CT,Highways & Transport Services,Dominion Court (Herbert Rd),Electricity,B11000,08/09/2010,2763734,514.41,Npower,40119
Solihull MBC,http://statistics.data.gov.uk/id/local-authority/00CT,Highways & Transport Services,Dominion Court (Herbert Rd),Electricity,B11000,08/09/2010,2763731,438.02,Npower,40119
Solihull MBC,http://statistics.data.gov.uk/id/local-authority/00CT,Highways & Transport Services,Dominion Court (Herbert Rd),Business Rates,B20000,14/09/2010,2770146,462.5,Solihull MBC,80026
Solihull MBC,http://statistics.data.gov.uk/id/local-authority/00CT,Highways & Transport Services,Dominion Court (Herbert Rd),Furniture & Equipment,D10000,08/09/2010,2764015,130.5,Parkeon,96088
Solihull MBC,http://statistics.data.gov.uk/id/local-authority/00CT,Children & Education Services,Dorridge Inf,Building Maint Planned,B31002,03/09/2010,2761231,799.2,L A P Cleaning Solutions,277723
Solihull MBC,http://statistics.data.gov.uk/id/local-authority/00CT,Children & Education Services,Dorridge Inf,Building Maint Planned,B31002,03/09/2010,2761265,560,Rainbow International,177558
Solihull MBC,http://statistics.data.gov.uk/id/local-authority/00CT,Children & Education Services,Dorridge Inf,Building Maint Planned,B31002,24/09/2010,2779871,2223.96,Construction Management Services,10057
Solihull MBC,http://statistics.data.gov.uk/id/local-authority/00CT,Children & Education Services,Dorridge Inf,Meetings & Other Expenses,D61002,27/09/2010,2780905,113.56,Wolterskluwer (UK) Ltd,123652
Solihull MBC,http://statistics.data.gov.uk/id/local-authority/00CT,Children & Education Services,Dorridge Inf,Meetings & Other Expenses,D61002,27/09/2010,2780905,416.39,Wolterskluwer (UK) Ltd,123652
Solihull MBC,http://statistics.data.gov.uk/id/local-authority/00CT,Children & Education Services,Dorridge Inf,Building Maint Planned,B31002,24/09/2010,2779870,22927.5,Zone Cee Ltd,15254
Solihull MBC,http://statistics.data.gov.uk/id/local-authority/00CT,Children & Education Services,Dorridge Inf,Photocopying,D40001,27/09/2010,2780908,1113.48,Siemens Financial Services Ltd,11295
Solihull MBC,http://statistics.data.gov.uk/id/local-authority/00CT,Children & Education Services,Dorridge Jnr,Building Maint Planned,B31002,06/09/2010,2762595,2854.05,D A Mander,10158
Solihull MBC,http://statistics.data.gov.uk/id/local-authority/00CT,Children & Education Services,Dorridge Jnr,Building Maint Planned,B31002,06/09/2010,2762595,1343.7,D A Mander,10158
Solihull MBC,http://statistics.data.gov.uk/id/local-authority/00CT,Children & Education Services,Dorridge Jnr,Building Maint Day To Day,B31001,09/09/2010,2767713,459,Just Fabrics,9252
